Department Family,Entity,Date,Expense Type,Expense Area,Supplier,Transaction Number,Amount,Description
Ministry of Justice,HMCTS,22-Aug-14 ,611000-Debtors <1 year - Other Debtors,WW000-Balance Sheet,ALLIANZ MANAGEMENT SERVICES,2956110,"35,827.92 ",REFUND OF INVOICE 1800003649
Ministry of Justice,HMCTS,05-Aug-14 ,265000-IT & Telecommunications,"AM999-HQ - Civil, Family & Tribunals",ATOS IT SERVICES UK LTD,2937830,11.62 ,MS Visio Std
Ministry of Justice,HMCTS,05-Aug-14 ,265000-IT & Telecommunications,"AM999-HQ - Civil, Family & Tribunals",ATOS IT SERVICES UK LTD,2937830,23.11 ,Assign Olympus Digital Voice Recorder - DS-7000 to another user
Ministry of Justice,HMCTS,05-Aug-14 ,265000-IT & Telecommunications,"AM999-HQ - Civil, Family & Tribunals",ATOS IT SERVICES UK LTD,2937830,25.78 ,102 Petty France - ATOS - New IPT Mobility account with voicemail account 11-20 Accounts - ID 237333
Ministry of Justice,HMCTS,05-Aug-14 ,265000-IT & Telecommunications,"AM999-HQ - Civil, Family & Tribunals",ATOS IT SERVICES UK LTD,2937830,46.22 ,Request Olympus dictation and transcription software for a user.  Does not include Olympus Digital Professional Dictation Solution - DS-7000
Ministry of Justice,HMCTS,29-Aug-14 ,265000-IT & Telecommunications,"AM999-HQ - Civil, Family & Tribunals",ATOS IT SERVICES UK LTD,2961147,66.86 ,Return BlackBerry device (no longer required)
Ministry of Justice,HMCTS,29-Aug-14 ,265000-IT & Telecommunications,"AM999-HQ - Civil, Family & Tribunals",ATOS IT SERVICES UK LTD,2961147,66.86 ,Return BlackBerry device (no longer required)
Ministry of Justice,HMCTS,29-Aug-14 ,265000-IT & Telecommunications,"AM999-HQ - Civil, Family & Tribunals",ATOS IT SERVICES UK LTD,2961147,111.45 ,Replace faulty or non-faulty out-of-contract BlackBerry device
Ministry of Justice,HMCTS,05-Aug-14 ,265000-IT & Telecommunications,AN999-HQ - Crime,ATOS IT SERVICES UK LTD,2937830,11.62 ,AO-HQ Mags Business Development & Improvement-MS Project Standard-DISC
Ministry of Justice,HMCTS,05-Aug-14 ,265000-IT & Telecommunications,AN999-HQ - Crime,ATOS IT SERVICES UK LTD,2937830,25.78 ,AO-HQ mags Business Development & Improvement-New IPT Mobility account with voicemail account 11-20 Accounts-DISC
Ministry of Justice,HMCTS,05-Aug-14 ,265000-IT & Telecommunications,AN999-HQ - Crime,ATOS IT SERVICES UK LTD,2937830,25.78 ,New IPT Mobility account with voicemail account 11-20 Accounts
Ministry of Justice,HMCTS,29-Aug-14 ,265000-IT & Telecommunications,AN999-HQ - Crime,ATOS IT SERVICES UK LTD,2961147,25.78 ,New IPT Mobility account with voicemail account 11-20 Accounts
Ministry of Justice,HMCTS,29-Aug-14 ,265000-IT & Telecommunications,AN999-HQ - Crime,ATOS IT SERVICES UK LTD,2961147,46.00 ,Provision and support of Secure Remote Access (RWSII) Capability
Ministry of Justice,HMCTS,29-Aug-14 ,265000-IT & Telecommunications,AN999-HQ - Crime,ATOS IT SERVICES UK LTD,2961147,82.78 ,AO-Crime Crown-BlackBerry (Vodafone)-DISC-ID246076
Ministry of Justice,HMCTS,29-Aug-14 ,265000-IT & Telecommunications,AN999-HQ - Crime,ATOS IT SERVICES UK LTD,2961147,82.78 ,AO-HQ Crime Directorate-BlackBerry (Vodafone)-DISC-ID250703
Ministry of Justice,HMCTS,29-Aug-14 ,265000-IT & Telecommunications,AN999-HQ - Crime,ATOS IT SERVICES UK LTD,2961147,309.00 ,Polycom Soundstation 2 Conference Phone 1-11 devices
Ministry of Justice,HMCTS,29-Aug-14 ,265000-IT & Telecommunications,AP999-HQ - Strategy & Change,ATOS IT SERVICES UK LTD,2961147,5.00 ,DVI to VGA Cable Adapter
Ministry of Justice,HMCTS,29-Aug-14 ,265000-IT & Telecommunications,AP999-HQ - Strategy & Change,ATOS IT SERVICES UK LTD,2961147,8.07 ,VGA Monitor Extension Cable
Ministry of Justice,HMCTS,29-Aug-14 ,265000-IT & Telecommunications,AP999-HQ - Strategy & Change,ATOS IT SERVICES UK LTD,2961147,11.62 ,MS Visio Professional
Ministry of Justice,HMCTS,29-Aug-14 ,265000-IT & Telecommunications,AP999-HQ - Strategy & Change,ATOS IT SERVICES UK LTD,2961147,11.62 ,MS Project Professional
Ministry of Justice,HMCTS,29-Aug-14 ,265000-IT & Telecommunications,AP999-HQ - Strategy & Change,ATOS IT SERVICES UK LTD,2961147,11.62 ,MS Visio Professional
Ministry of Justice,HMCTS,29-Aug-14 ,265000-IT & Telecommunications,AP999-HQ - Strategy & Change,ATOS IT SERVICES UK LTD,2961147,11.62 ,AO-Strategy & Change-MS Project Professional-DISC-ID251037
Ministry of Justice,HMCTS,29-Aug-14 ,265000-IT & Telecommunications,AP999-HQ - Strategy & Change,ATOS IT SERVICES UK LTD,2961147,11.62 ,MS Visio Professional
Ministry of Justice,HMCTS,29-Aug-14 ,265000-IT & Telecommunications,AP999-HQ - Strategy & Change,ATOS IT SERVICES UK LTD,2961147,11.62 ,MS Project Professional
Ministry of Justice,HMCTS,05-Aug-14 ,265000-IT & Telecommunications,AP999-HQ - Strategy & Change,ATOS IT SERVICES UK LTD,2937830,11.62 ,MS Project Standard
Ministry of Justice,HMCTS,05-Aug-14 ,265000-IT & Telecommunications,AP999-HQ - Strategy & Change,ATOS IT SERVICES UK LTD,2937830,11.62 ,MS Visio Std
Ministry of Justice,HMCTS,05-Aug-14 ,265000-IT & Telecommunications,AP999-HQ - Strategy & Change,ATOS IT SERVICES UK LTD,2937830,11.62 ,MS Visio Std
Ministry of Justice,HMCTS,05-Aug-14 ,265000-IT & Telecommunications,AP999-HQ - Strategy & Change,ATOS IT SERVICES UK LTD,2937830,11.62 ,AO-Common Platform-MS Visio Std-Disc
Ministry of Justice,HMCTS,05-Aug-14 ,265000-IT & Telecommunications,AP999-HQ - Strategy & Change,ATOS IT SERVICES UK LTD,2937830,11.62 ,MS Visio Std
Ministry of Justice,HMCTS,05-Aug-14 ,265000-IT & Telecommunications,AP999-HQ - Strategy & Change,ATOS IT SERVICES UK LTD,2937830,11.62 ,MS Project Standard
Ministry of Justice,HMCTS,29-Aug-14 ,265000-IT & Telecommunications,AP999-HQ - Strategy & Change,ATOS IT SERVICES UK LTD,2961147,11.62 ,MS Visio Std
Ministry of Justice,HMCTS,29-Aug-14 ,265000-IT & Telecommunications,AP999-HQ - Strategy & Change,ATOS IT SERVICES UK LTD,2961147,11.62 ,AO-Manchester Mags-MS Project Standard-DISC
Ministry of Justice,HMCTS,29-Aug-14 ,265000-IT & Telecommunications,AP999-HQ - Strategy & Change,ATOS IT SERVICES UK LTD,2961147,11.62 ,AO-Manchester Mags-MS Visio Std-DISC
Ministry of Justice,HMCTS,29-Aug-14 ,265000-IT & Telecommunications,AP999-HQ - Strategy & Change,ATOS IT SERVICES UK LTD,2961147,11.62 ,MS Visio Std
Ministry of Justice,HMCTS,29-Aug-14 ,265000-IT & Telecommunications,AP999-HQ - Strategy & Change,ATOS IT SERVICES UK LTD,2961147,11.62 ,MS Project Standard
Ministry of Justice,HMCTS,29-Aug-14 ,265000-IT & Telecommunications,AP999-HQ - Strategy & Change,ATOS IT SERVICES UK LTD,2961147,11.62 ,MS Visio Std
Ministry of Justice,HMCTS,29-Aug-14 ,265000-IT & Telecommunications,AP999-HQ - Strategy & Change,ATOS IT SERVICES UK LTD,2961147,11.62 ,MS Visio Std
Ministry of Justice,HMCTS,29-Aug-14 ,265000-IT & Telecommunications,AP999-HQ - Strategy & Change,ATOS IT SERVICES UK LTD,2961147,11.62 ,MS Project Standard
Ministry of Justice,HMCTS,29-Aug-14 ,265000-IT & Telecommunications,AP999-HQ - Strategy & Change,ATOS IT SERVICES UK LTD,2961147,11.62 ,MS Visio Std
Ministry of Justice,HMCTS,29-Aug-14 ,265000-IT & Telecommunications,AP999-HQ - Strategy & Change,ATOS IT SERVICES UK LTD,2961147,19.68 ,"Plantronics ""BlackWire C310-M"" headset with microphone"
Ministry of Justice,HMCTS,05-Aug-14 ,265000-IT & Telecommunications,AP999-HQ - Strategy & Change,ATOS IT SERVICES UK LTD,2937830,25.23 ,Spare battery for BlackBerry 8520
Ministry of Justice,HMCTS,05-Aug-14 ,265000-IT & Telecommunications,AP999-HQ - Strategy & Change,ATOS IT SERVICES UK LTD,2937830,25.78 ,AO-HQ-New IPT Mobility account with voicemail account 11-20 Accounts-DISC
Ministry of Justice,HMCTS,29-Aug-14 ,265000-IT & Telecommunications,AP999-HQ - Strategy & Change,ATOS IT SERVICES UK LTD,2961147,25.78 ,New IPT Mobility account with voicemail account 11-20 Accounts
Ministry of Justice,HMCTS,29-Aug-14 ,265000-IT & Telecommunications,AP999-HQ - Strategy & Change,ATOS IT SERVICES UK LTD,2961147,25.78 ,New IPT Mobility account with voicemail account 11-20 Accounts
Ministry of Justice,HMCTS,29-Aug-14 ,265000-IT & Telecommunications,AP999-HQ - Strategy & Change,ATOS IT SERVICES UK LTD,2961147,25.78 ,New IPT Mobility account with voicemail account 11-20 Accounts
Ministry of Justice,HMCTS,29-Aug-14 ,265000-IT & Telecommunications,AP999-HQ - Strategy & Change,ATOS IT SERVICES UK LTD,2961147,25.78 ,New IPT Mobility account with voicemail account 11-20 Accounts
Ministry of Justice,HMCTS,29-Aug-14 ,265000-IT & Telecommunications,AP999-HQ - Strategy & Change,ATOS IT SERVICES UK LTD,2961147,25.78 ,New IPT Mobility account with voicemail account 11-20 Accounts
Ministry of Justice,HMCTS,29-Aug-14 ,265000-IT & Telecommunications,AP999-HQ - Strategy & Change,ATOS IT SERVICES UK LTD,2961147,25.78 ,AO-HQ-New IPT Mobility account with voicemail account 11-20 Accounts-DISC
Ministry of Justice,HMCTS,05-Aug-14 ,265000-IT & Telecommunications,AP999-HQ - Strategy & Change,ATOS IT SERVICES UK LTD,2937830,46.00 ,Provision and support of Secure Remote Access (RWSII) Capability
Ministry of Justice,HMCTS,05-Aug-14 ,265000-IT & Telecommunications,AP999-HQ - Strategy & Change,ATOS IT SERVICES UK LTD,2937830,46.00 ,Provision and support of Secure Remote Access (RWSII) Capability
Ministry of Justice,HMCTS,05-Aug-14 ,265000-IT & Telecommunications,AP999-HQ - Strategy & Change,ATOS IT SERVICES UK LTD,2937830,58.47 ,Keep your mobile phone number when upgrading to BlackBerry
Ministry of Justice,HMCTS,05-Aug-14 ,265000-IT & Telecommunications,AP999-HQ - Strategy & Change,ATOS IT SERVICES UK LTD,2937830,67.31 ,Plantronics HW251 A Mono Headset 1-11 devices
Ministry of Justice,HMCTS,05-Aug-14 ,265000-IT & Telecommunications,AP999-HQ - Strategy & Change,ATOS IT SERVICES UK LTD,2937830,85.87 ,X-Kryptor Client software installation
Ministry of Justice,HMCTS,05-Aug-14 ,265000-IT & Telecommunications,AP999-HQ - Strategy & Change,ATOS IT SERVICES UK LTD,2937830,85.87 ,X-Kryptor Client software installation
Ministry of Justice,HMCTS,05-Aug-14 ,265000-IT & Telecommunications,AP999-HQ - Strategy & Change,ATOS IT SERVICES UK LTD,2937830,92.00 ,Provision and support of Secure Remote Access (RWSII) Capability
Ministry of Justice,HMCTS,05-Aug-14 ,265000-IT & Telecommunications,AP999-HQ - Strategy & Change,ATOS IT SERVICES UK LTD,2937830,92.96 ,MS Visio Std
Ministry of Justice,HMCTS,29-Aug-14 ,265000-IT & Telecommunications,AP999-HQ - Strategy & Change,ATOS IT SERVICES UK LTD,2961147,121.96 ,Primary Battery for 2530p & 2540p Laptop
Ministry of Justice,HMCTS,05-Aug-14 ,265000-IT & Telecommunications,AP999-HQ - Strategy & Change,ATOS IT SERVICES UK LTD,2937830,164.00 ,"Standard Form Laptop - HP EliteBook 8470p (14"" screen)"
Ministry of Justice,HMCTS,05-Aug-14 ,265000-IT & Telecommunications,AP999-HQ - Strategy & Change,ATOS IT SERVICES UK LTD,2937830,164.00 ,"Standard Form Laptop - HP EliteBook 8470p (14"" screen)"
Ministry of Justice,HMCTS,29-Aug-14 ,265000-IT & Telecommunications,AP999-HQ - Strategy & Change,ATOS IT SERVICES UK LTD,2961147,242.09 ,Adobe Acrobat Writer Professional
Ministry of Justice,HMCTS,29-Aug-14 ,265000-IT & Telecommunications,AP999-HQ - Strategy & Change,ATOS IT SERVICES UK LTD,2961147,297.12 ,Crystal Reports 2011
Ministry of Justice,HMCTS,05-Aug-14 ,265000-IT & Telecommunications,AP999-HQ - Strategy & Change,ATOS IT SERVICES UK LTD,2937830,328.00 ,Pool Laptop
Ministry of Justice,HMCTS,05-Aug-14 ,265000-IT & Telecommunications,AQ999-HQ - Finance & Governance,ATOS IT SERVICES UK LTD,2937830,11.17 ,AO-IAC Manchester-MS Access-DISC
Ministry of Justice,HMCTS,05-Aug-14 ,265000-IT & Telecommunications,AQ999-HQ - Finance & Governance,ATOS IT SERVICES UK LTD,2937830,25.78 ,New IPT Mobility account with voicemail account 11-20 Accounts
Ministry of Justice,HMCTS,05-Aug-14 ,265000-IT & Telecommunications,AQ999-HQ - Finance & Governance,ATOS IT SERVICES UK LTD,2937830,25.78 ,New IPT Mobility account with voicemail account 11-20 Accounts
Ministry of Justice,HMCTS,05-Aug-14 ,265000-IT & Telecommunications,AQ999-HQ - Finance & Governance,ATOS IT SERVICES UK LTD,2937830,25.78 ,AO-Corporate Services-New IPT Mobility account with voicemail account 11-20 Accounts-DISC
Ministry of Justice,HMCTS,29-Aug-14 ,265000-IT & Telecommunications,AQ999-HQ - Finance & Governance,ATOS IT SERVICES UK LTD,2961147,25.78 ,Pick Up Groups 1-10 Instances
Ministry of Justice,HMCTS,29-Aug-14 ,265000-IT & Telecommunications,AQ999-HQ - Finance & Governance,ATOS IT SERVICES UK LTD,2961147,25.78 ,Pick Up Groups 1-10 Instances
Ministry of Justice,HMCTS,29-Aug-14 ,265000-IT & Telecommunications,AQ999-HQ - Finance & Governance,ATOS IT SERVICES UK LTD,2961147,25.78 ,New IPT Mobility account with voicemail account 11-20 Accounts
Ministry of Justice,HMCTS,29-Aug-14 ,265000-IT & Telecommunications,AQ999-HQ - Finance & Governance,ATOS IT SERVICES UK LTD,2961147,25.78 ,AO-HQ Secretariat-Pick Up Groups 1-10 Instances-DISC
Ministry of Justice,HMCTS,29-Aug-14 ,265000-IT & Telecommunications,AQ999-HQ - Finance & Governance,ATOS IT SERVICES UK LTD,2961147,60.34 ,AO-Manchester Civil Justice Centre-Desktop PC - HP DC8300-DISC-ID254804
Ministry of Justice,HMCTS,29-Aug-14 ,265000-IT & Telecommunications,AS999-HQ - Human Resources,ATOS IT SERVICES UK LTD,2961147,46.00 ,AO-HQ-Provision and support of Secure Remote Access (RWSII) Capability-DISC
Ministry of Justice,HMCTS,29-Aug-14 ,265000-IT & Telecommunications,AS999-HQ - Human Resources,ATOS IT SERVICES UK LTD,2961147,67.31 ,Plantronics HW251 A Mono Headset 1-11 devices
Ministry of Justice,HMCTS,05-Aug-14 ,265000-IT & Telecommunications,AS999-HQ - Human Resources,ATOS IT SERVICES UK LTD,2937830,258.33 ,HP OfficeJet 100 Mobile Printer
Ministry of Justice,HMCTS,05-Aug-14 ,265000-IT & Telecommunications,AT899-HQ - ICT,ATOS IT SERVICES UK LTD,2937830,111.45 ,Replace faulty or non-faulty out-of-contract BlackBerry device
Ministry of Justice,HMCTS,29-Aug-14 ,265000-IT & Telecommunications,AT899-HQ - ICT,ATOS IT SERVICES UK LTD,2961147,"2,080.80 ",AVM Ad-Hoc Labour and Materials x8
Ministry of Justice,HMCTS,05-Aug-14 ,265000-IT & Telecommunications,BZ999-London Region,ATOS IT SERVICES UK LTD,2937830,0.01 ,Receipt Invoice automatically created on 30-JUL-14
Ministry of Justice,HMCTS,05-Aug-14 ,265000-IT & Telecommunications,BZ999-London Region,ATOS IT SERVICES UK LTD,2937830,5.00 ,"Tribunals - 5TH FLOOR, The Rolls Building, London - ATOS -   BONMJ066, 5m Network Cable - ID: 228582"
Ministry of Justice,HMCTS,05-Aug-14 ,265000-IT & Telecommunications,BZ999-London Region,ATOS IT SERVICES UK LTD,2937830,5.16 ,Receipt Invoice automatically created on 30-JUL-14
Ministry of Justice,HMCTS,05-Aug-14 ,265000-IT & Telecommunications,BZ999-London Region,ATOS IT SERVICES UK LTD,2937830,5.16 ,Receipt Invoice automatically created on 30-JUL-14
Ministry of Justice,HMCTS,05-Aug-14 ,265000-IT & Telecommunications,BZ999-London Region,ATOS IT SERVICES UK LTD,2937830,5.16 ,Receipt Invoice automatically created on 30-JUL-14
Ministry of Justice,HMCTS,05-Aug-14 ,265000-IT & Telecommunications,BZ999-London Region,ATOS IT SERVICES UK LTD,2937830,5.16 ,Receipt Invoice automatically created on 30-JUL-14
Ministry of Justice,HMCTS,05-Aug-14 ,265000-IT & Telecommunications,BZ999-London Region,ATOS IT SERVICES UK LTD,2937830,5.16 ,Receipt Invoice automatically created on 30-JUL-14
Ministry of Justice,HMCTS,05-Aug-14 ,265000-IT & Telecommunications,BZ999-London Region,ATOS IT SERVICES UK LTD,2937830,5.16 ,Receipt Invoice automatically created on 30-JUL-14
Ministry of Justice,HMCTS,05-Aug-14 ,265000-IT & Telecommunications,BZ999-London Region,ATOS IT SERVICES UK LTD,2937830,5.16 ,Receipt Invoice automatically created on 30-JUL-14
Ministry of Justice,HMCTS,05-Aug-14 ,265000-IT & Telecommunications,BZ999-London Region,ATOS IT SERVICES UK LTD,2937830,5.16 ,Receipt Invoice automatically created on 30-JUL-14
Ministry of Justice,HMCTS,05-Aug-14 ,265000-IT & Telecommunications,BZ999-London Region,ATOS IT SERVICES UK LTD,2937830,5.16 ,Receipt Invoice automatically created on 30-JUL-14
Ministry of Justice,HMCTS,05-Aug-14 ,265000-IT & Telecommunications,BZ999-London Region,ATOS IT SERVICES UK LTD,2937830,5.16 ,Receipt Invoice automatically created on 30-JUL-14
Ministry of Justice,HMCTS,05-Aug-14 ,265000-IT & Telecommunications,BZ999-London Region,ATOS IT SERVICES UK LTD,2937830,5.16 ,Receipt Invoice automatically created on 30-JUL-14
Ministry of Justice,HMCTS,05-Aug-14 ,265000-IT & Telecommunications,BZ999-London Region,ATOS IT SERVICES UK LTD,2937830,5.16 ,Receipt Invoice automatically created on 30-JUL-14
Ministry of Justice,HMCTS,05-Aug-14 ,265000-IT & Telecommunications,BZ999-London Region,ATOS IT SERVICES UK LTD,2937830,5.93 ,Receipt Invoice automatically created on 30-JUL-14
Ministry of Justice,HMCTS,05-Aug-14 ,265000-IT & Telecommunications,BZ999-London Region,ATOS IT SERVICES UK LTD,2937830,5.93 ,Receipt Invoice automatically created on 30-JUL-14
Ministry of Justice,HMCTS,05-Aug-14 ,265000-IT & Telecommunications,BZ999-London Region,ATOS IT SERVICES UK LTD,2937830,8.16 ,Receipt Invoice automatically created on 30-JUL-14
Ministry of Justice,HMCTS,05-Aug-14 ,265000-IT & Telecommunications,BZ999-London Region,ATOS IT SERVICES UK LTD,2937830,8.51 ,"Tribunals - 5TH FLOOR, The Rolls Building, London - ATOS -   AJ078AA, HP Basic Notebook Carrying Case - ID: 228582"
Ministry of Justice,HMCTS,05-Aug-14 ,265000-IT & Telecommunications,BZ999-London Region,ATOS IT SERVICES UK LTD,2937830,9.20 ,Receipt Invoice automatically created on 30-JUL-14
Ministry of Justice,HMCTS,05-Aug-14 ,265000-IT & Telecommunications,BZ999-London Region,ATOS IT SERVICES UK LTD,2937830,11.10 ,Croydon County Court - ATOS - Ultra Flat Keyboard ID 239441
Ministry of Justice,HMCTS,05-Aug-14 ,265000-IT & Telecommunications,BZ999-London Region,ATOS IT SERVICES UK LTD,2937830,11.17 ,"Barkingside Magistrates Court - ATOS -  ACCESS10, MS Access - ID: 229255"
Ministry of Justice,HMCTS,29-Aug-14 ,265000-IT & Telecommunications,BZ999-London Region,ATOS IT SERVICES UK LTD,2961147,11.17 ,City of London Magistrates' Court - ATOS - MS Access - ID 249912
Ministry of Justice,HMCTS,29-Aug-14 ,265000-IT & Telecommunications,BZ999-London Region,ATOS IT SERVICES UK LTD,2961147,11.62 ,"10.01, 10th Floor,102 Petty France - ATOS - MS Visio Std ID 255150"
Ministry of Justice,HMCTS,05-Aug-14 ,265000-IT & Telecommunications,BZ999-London Region,ATOS IT SERVICES UK LTD,2937830,13.00 ,Receipt Invoice automatically created on 30-JUL-14
Ministry of Justice,HMCTS,05-Aug-14 ,265000-IT & Telecommunications,BZ999-London Region,ATOS IT SERVICES UK LTD,2937830,16.64 ,Receipt Invoice automatically created on 30-JUL-14
Ministry of Justice,HMCTS,29-Aug-14 ,265000-IT & Telecommunications,BZ999-London Region,ATOS IT SERVICES UK LTD,2961147,16.83 ,Microsoft LifeCam HD-3000 - web camera
Ministry of Justice,HMCTS,29-Aug-14 ,265000-IT & Telecommunications,BZ999-London Region,ATOS IT SERVICES UK LTD,2961147,19.68 ,"AO-Lean team-Plantronics ""BlackWire C310-M"" headset with microphone-DISC"
Ministry of Justice,HMCTS,29-Aug-14 ,265000-IT & Telecommunications,BZ999-London Region,ATOS IT SERVICES UK LTD,2961147,19.68 ,"Plantronics ""BlackWire C310-M"" headset with microphone"
Ministry of Justice,HMCTS,05-Aug-14 ,265000-IT & Telecommunications,BZ999-London Region,ATOS IT SERVICES UK LTD,2937830,22.25 ,ETS Montague Court Croydon - ATOS - Andrea NC-181 headset ID 238021
Ministry of Justice,HMCTS,29-Aug-14 ,265000-IT & Telecommunications,BZ999-London Region,ATOS IT SERVICES UK LTD,2961147,22.25 ,East London Tribunal Service - ATOS - Andrea NC-181 headset - ID 258450
Ministry of Justice,HMCTS,05-Aug-14 ,265000-IT & Telecommunications,BZ999-London Region,ATOS IT SERVICES UK LTD,2937830,25.78 ,"RCJ, London - ATOS - Fixed IPT Phone Change 11-20 Devices - ID 222548"
Ministry of Justice,HMCTS,05-Aug-14 ,265000-IT & Telecommunications,BZ999-London Region,ATOS IT SERVICES UK LTD,2937830,25.78 ,Isleworth Crown Court - ATOS - Pick Up Groups 1-10 Devices - ID 236645
Ministry of Justice,HMCTS,05-Aug-14 ,265000-IT & Telecommunications,BZ999-London Region,ATOS IT SERVICES UK LTD,2937830,25.78 ,Field House London EC4 - ATOS - Pick Up Groups 1-10 Devices ID 239700
Ministry of Justice,HMCTS,05-Aug-14 ,265000-IT & Telecommunications,BZ999-London Region,ATOS IT SERVICES UK LTD,2937830,25.78 ,Field House London EC4 - ATOS - Fixed IPT Phone Transfer to a new user 1-10 Devices - ID 239789
Ministry of Justice,HMCTS,05-Aug-14 ,265000-IT & Telecommunications,BZ999-London Region,ATOS IT SERVICES UK LTD,2937830,25.78 ,Westminster Magistrates Court - ATOS - Provision of announcement only  on a Hunt Group 1-10 Instances - ID 232543
Ministry of Justice,HMCTS,05-Aug-14 ,265000-IT & Telecommunications,BZ999-London Region,ATOS IT SERVICES UK LTD,2937830,25.78 ,Central Family Court - ATOS - International Calls 1-10 Accounts - ID 238464
Ministry of Justice,HMCTS,05-Aug-14 ,265000-IT & Telecommunications,BZ999-London Region,ATOS IT SERVICES UK LTD,2937830,25.78 ,IAC Hatton Cross - ATOS - Provision of voicemail 1-10 Accounts - ID 243558
Ministry of Justice,HMCTS,05-Aug-14 ,265000-IT & Telecommunications,BZ999-London Region,ATOS IT SERVICES UK LTD,2937830,25.78 ,45 Bedford Square London WC1B - ATOS - New IPT Mobility account without voicemail 1-10 Accounts - ID 241492
Ministry of Justice,HMCTS,05-Aug-14 ,265000-IT & Telecommunications,BZ999-London Region,ATOS IT SERVICES UK LTD,2937830,25.78 ,Field House London EC4 - ATOS - Fixed IPT Phone Transfer to a new user 1-10 Devices - ID 244208
Ministry of Justice,HMCTS,05-Aug-14 ,265000-IT & Telecommunications,BZ999-London Region,ATOS IT SERVICES UK LTD,2937830,25.78 ,City of london Magistrates Court - ATOS -External Calls 1-10 Accounts - ID 244464
Ministry of Justice,HMCTS,05-Aug-14 ,265000-IT & Telecommunications,BZ999-London Region,ATOS IT SERVICES UK LTD,2937830,25.78 ,City of london Magistrates Court - ATOS -External Calls 1-10 Accounts - ID 244464
Ministry of Justice,HMCTS,05-Aug-14 ,265000-IT & Telecommunications,BZ999-London Region,ATOS IT SERVICES UK LTD,2937830,25.78 ,City of london Magistrates Court - ATOS -External Calls 1-10 Accounts - ID 244464
Ministry of Justice,HMCTS,05-Aug-14 ,265000-IT & Telecommunications,BZ999-London Region,ATOS IT SERVICES UK LTD,2937830,25.78 ,Bow County Court - ATOS - Removal of voicemail 1-10 Accounts - ID 246989
Ministry of Justice,HMCTS,05-Aug-14 ,265000-IT & Telecommunications,BZ999-London Region,ATOS IT SERVICES UK LTD,2937830,25.78 ,Bow County Court - ATOS - Removal of voicemail 1-10 Accounts - ID 246989
Ministry of Justice,HMCTS,29-Aug-14 ,265000-IT & Telecommunications,BZ999-London Region,ATOS IT SERVICES UK LTD,2961147,25.78 ,Thames Magistrates Court - ATOS - External Calls 11-20 Accounts
Ministry of Justice,HMCTS,29-Aug-14 ,265000-IT & Telecommunications,BZ999-London Region,ATOS IT SERVICES UK LTD,2961147,25.78 ,ETS Croydon - ATOS - Fixed IPT Phone Transfer to a new user 1-10 Devices - ID 239425
Ministry of Justice,HMCTS,29-Aug-14 ,265000-IT & Telecommunications,BZ999-London Region,ATOS IT SERVICES UK LTD,2961147,25.78 ,Chelmsford (Osprey House) - ATOS - New IPT Mobility account with voicemail account 11-20 Accounts - ID 245448
Ministry of Justice,HMCTS,29-Aug-14 ,265000-IT & Telecommunications,BZ999-London Region,ATOS IT SERVICES UK LTD,2961147,25.78 ,RCJ - ATOS - New IPT Mobility account with voicemail account 11-20 Accounts - ID 249656
Ministry of Justice,HMCTS,29-Aug-14 ,265000-IT & Telecommunications,BZ999-London Region,ATOS IT SERVICES UK LTD,2961147,25.78 ,RCJ - ATOS - New IPT Mobility account with voicemail account 11-20 Accounts - ID 249717
Ministry of Justice,HMCTS,29-Aug-14 ,265000-IT & Telecommunications,BZ999-London Region,ATOS IT SERVICES UK LTD,2961147,25.78 ,RCJ - ATOS - New IPT Mobility account with voicemail account 11-20 Accounts - ID 249901
Ministry of Justice,HMCTS,29-Aug-14 ,265000-IT & Telecommunications,BZ999-London Region,ATOS IT SERVICES UK LTD,2961147,25.78 ,45 Bedford Square London WC1 - ATOS - Deletion of a Mobility user account 1-10 Accounts - ID 250635
Ministry of Justice,HMCTS,29-Aug-14 ,265000-IT & Telecommunications,BZ999-London Region,ATOS IT SERVICES UK LTD,2961147,25.78 ,45 Bedford Square London WC1 - ATOS - Deletion of a Mobility user account 1-10 Accounts - ID 250635
Ministry of Justice,HMCTS,29-Aug-14 ,265000-IT & Telecommunications,BZ999-London Region,ATOS IT SERVICES UK LTD,2961147,25.78 ,Fixed Handset Conversion to Mobility Handset & Mobility Account 1 2- 30 devices
Ministry of Justice,HMCTS,29-Aug-14 ,265000-IT & Telecommunications,BZ999-London Region,ATOS IT SERVICES UK LTD,2961147,25.78 ,Southern Residential Property First-tier Tribunal - ATOS - Fixed IPT Phone Change 1-10 Devices - ID 242306
Ministry of Justice,HMCTS,29-Aug-14 ,265000-IT & Telecommunications,BZ999-London Region,ATOS IT SERVICES UK LTD,2961147,25.78 ,Field House London EC4 - ATOS - International Calls 1-10 Accounts - ID 251538
Ministry of Justice,HMCTS,29-Aug-14 ,265000-IT & Telecommunications,BZ999-London Region,ATOS IT SERVICES UK LTD,2961147,25.78 ,Field House London EC4 - ATOS - International Calls 1-10 Accounts - ID 251538
Ministry of Justice,HMCTS,29-Aug-14 ,265000-IT & Telecommunications,BZ999-London Region,ATOS IT SERVICES UK LTD,2961147,25.78 ,Field House London EC4 - ATOS - International Calls 1-10 Accounts - ID 251538
Ministry of Justice,HMCTS,29-Aug-14 ,265000-IT & Telecommunications,BZ999-London Region,ATOS IT SERVICES UK LTD,2961147,25.78 ,Field House London EC4 - ATOS - International Calls 1-10 Accounts - ID 251538
Ministry of Justice,HMCTS,29-Aug-14 ,265000-IT & Telecommunications,BZ999-London Region,ATOS IT SERVICES UK LTD,2961147,25.78 ,102 Petty France - ATOS - New IPT Mobility account with voicemail account 11-20 Accounts - ID 253686
Ministry of Justice,HMCTS,29-Aug-14 ,265000-IT & Telecommunications,BZ999-London Region,ATOS IT SERVICES UK LTD,2961147,25.78 ,IAC Hatton Cross - ATOS External Calls 1-10 Devices - ID 251052
Ministry of Justice,HMCTS,29-Aug-14 ,265000-IT & Telecommunications,BZ999-London Region,ATOS IT SERVICES UK LTD,2961147,25.78 ,Romford County Court - ATOS - External Calls 1-10 Devices - ID 257946
Ministry of Justice,HMCTS,29-Aug-14 ,265000-IT & Telecommunications,BZ999-London Region,ATOS IT SERVICES UK LTD,2961147,25.78 ,2-3 Dukes Green Avenue TW14 - ATOS - External Calls 1-10 Devicesm - ID 254317
Ministry of Justice,HMCTS,29-Aug-14 ,265000-IT & Telecommunications,BZ999-London Region,ATOS IT SERVICES UK LTD,2961147,25.78 ,2-3 Dukes Green Avenue TW14 - ATOS - External Calls 1-10 Devices - ID 254670
Ministry of Justice,HMCTS,29-Aug-14 ,265000-IT & Telecommunications,BZ999-London Region,ATOS IT SERVICES UK LTD,2961147,25.78 ,Voicemail - Removal Of Voicemail 1-10 Accounts
Ministry of Justice,HMCTS,05-Aug-14 ,265000-IT & Telecommunications,BZ999-London Region,ATOS IT SERVICES UK LTD,2937830,25.78 ,"Fox Court - ATOS -   ITPFIX01, Fixed IPT Phone Change 1-10 Devices - ID: 229065"
Ministry of Justice,HMCTS,05-Aug-14 ,265000-IT & Telecommunications,BZ999-London Region,ATOS IT SERVICES UK LTD,2937830,25.78 ,"Fox Court - ATOS - ITPFIXTRAN01, Fixed IPT Phone Transfer to a new user 1-10 Devices - ID: 229066"
Ministry of Justice,HMCTS,05-Aug-14 ,265000-IT & Telecommunications,BZ999-London Region,ATOS IT SERVICES UK LTD,2937830,25.78 ,"Tribunals Field House, London - ATOS -  ITPMOBACC01, Mobility Account Changes 1-10 Devices - ID: 232503"
Ministry of Justice,HMCTS,05-Aug-14 ,265000-IT & Telecommunications,BZ999-London Region,ATOS IT SERVICES UK LTD,2937830,25.78 ,"Romford County Court - ATOS -   ITPEXT01B, New Analogue Extension Port For use with fax machine, MFD, franking machine or an analogue handset - ID: 203691"
Ministry of Justice,HMCTS,05-Aug-14 ,265000-IT & Telecommunications,BZ999-London Region,ATOS IT SERVICES UK LTD,2937830,25.78 ,"Romford County Court - ATOS -   ITPEXT01B, New Analogue Extension Port For use with fax machine, MFD, franking machine or an analogue handset - ID: 203691"
Ministry of Justice,HMCTS,05-Aug-14 ,265000-IT & Telecommunications,BZ999-London Region,ATOS IT SERVICES UK LTD,2937830,25.78 ,"Hendon Magistrates Court - ATOS - ITPEXTCALL01, External Calls, Provision or Removal of the ability to make external calls"
Ministry of Justice,HMCTS,05-Aug-14 ,265000-IT & Telecommunications,BZ999-London Region,ATOS IT SERVICES UK LTD,2937830,25.78 ,"Tribunals, 45 Bedford Square, London - ATOS - Catalogue ID ITPMOB02B, New IPT Mobility account without voicemail 11-20 Devices - ID: 234215"
Ministry of Justice,HMCTS,05-Aug-14 ,265000-IT & Telecommunications,BZ999-London Region,ATOS IT SERVICES UK LTD,2937830,25.78 ,"58 BOW ROW, LONDON - ATOS - ITPFIX01, Fixed IPT Phone Change 1-10 Devices"
Ministry of Justice,HMCTS,05-Aug-14 ,265000-IT & Telecommunications,BZ999-London Region,ATOS IT SERVICES UK LTD,2937830,25.78 ,"Royal Courts of Justice - ATOS - ITPMOBACC01, Mobility Account Changes 1-10 Devices - ID: 235134"
Ministry of Justice,HMCTS,05-Aug-14 ,265000-IT & Telecommunications,BZ999-London Region,ATOS IT SERVICES UK LTD,2937830,25.78 ,"Thames Magistrates Court - ATOS - ITPEXTCALL01, External Calls, Provision or Removal of the ability to make external calls - ID: 236329"
Ministry of Justice,HMCTS,05-Aug-14 ,265000-IT & Telecommunications,BZ999-London Region,ATOS IT SERVICES UK LTD,2937830,25.78 ,"Central Family Court, 42-49 High Holborn - ATOS - ITPHUNT01, Hunt Group Working 1-10 Devices - ID: 236523"
Ministry of Justice,HMCTS,05-Aug-14 ,265000-IT & Telecommunications,BZ999-London Region,ATOS IT SERVICES UK LTD,2937830,25.78 ,"Central Family Court, 42-49 High Holborn - ATOS -   ITPPICK01, Pick Up Groups 1-10 Devices - ID: 236523"
Ministry of Justice,HMCTS,05-Aug-14 ,265000-IT & Telecommunications,BZ999-London Region,ATOS IT SERVICES UK LTD,2937830,26.66 ,45 Bedford Square London WC1B - ATOS - Request a headset - Olympus E62 - for use with Olympus transcription software (play back of Olympus Digital Voice Recorder recordings) - ID 243139
Ministry of Justice,HMCTS,05-Aug-14 ,265000-IT & Telecommunications,BZ999-London Region,ATOS IT SERVICES UK LTD,2937830,29.67 ,"Romford County Court - ATOS -   CONV2100, Converse 2100 1 -11 devices - ID: 203691"
Ministry of Justice,HMCTS,05-Aug-14 ,265000-IT & Telecommunications,BZ999-London Region,ATOS IT SERVICES UK LTD,2937830,29.67 ,"Romford County Court - ATOS - CONV2100, Converse 2100 1 -11 devices - ID: 203691"
Ministry of Justice,HMCTS,05-Aug-14 ,265000-IT & Telecommunications,BZ999-London Region,ATOS IT SERVICES UK LTD,2937830,40.34 ,HMCTS Field House London EC4 - ATOS - Provision of FHINS access - ID 243270
Ministry of Justice,HMCTS,29-Aug-14 ,265000-IT & Telecommunications,BZ999-London Region,ATOS IT SERVICES UK LTD,2961147,40.34 ,Breams Buildings London EC4 - ATOS - Provision of FHINS access - ID 248631
Ministry of Justice,HMCTS,29-Aug-14 ,265000-IT & Telecommunications,BZ999-London Region,ATOS IT SERVICES UK LTD,2961147,40.34 ,Breams Buildings London EC4 - ATOS - Provision of FHINS access - ID 248631
Ministry of Justice,HMCTS,29-Aug-14 ,265000-IT & Telecommunications,BZ999-London Region,ATOS IT SERVICES UK LTD,2961147,40.34 ,Breams Buildings London EC4  - ATOS - Provision of FHINS access - ID 248714
Ministry of Justice,HMCTS,29-Aug-14 ,265000-IT & Telecommunications,BZ999-London Region,ATOS IT SERVICES UK LTD,2961147,40.34 ,Breams Buildings London EC4  - ATOS - Provision of FHINS access - ID 248714
Ministry of Justice,HMCTS,29-Aug-14 ,265000-IT & Telecommunications,BZ999-London Region,ATOS IT SERVICES UK LTD,2961147,40.34 ,Field House London EC4 - ATOS - Provision of FHINS access - ID 248850
Ministry of Justice,HMCTS,29-Aug-14 ,265000-IT & Telecommunications,BZ999-London Region,ATOS IT SERVICES UK LTD,2961147,40.34 ,Field House London EC4 - ATOS - Provision of FHINS access - ID 248850
Ministry of Justice,HMCTS,29-Aug-14 ,265000-IT & Telecommunications,BZ999-London Region,ATOS IT SERVICES UK LTD,2961147,40.34 ,Field House London EC4 - ATOS - Provision of FHINS access - ID 249812
Ministry of Justice,HMCTS,29-Aug-14 ,265000-IT & Telecommunications,BZ999-London Region,ATOS IT SERVICES UK LTD,2961147,40.34 ,Field House London EC4 - ATOS - Provision of FHINS access - ID 249812
Ministry of Justice,HMCTS,29-Aug-14 ,265000-IT & Telecommunications,BZ999-London Region,ATOS IT SERVICES UK LTD,2961147,40.34 ,Field House London EC4 - ATOS - Provision of FHINS access - ID 249839
Ministry of Justice,HMCTS,29-Aug-14 ,265000-IT & Telecommunications,BZ999-London Region,ATOS IT SERVICES UK LTD,2961147,40.34 ,Field House London EC4 - ATOS - Provision of FHINS access - ID 249839
Ministry of Justice,HMCTS,29-Aug-14 ,265000-IT & Telecommunications,BZ999-London Region,ATOS IT SERVICES UK LTD,2961147,40.34 ,Field House London EC4 - ATOS -  Provision of FHINS access - ID 249843
Ministry of Justice,HMCTS,29-Aug-14 ,265000-IT & Telecommunications,BZ999-London Region,ATOS IT SERVICES UK LTD,2961147,40.34 ,Field House London EC4 - ATOS -  Provision of FHINS access - ID 249843
Ministry of Justice,HMCTS,29-Aug-14 ,265000-IT & Telecommunications,BZ999-London Region,ATOS IT SERVICES UK LTD,2961147,40.34 ,Field House London EC4 - ATOS - Provision of FHINS access - ID 249855
Ministry of Justice,HMCTS,29-Aug-14 ,265000-IT & Telecommunications,BZ999-London Region,ATOS IT SERVICES UK LTD,2961147,40.34 ,Field House London EC4 - ATOS - Provision of FHINS access - ID 249855
Ministry of Justice,HMCTS,29-Aug-14 ,265000-IT & Telecommunications,BZ999-London Region,ATOS IT SERVICES UK LTD,2961147,40.34 ,Field House London EC4 � ATOS - Provision of FHINS access - ID 249873
Ministry of Justice,HMCTS,29-Aug-14 ,265000-IT & Telecommunications,BZ999-London Region,ATOS IT SERVICES UK LTD,2961147,40.34 ,Field House London EC4 - ATOS - Provision of FHINS access - ID 249869
Ministry of Justice,HMCTS,29-Aug-14 ,265000-IT & Telecommunications,BZ999-London Region,ATOS IT SERVICES UK LTD,2961147,40.34 ,Field House London EC4 - ATOS - Provision of FHINS access - ID 249869
Ministry of Justice,HMCTS,29-Aug-14 ,265000-IT & Telecommunications,BZ999-London Region,ATOS IT SERVICES UK LTD,2961147,40.34 ,Field House London EC4 - ATOS - Provision of FHINS access - ID 243022
Ministry of Justice,HMCTS,29-Aug-14 ,265000-IT & Telecommunications,BZ999-London Region,ATOS IT SERVICES UK LTD,2961147,40.34 ,Field House London EC4 - ATOS - Provision of FHINS access - ID253634
Ministry of Justice,HMCTS,29-Aug-14 ,265000-IT & Telecommunications,BZ999-London Region,ATOS IT SERVICES UK LTD,2961147,40.34 ,Field House London EC4 - ATOS - Provision of FHINS access - ID253634
Ministry of Justice,HMCTS,29-Aug-14 ,265000-IT & Telecommunications,BZ999-London Region,ATOS IT SERVICES UK LTD,2961147,40.34 ,Field House London EC4 - ATOS - Provision of FHINS access - ID253634
Ministry of Justice,HMCTS,29-Aug-14 ,265000-IT & Telecommunications,BZ999-London Region,ATOS IT SERVICES UK LTD,2961147,40.34 ,Field House - ATOS - Provision of FHINS access - ID 258258
Ministry of Justice,HMCTS,05-Aug-14 ,265000-IT & Telecommunications,BZ999-London Region,ATOS IT SERVICES UK LTD,2937830,40.79 ,"Bromley County Court - ATOS - CONV220, Converse 2200 1-11 devices - ID: 232910"
Ministry of Justice,HMCTS,05-Aug-14 ,265000-IT & Telecommunications,BZ999-London Region,ATOS IT SERVICES UK LTD,2937830,46.00 ,"Lambeth County Court - ATOS - RWSII010, Provision and support of Secure Remote Access (RWSII) Capability"
Ministry of Justice,HMCTS,05-Aug-14 ,265000-IT & Telecommunications,BZ999-London Region,ATOS IT SERVICES UK LTD,2937830,46.00 ,"Tribunals, Fox Court - ATOS -   RWSII010, Provision and support of Secure Remote Access (RWSII) Capability - ID: 234608"
Ministry of Justice,HMCTS,05-Aug-14 ,265000-IT & Telecommunications,BZ999-London Region,ATOS IT SERVICES UK LTD,2937830,46.00 ,HMCTS Field House London EC4 - ATOS - Provision and support of Secure Remote Access (RWSII) Capability - ID 244805
Ministry of Justice,HMCTS,29-Aug-14 ,265000-IT & Telecommunications,BZ999-London Region,ATOS IT SERVICES UK LTD,2961147,46.00 ,102 Petty France - ATOS - Provision and support of Secure Remote Access (RWSII) Capability - ID 251287
Ministry of Justice,HMCTS,05-Aug-14 ,265000-IT & Telecommunications,BZ999-London Region,ATOS IT SERVICES UK LTD,2937830,46.00 ,"Royal Court of Justice - ATOS - RWSII010, Provision and support of Secure Remote Access (RWSII) Capability - ID: 232560"
Ministry of Justice,HMCTS,05-Aug-14 ,265000-IT & Telecommunications,BZ999-London Region,ATOS IT SERVICES UK LTD,2937830,46.00 ,"Tribunals - 5TH FLOOR, The Rolls Building, London - ATOS -   RWSII010, Provision and support of Secure Remote Access (RWSII) Capability - ID: 228582"
Ministry of Justice,HMCTS,05-Aug-14 ,265000-IT & Telecommunications,BZ999-London Region,ATOS IT SERVICES UK LTD,2937830,46.22 ,45 Bedford Square London WC1B - ATOS - Request Olympus dictation and transcription software for a user.  Does not include Olympus Digital Professional Dictation Solution - DS-7000 - ID 243139
Ministry of Justice,HMCTS,05-Aug-14 ,265000-IT & Telecommunications,BZ999-London Region,ATOS IT SERVICES UK LTD,2937830,46.22 ,45 Bedford Square London WC1B - ATOS - Request Olympus dictation and transcription software for a user.  Does not include Olympus Digital Professional Dictation Solution - DS-7000 - ID 243139
Ministry of Justice,HMCTS,05-Aug-14 ,265000-IT & Telecommunications,BZ999-London Region,ATOS IT SERVICES UK LTD,2937830,46.22 ,45 Bedford Square London WC1B - ATOS - Request Olympus dictation and transcription software for a user.  Does not include Olympus Digital Professional Dictation Solution - DS-7000 - ID 243139
Ministry of Justice,HMCTS,05-Aug-14 ,265000-IT & Telecommunications,BZ999-London Region,ATOS IT SERVICES UK LTD,2937830,46.22 ,45 Bedford Square London WC1B - ATOS - Request Olympus dictation and transcription software for a user.  Does not include Olympus Digital Professional Dictation Solution - DS-7000 - ID 243139
Ministry of Justice,HMCTS,05-Aug-14 ,265000-IT & Telecommunications,BZ999-London Region,ATOS IT SERVICES UK LTD,2937830,46.22 ,45 Bedford Square London WC1B - ATOS - Request Olympus dictation and transcription software for a user.  Does not include Olympus Digital Professional Dictation Solution - DS-7000 - ID 243139
Ministry of Justice,HMCTS,05-Aug-14 ,265000-IT & Telecommunications,BZ999-London Region,ATOS IT SERVICES UK LTD,2937830,46.22 ,45 Bedford Square London WC1B - ATOS - Request Olympus dictation and transcription software for a user.  Does not include Olympus Digital Professional Dictation Solution - DS-7000 - ID 243139
Ministry of Justice,HMCTS,05-Aug-14 ,265000-IT & Telecommunications,BZ999-London Region,ATOS IT SERVICES UK LTD,2937830,46.22 ,45 Bedford Square London WC1B - ATOS - Request Olympus dictation and transcription software for a user.  Does not include Olympus Digital Professional Dictation Solution - DS-7000 - ID 243139
Ministry of Justice,HMCTS,29-Aug-14 ,265000-IT & Telecommunications,BZ999-London Region,ATOS IT SERVICES UK LTD,2961147,50.90 ,Field House London EC4 - ATOS - Request International Data Roaming - ID 250445
Ministry of Justice,HMCTS,29-Aug-14 ,265000-IT & Telecommunications,BZ999-London Region,ATOS IT SERVICES UK LTD,2961147,50.90 ,"HMCTS, Eastgate House  - ATOS - Request International Data Roaming"
Ministry of Justice,HMCTS,29-Aug-14 ,265000-IT & Telecommunications,BZ999-London Region,ATOS IT SERVICES UK LTD,2961147,51.56 ,External Calls 1-10 Devices
Ministry of Justice,HMCTS,29-Aug-14 ,265000-IT & Telecommunications,BZ999-London Region,ATOS IT SERVICES UK LTD,2961147,51.56 ,Fixed Handset Conversion to Mobility Handset & Mobility Account 1 - 11 devices
Ministry of Justice,HMCTS,05-Aug-14 ,265000-IT & Telecommunications,BZ999-London Region,ATOS IT SERVICES UK LTD,2937830,55.15 ,45 Bedford Square London WC1B - ATOS - Request a foot pedal - Olympus RS31 -  for use with Olympus transcription software (play back of Olympus Digital Voice Recorder recordings) - ID 243090
Ministry of Justice,HMCTS,05-Aug-14 ,265000-IT & Telecommunications,BZ999-London Region,ATOS IT SERVICES UK LTD,2937830,55.15 ,45 Bedford Square London WC1B - ATOS - Request a foot pedal - Olympus RS31 -  for use with Olympus transcription software (play back of Olympus Digital Voice Recorder recordings) - ID 243090
Ministry of Justice,HMCTS,05-Aug-14 ,265000-IT & Telecommunications,BZ999-London Region,ATOS IT SERVICES UK LTD,2937830,55.15 ,45 Bedford Square London WC1B - ATOS - Request a foot pedal - Olympus RS31 -  for use with Olympus transcription software (play back of Olympus Digital Voice Recorder recordings) - ID 243090
Ministry of Justice,HMCTS,05-Aug-14 ,265000-IT & Telecommunications,BZ999-London Region,ATOS IT SERVICES UK LTD,2937830,55.15 ,45 Bedford Square London WC1B - ATOS - Request a foot pedal - Olympus RS31 -  for use with Olympus transcription software (play back of Olympus Digital Voice Recorder recordings) - ID 243090
Ministry of Justice,HMCTS,05-Aug-14 ,265000-IT & Telecommunications,BZ999-London Region,ATOS IT SERVICES UK LTD,2937830,56.55 ,Bexley Magistrates Court - ATOS - Modify Existing Call Flow Change to a Static Message ID 226831
Ministry of Justice,HMCTS,29-Aug-14 ,265000-IT & Telecommunications,BZ999-London Region,ATOS IT SERVICES UK LTD,2961147,60.34 ,Court of Protection London WC1 - ATOS -  Desktop PC - HP DC8300 - ID 255086
Ministry of Justice,HMCTS,29-Aug-14 ,265000-IT & Telecommunications,BZ999-London Region,ATOS IT SERVICES UK LTD,2961147,60.34 ,Court of Protection Londonj WC1 - ATOS - Desktop PC - HP DC8300 - ID 255086
Ministry of Justice,HMCTS,29-Aug-14 ,265000-IT & Telecommunications,BZ999-London Region,ATOS IT SERVICES UK LTD,2961147,60.34 ,Court of Protection Londonj WC1 - ATOS - Desktop PC - HP DC8300 - ID 255086
Ministry of Justice,HMCTS,29-Aug-14 ,265000-IT & Telecommunications,BZ999-London Region,ATOS IT SERVICES UK LTD,2961147,60.34 ,Court of Protection Londonj WC1 - ATOS - Desktop PC - HP DC8300 - ID 255086
Ministry of Justice,HMCTS,29-Aug-14 ,265000-IT & Telecommunications,BZ999-London Region,ATOS IT SERVICES UK LTD,2961147,60.34 ,Court of Protection Londonj WC1 - ATOS - Desktop PC - HP DC8300 - ID 255086
Ministry of Justice,HMCTS,29-Aug-14 ,265000-IT & Telecommunications,BZ999-London Region,ATOS IT SERVICES UK LTD,2961147,60.34 ,Court of Protection Londonj WC1 - ATOS - Desktop PC - HP DC8300 - ID 255086
Ministry of Justice,HMCTS,29-Aug-14 ,265000-IT & Telecommunications,BZ999-London Region,ATOS IT SERVICES UK LTD,2961147,60.34 ,Desktop PC - HP DC8300
Ministry of Justice,HMCTS,05-Aug-14 ,265000-IT & Telecommunications,BZ999-London Region,ATOS IT SERVICES UK LTD,2937830,65.00 ,"Willesden Magistrates Court - ATOS - ITPREC01, Recovery of a redundant IPT handset from site 1-11 devices - ID: 230377"
Ministry of Justice,HMCTS,29-Aug-14 ,265000-IT & Telecommunications,BZ999-London Region,ATOS IT SERVICES UK LTD,2961147,66.86 ,RCJIT - ATOS - Return BlackBerry device (no longer required) - ID 247842
Ministry of Justice,HMCTS,29-Aug-14 ,265000-IT & Telecommunications,BZ999-London Region,ATOS IT SERVICES UK LTD,2961147,67.31 ,Willesden County Court - ATOS -  Plantronics HW251 A Mono Headset 1-11 devices - ID 248718
Ministry of Justice,HMCTS,29-Aug-14 ,265000-IT & Telecommunications,BZ999-London Region,ATOS IT SERVICES UK LTD,2961147,77.34 ,Thames Magistrates Court  - ATOS - Provision of voicemail 1-10 Accounts
Ministry of Justice,HMCTS,05-Aug-14 ,265000-IT & Telecommunications,BZ999-London Region,ATOS IT SERVICES UK LTD,2937830,82.78 ,"Royal Courts of Justice - ATOS - BlackBerry1, BlackBerry - Vodafone network - ID: 234719"
Ministry of Justice,HMCTS,29-Aug-14 ,265000-IT & Telecommunications,BZ999-London Region,ATOS IT SERVICES UK LTD,2961147,82.78 ,HMCTS Temple Court Birmingham B4 - ATOS - BlackBerry (Vodafone) ID 244646
Ministry of Justice,HMCTS,05-Aug-14 ,265000-IT & Telecommunications,BZ999-London Region,ATOS IT SERVICES UK LTD,2937830,83.46 ,"HMCTS, Field House, 15-25 Breams Buildings - ATOS - PLANHW251NB, Plantronics HW251 N Mono Headset 12-30 devices - ID: 237463"
Ministry of Justice,HMCTS,05-Aug-14 ,265000-IT & Telecommunications,BZ999-London Region,ATOS IT SERVICES UK LTD,2937830,111.45 ,"Royal Courts of Justice - ATOS - BlackBerry13, Replace faulty or non-faulty out-of-contract BlackBerry device - ID: 230600"
Ministry of Justice,HMCTS,05-Aug-14 ,265000-IT & Telecommunications,BZ999-London Region,ATOS IT SERVICES UK LTD,2937830,111.45 ,"Fox Court - ATOS -   BlackBerry13, Replace faulty or non-faulty out-of-contract BlackBerry device - ID: 231038"
Ministry of Justice,HMCTS,05-Aug-14 ,265000-IT & Telecommunications,BZ999-London Region,ATOS IT SERVICES UK LTD,2937830,111.45 ,RCJGIT - ATOS - Replace faulty or non-faulty out-of-contract BlackBerry device - ID 244211
Ministry of Justice,HMCTS,05-Aug-14 ,265000-IT & Telecommunications,BZ999-London Region,ATOS IT SERVICES UK LTD,2937830,113.16 ,"Romford County Court - ATOS - HP 230W Docking Station for 8440p, 8540p, 8460p, 8560p, 8470p and 8570p laptops ID 224732"
Ministry of Justice,HMCTS,05-Aug-14 ,265000-IT & Telecommunications,BZ999-London Region,ATOS IT SERVICES UK LTD,2937830,113.16 ,"Romford County Court - ATOS - HP 230W Docking Station for 8440p, 8540p, 8460p, 8560p, 8470p and 8570p laptops ID 224732"
Ministry of Justice,HMCTS,05-Aug-14 ,265000-IT & Telecommunications,BZ999-London Region,ATOS IT SERVICES UK LTD,2937830,116.08 ,RCJ Room EB09 - ATOS - Replace lost or stolen BlackBerry device (Vodafone)  - ID 236745
Ministry of Justice,HMCTS,05-Aug-14 ,265000-IT & Telecommunications,BZ999-London Region,ATOS IT SERVICES UK LTD,2937830,144.00 ,"Lavender Hill Magistrates' Court - ATOS - RELOCDB02, Relocation of 2 desktop client devices to a different building.- ID: 235197"
Ministry of Justice,HMCTS,05-Aug-14 ,265000-IT & Telecommunications,BZ999-London Region,ATOS IT SERVICES UK LTD,2937830,156.44 ,RCJIT - ATOS - External DVD reader-writer With Nero CD/DVD Burning application - ID 241312
Ministry of Justice,HMCTS,05-Aug-14 ,265000-IT & Telecommunications,BZ999-London Region,ATOS IT SERVICES UK LTD,2937830,265.63 ,ETS Montague Court Croydon - ATOS - Dragon Naturally Speaking Professional v10 ID 238021
Ministry of Justice,HMCTS,29-Aug-14 ,265000-IT & Telecommunications,BZ999-London Region,ATOS IT SERVICES UK LTD,2961147,360.00 ,Central Family Court - ATOS - Auto Attendant - Amend existing Auto Attendant Call Flow - ID 249148
Ministry of Justice,HMCTS,05-Aug-14 ,265000-IT & Telecommunications,BZ999-London Region,ATOS IT SERVICES UK LTD,2937830,381.33 ,45 Bedford Square London WC1B - ATOS - Olympus Digital Voice Recorder  - DS-7000 - new device - ID243111
Ministry of Justice,HMCTS,05-Aug-14 ,265000-IT & Telecommunications,BZ999-London Region,ATOS IT SERVICES UK LTD,2937830,381.33 ,45 Bedford Square London WC1B - ATOS - Olympus Digital Voice Recorder  - DS-7000 - new device - ID243111
Ministry of Justice,HMCTS,05-Aug-14 ,265000-IT & Telecommunications,BZ999-London Region,ATOS IT SERVICES UK LTD,2937830,381.33 ,45 Bedford Square London WC1B - ATOS - Olympus Digital Voice Recorder  - DS-7000 - new device - ID243111
Ministry of Justice,HMCTS,05-Aug-14 ,265000-IT & Telecommunications,BZ999-London Region,ATOS IT SERVICES UK LTD,2937830,381.33 ,45 Bedford Square London WC1B - ATOS - Olympus Digital Voice Recorder  - DS-7000 - new device - ID243111
Ministry of Justice,HMCTS,05-Aug-14 ,265000-IT & Telecommunications,BZ999-London Region,ATOS IT SERVICES UK LTD,2937830,381.33 ,45 Bedford Square London WC1B - ATOS - Olympus Digital Voice Recorder  - DS-7000 - new device - ID243111
Ministry of Justice,HMCTS,29-Aug-14 ,265000-IT & Telecommunications,BZ999-London Region,ATOS IT SERVICES UK LTD,2961147,416.16 ,First Avenue House London WC1 - ATOS -  1 to 5 Devices Local Relocation (same Authority Premises) -  Printer or MFD - ID 256964
Ministry of Justice,HMCTS,05-Aug-14 ,265000-IT & Telecommunications,BZ999-London Region,ATOS IT SERVICES UK LTD,2937830,483.79 ,Central Family Court - ATOS - Update Print Device configuration by call out to Xerox engineer ID 241595
Ministry of Justice,HMCTS,05-Aug-14 ,265000-IT & Telecommunications,BZ999-London Region,ATOS IT SERVICES UK LTD,2937830,859.37 ,Standard Power Down Request for DISC connected site with no site engineer assistance required
Ministry of Justice,HMCTS,05-Aug-14 ,265000-IT & Telecommunications,BZ999-London Region,ATOS IT SERVICES UK LTD,2937830,859.37 ,Standard Power Down Request for DISC connected site with no site engineer assistance required
Ministry of Justice,HMCTS,05-Aug-14 ,265000-IT & Telecommunications,BZ999-London Region,ATOS IT SERVICES UK LTD,2937830,859.37 ,Standard Power Down Request for DISC connected site with no site engineer assistance required
Ministry of Justice,HMCTS,05-Aug-14 ,265000-IT & Telecommunications,BZ999-London Region,ATOS IT SERVICES UK LTD,2937830,859.37 ,Standard Power Down Request for DISC connected site with no site engineer assistance required
Ministry of Justice,HMCTS,05-Aug-14 ,265000-IT & Telecommunications,BZ999-London Region,ATOS IT SERVICES UK LTD,2937830,859.37 ,Standard Power Down Request for DISC connected site with no site engineer assistance required
Ministry of Justice,HMCTS,29-Aug-14 ,265000-IT & Telecommunications,BZ999-London Region,ATOS IT SERVICES UK LTD,2961147,860.00 ,1 to 5 Devices Xerox A4 Black & White Laser Printer 3600EDN
Ministry of Justice,HMCTS,29-Aug-14 ,265000-IT & Telecommunications,BZ999-London Region,ATOS IT SERVICES UK LTD,2961147,860.00 ,Queen's Building 2nd Floor Mezz Royal Courts of Justice - ATOS - 1 to 5 Devices Xerox A4 Black & White Laser Printer 3600EDN
Ministry of Justice,HMCTS,29-Aug-14 ,265000-IT & Telecommunications,BZ999-London Region,ATOS IT SERVICES UK LTD,2961147,"1,820.70 ",AVM Ad-Hoc Labour and Materials
Ministry of Justice,HMCTS,29-Aug-14 ,265000-IT & Telecommunications,BZ999-London Region,ATOS IT SERVICES UK LTD,2961147,"3,677.00 ",IAC Hatton Cross - ATOS - 1 to 5 Devices Multi Function device                  Xerox Workcenter 5775 - Black and White printer / Colour scanner - ID 249007
Ministry of Justice,HMCTS,05-Aug-14 ,265000-IT & Telecommunications,CZ999-South East Region,ATOS IT SERVICES UK LTD,2937830,5.16 ,Receipt Invoice automatically created on 30-JUL-14
Ministry of Justice,HMCTS,05-Aug-14 ,265000-IT & Telecommunications,CZ999-South East Region,ATOS IT SERVICES UK LTD,2937830,5.16 ,Receipt Invoice automatically created on 30-JUL-14
Ministry of Justice,HMCTS,05-Aug-14 ,265000-IT & Telecommunications,CZ999-South East Region,ATOS IT SERVICES UK LTD,2937830,5.16 ,Receipt Invoice automatically created on 30-JUL-14
Ministry of Justice,HMCTS,05-Aug-14 ,265000-IT & Telecommunications,CZ999-South East Region,ATOS IT SERVICES UK LTD,2937830,6.66 ,"Milton Keynes County Court - ATOS - LANEXT2M, 2m Cat6 RJ45 LAN extension adaptor cable (pack of two) - ID: 235877"
Ministry of Justice,HMCTS,05-Aug-14 ,265000-IT & Telecommunications,CZ999-South East Region,ATOS IT SERVICES UK LTD,2937830,10.31 ,Receipt Invoice automatically created on 30-JUL-14
Ministry of Justice,HMCTS,05-Aug-14 ,265000-IT & Telecommunications,CZ999-South East Region,ATOS IT SERVICES UK LTD,2937830,10.31 ,Receipt Invoice automatically created on 30-JUL-14
Ministry of Justice,HMCTS,29-Aug-14 ,265000-IT & Telecommunications,CZ999-South East Region,ATOS IT SERVICES UK LTD,2961147,11.16 ,Brighton County Court - ATOS - HP Standard USB Keyboard - ID 253349
Ministry of Justice,HMCTS,29-Aug-14 ,265000-IT & Telecommunications,CZ999-South East Region,ATOS IT SERVICES UK LTD,2961147,18.33 ,Ipswich Crown Court - ATOS - Low-noise / soft touch keyboard -  ID 248304
Ministry of Justice,HMCTS,29-Aug-14 ,265000-IT & Telecommunications,CZ999-South East Region,ATOS IT SERVICES UK LTD,2961147,18.33 ,Ipswich Crown Court - ATOS - Low-noise / soft touch keyboard -  ID 248304
Ministry of Justice,HMCTS,05-Aug-14 ,265000-IT & Telecommunications,CZ999-South East Region,ATOS IT SERVICES UK LTD,2937830,25.23 ,102 Petty France - ATOS - Spare battery for BlackBerry 8520 - ID 247263
Ministry of Justice,HMCTS,29-Aug-14 ,265000-IT & Telecommunications,CZ999-South East Region,ATOS IT SERVICES UK LTD,2961147,25.23 ,Brighton County Court - ATOS - Additional/spare mains charger for BlackBerry 8520 - ID 249667
Ministry of Justice,HMCTS,05-Aug-14 ,265000-IT & Telecommunications,CZ999-South East Region,ATOS IT SERVICES UK LTD,2937830,25.78 ,102 Petty France - ATOS - New IPT Mobility account with voicemail account 11-20 Accounts ID 226105
Ministry of Justice,HMCTS,05-Aug-14 ,265000-IT & Telecommunications,CZ999-South East Region,ATOS IT SERVICES UK LTD,2937830,25.78 ,Brighton County Court - ATOS - Hunt Group Working 1-10 Instances ID 238422
Ministry of Justice,HMCTS,05-Aug-14 ,265000-IT & Telecommunications,CZ999-South East Region,ATOS IT SERVICES UK LTD,2937830,25.78 ,Judicial Secretariat for London and South East Regions Petty France - ATOS - Pick Up Groups 1-10 Devices - ID 241320
Ministry of Justice,HMCTS,05-Aug-14 ,265000-IT & Telecommunications,CZ999-South East Region,ATOS IT SERVICES UK LTD,2937830,25.78 ,Lewes Crown Court - ATOS - New IPT Mobility account with voicemail account 11-20 Accounts - ID 245025
Ministry of Justice,HMCTS,05-Aug-14 ,265000-IT & Telecommunications,CZ999-South East Region,ATOS IT SERVICES UK LTD,2937830,25.78 ,102 Petty France - ATOS - New IPT Mobility account with voicemail account 11-20 Accounts - ID 242216
Ministry of Justice,HMCTS,29-Aug-14 ,265000-IT & Telecommunications,CZ999-South East Region,ATOS IT SERVICES UK LTD,2961147,25.78 ,Essex Mags (Osprey Hs) - ATOS - Pick Up Groups 11-20 Instances ID 252259
Ministry of Justice,HMCTS,29-Aug-14 ,265000-IT & Telecommunications,CZ999-South East Region,ATOS IT SERVICES UK LTD,2961147,25.78 ,Deletion of a Mobility user account 1-10 Accounts
Ministry of Justice,HMCTS,29-Aug-14 ,265000-IT & Telecommunications,CZ999-South East Region,ATOS IT SERVICES UK LTD,2961147,25.78 ,Amersham Law Courts - ATOS - Fixed IPT Phone Change 1-10 Devices - ID 256658
Ministry of Justice,HMCTS,29-Aug-14 ,265000-IT & Telecommunications,CZ999-South East Region,ATOS IT SERVICES UK LTD,2961147,25.78 ,Deletion of a Mobility user account 1-10 Accounts
Ministry of Justice,HMCTS,05-Aug-14 ,265000-IT & Telecommunications,CZ999-South East Region,ATOS IT SERVICES UK LTD,2937830,25.78 ,"Brighton County Court - ATOS -   ITPPICK01C, Pick Up Groups 21-50 Devices - ID: 224218"
Ministry of Justice,HMCTS,05-Aug-14 ,265000-IT & Telecommunications,CZ999-South East Region,ATOS IT SERVICES UK LTD,2937830,25.78 ,"Luton Crown Court - ATOS -   ITPPICK01, Pick Up Groups 1-10 Devices - ID: 234818"
Ministry of Justice,HMCTS,05-Aug-14 ,265000-IT & Telecommunications,CZ999-South East Region,ATOS IT SERVICES UK LTD,2937830,25.78 ,"Bayley House, Sish Lane, Stevenage - ATOS -   ITPHUNT01, Hunt Group Working 1-10 Devices - ID: 227208"
Ministry of Justice,HMCTS,05-Aug-14 ,265000-IT & Telecommunications,CZ999-South East Region,ATOS IT SERVICES UK LTD,2937830,25.78 ,"HMCTS, 102 Petty France, 9th floor, Post point 9.07 - ATOS - ITPMOB01B, New IPT Mobility account with voicemail account - ID: 238347"
Ministry of Justice,HMCTS,05-Aug-14 ,265000-IT & Telecommunications,CZ999-South East Region,ATOS IT SERVICES UK LTD,2937830,29.67 ,Brighton County Court Family Centre - ATOS - Converse 2100 1 -11 devices - ID 244575
Ministry of Justice,HMCTS,29-Aug-14 ,265000-IT & Telecommunications,CZ999-South East Region,ATOS IT SERVICES UK LTD,2961147,35.20 ,Plantronics U10P-S19 Bottom Cable  1-11 devices
Ministry of Justice,HMCTS,05-Aug-14 ,265000-IT & Telecommunications,CZ999-South East Region,ATOS IT SERVICES UK LTD,2937830,46.00 ,"102 Petty France, London - ATOS - RWSII010, Provision and support of Secure Remote Access (RWSII) Capability - ID: 230109"
Ministry of Justice,HMCTS,05-Aug-14 ,265000-IT & Telecommunications,CZ999-South East Region,ATOS IT SERVICES UK LTD,2937830,46.00 ,Provision and support of Secure Remote Access (RWSII) Capability
Ministry of Justice,HMCTS,29-Aug-14 ,265000-IT & Telecommunications,CZ999-South East Region,ATOS IT SERVICES UK LTD,2961147,51.56 ,102 Petty France - ATOS - New IPT Mobility account with voicemail account 11-20 Accounts.
Ministry of Justice,HMCTS,05-Aug-14 ,265000-IT & Telecommunications,CZ999-South East Region,ATOS IT SERVICES UK LTD,2937830,51.56 ,"Amersham Law Courts - ATOS - ITPEXT01, External Calls 1-10 Devices - ID: 236081"
Ministry of Justice,HMCTS,05-Aug-14 ,265000-IT & Telecommunications,CZ999-South East Region,ATOS IT SERVICES UK LTD,2937830,51.56 ,"Maidstone County Court - ATOS - ITPEXT01, External Calls 1-10 Devices - ID: 237609"
Ministry of Justice,HMCTS,05-Aug-14 ,265000-IT & Telecommunications,CZ999-South East Region,ATOS IT SERVICES UK LTD,2937830,56.55 ,Norwich Magistrates' Court - ATOS - Modify Existing Call Flow Change to a Static Message ID 238848
Ministry of Justice,HMCTS,05-Aug-14 ,265000-IT & Telecommunications,CZ999-South East Region,ATOS IT SERVICES UK LTD,2937830,56.55 ,"Essex Magistrates, Osprey House - ATOS - Auto Attendant - Message Annoucement - Amend Static Message Announcement - ID 241654"
Ministry of Justice,HMCTS,29-Aug-14 ,265000-IT & Telecommunications,CZ999-South East Region,ATOS IT SERVICES UK LTD,2961147,56.55 ,Peterborough Combined Court - ATOS -  Auto Attendant - Message Prompt Menu - Amend Static Message Prompt Menu - ID 250862
Ministry of Justice,HMCTS,05-Aug-14 ,265000-IT & Telecommunications,CZ999-South East Region,ATOS IT SERVICES UK LTD,2937830,56.92 ,"Bedford County Court - ATOS- 	AT895AA, HP 230W Smart AC Adapter - ID: 228369"
Ministry of Justice,HMCTS,29-Aug-14 ,265000-IT & Telecommunications,CZ999-South East Region,ATOS IT SERVICES UK LTD,2961147,56.92 ,Bedford County Court - ATOS - HP 230W Smart AC Adapter - ID 245661
Ministry of Justice,HMCTS,29-Aug-14 ,265000-IT & Telecommunications,CZ999-South East Region,ATOS IT SERVICES UK LTD,2961147,60.34 ,Ipswich Crown Court - ATOS - Desktop PC - HP DC8300 - ID 248304
Ministry of Justice,HMCTS,29-Aug-14 ,265000-IT & Telecommunications,CZ999-South East Region,ATOS IT SERVICES UK LTD,2961147,60.34 ,Ipswich Crown Court - ATOS - Desktop PC - HP DC8300 - ID 248304
Ministry of Justice,HMCTS,05-Aug-14 ,265000-IT & Telecommunications,CZ999-South East Region,ATOS IT SERVICES UK LTD,2937830,60.34 ,"NORWICH MAGISTRATES COURT - ATOS - RELOCSB01, Relocation of a single desktop client device within the same building - ID 237179"
Ministry of Justice,HMCTS,29-Aug-14 ,265000-IT & Telecommunications,CZ999-South East Region,ATOS IT SERVICES UK LTD,2961147,66.86 ,Return BlackBerry device (no longer required)
Ministry of Justice,HMCTS,29-Aug-14 ,265000-IT & Telecommunications,CZ999-South East Region,ATOS IT SERVICES UK LTD,2961147,67.31 ,Chelmsford Osprey Hs - ATOS - Plantronics HW251 A Mono Headset 1-11 devices - ID 255326
Ministry of Justice,HMCTS,29-Aug-14 ,265000-IT & Telecommunications,CZ999-South East Region,ATOS IT SERVICES UK LTD,2961147,67.31 ,Chelmsford Osprey Hs - ATOS - Plantronics HW251 A Mono Headset 1-11 devices - ID 255326
Ministry of Justice,HMCTS,05-Aug-14 ,265000-IT & Telecommunications,CZ999-South East Region,ATOS IT SERVICES UK LTD,2937830,78.26 ,Lewes Combined Court - ATOS - Plantronics HW261 A Duo Headset 1-11 devices - ID 246009
Ministry of Justice,HMCTS,29-Aug-14 ,265000-IT & Telecommunications,CZ999-South East Region,ATOS IT SERVICES UK LTD,2961147,78.26 ,Plantronics HW261 A Duo Headset 1-11 devices
Ministry of Justice,HMCTS,29-Aug-14 ,265000-IT & Telecommunications,CZ999-South East Region,ATOS IT SERVICES UK LTD,2961147,78.26 ,Reassign BlackBerry device within Business Unit
Ministry of Justice,HMCTS,29-Aug-14 ,265000-IT & Telecommunications,CZ999-South East Region,ATOS IT SERVICES UK LTD,2961147,78.26 ,Brighton County Court - ATOS - Reassign BlackBerry device within Business Unit - ID 249667
Ministry of Justice,HMCTS,05-Aug-14 ,265000-IT & Telecommunications,CZ999-South East Region,ATOS IT SERVICES UK LTD,2937830,82.78 ,"Post Point 9.07, 9th Floor 102 Petty France - ATOS - BlackBerry - ID 238153"
Ministry of Justice,HMCTS,29-Aug-14 ,265000-IT & Telecommunications,CZ999-South East Region,ATOS IT SERVICES UK LTD,2961147,82.78 ,Priory Place Chelmsford Essex - ATOS  - BlackBerry (Vodafone) - ID 254120
Ministry of Justice,HMCTS,05-Aug-14 ,265000-IT & Telecommunications,CZ999-South East Region,ATOS IT SERVICES UK LTD,2937830,83.96 ,Evoluent Vertical Mouse
Ministry of Justice,HMCTS,05-Aug-14 ,265000-IT & Telecommunications,CZ999-South East Region,ATOS IT SERVICES UK LTD,2937830,107.66 ,"Oxford Magistrates Court - ATOS -BlackBerry2, BlackBerry - EE network"
Ministry of Justice,HMCTS,05-Aug-14 ,265000-IT & Telecommunications,CZ999-South East Region,ATOS IT SERVICES UK LTD,2937830,111.45 ,"Lewes Combined Court, - ATOS - Replace faulty or non-faulty out-of-contract BlackBerry device - ID 241783"
Ministry of Justice,HMCTS,05-Aug-14 ,265000-IT & Telecommunications,CZ999-South East Region,ATOS IT SERVICES UK LTD,2937830,113.16 ,"Bedford County Court - ATOS- VB043AA, HP 230W Docking Station for 8440p, 8540p, 8460p, 8560p, 8470p and 8570p laptops - ID: 228369"
Ministry of Justice,HMCTS,29-Aug-14 ,265000-IT & Telecommunications,CZ999-South East Region,ATOS IT SERVICES UK LTD,2961147,113.16 ,"Bedford County Court - ATOS - HP 230W Docking Station for 8440p, 8540p, 8460p, 8560p, 8470p and 8570p laptops - ID 245661"
Ministry of Justice,HMCTS,05-Aug-14 ,265000-IT & Telecommunications,CZ999-South East Region,ATOS IT SERVICES UK LTD,2937830,115.36 ,New PSTN Line
Ministry of Justice,HMCTS,29-Aug-14 ,265000-IT & Telecommunications,CZ999-South East Region,ATOS IT SERVICES UK LTD,2961147,115.36 ,New PSTN Line
Ministry of Justice,HMCTS,29-Aug-14 ,265000-IT & Telecommunications,CZ999-South East Region,ATOS IT SERVICES UK LTD,2961147,120.69 ,Waford Magistrates Court - ATOS - Relocation of a single desktop client device to a different building - ID 253880
Ministry of Justice,HMCTS,05-Aug-14 ,265000-IT & Telecommunications,CZ999-South East Region,ATOS IT SERVICES UK LTD,2937830,120.69 ,"Bury St Edmunds County Court - ATOS - RELOCDB10, Relocation of a single desktop client device to a different building - ID: 235620"
Ministry of Justice,HMCTS,05-Aug-14 ,265000-IT & Telecommunications,CZ999-South East Region,ATOS IT SERVICES UK LTD,2937830,164.00 ,"102 Petty France, London - ATOS -   HP8470P, Standard Form Laptop - HP EliteBook 8470p (14"" screen) - ID: 230109"
Ministry of Justice,HMCTS,05-Aug-14 ,265000-IT & Telecommunications,CZ999-South East Region,ATOS IT SERVICES UK LTD,2937830,164.00 ,Oxford Crown & County Court - ATOS - Pool Laptop
Ministry of Justice,HMCTS,05-Aug-14 ,265000-IT & Telecommunications,CZ999-South East Region,ATOS IT SERVICES UK LTD,2937830,164.80 ,Brighton Magistrates' Court - ATOS - Plantronics CS510 Wireless Headset 1-11 devices ID 238285
Ministry of Justice,HMCTS,05-Aug-14 ,265000-IT & Telecommunications,CZ999-South East Region,ATOS IT SERVICES UK LTD,2937830,164.80 ,Lewes Crown Court - ATOS - Plantronics CS510 Wireless Headset 1-11 devices - ID 245025
Ministry of Justice,HMCTS,29-Aug-14 ,265000-IT & Telecommunications,CZ999-South East Region,ATOS IT SERVICES UK LTD,2961147,164.80 ,Brighton Magistrates Court - ATOS - Plantronics CS510 Wireless Headset 1-11 devices - ID 250794
Ministry of Justice,HMCTS,29-Aug-14 ,265000-IT & Telecommunications,CZ999-South East Region,ATOS IT SERVICES UK LTD,2961147,226.32 ,"AO-Milton Keynes Cty-HP 230W Docking Station for 8440p, 8540p, 8460p, 8560p, 8470p and 8570p laptops-DISC-ID248975"
Ministry of Justice,HMCTS,05-Aug-14 ,265000-IT & Telecommunications,CZ999-South East Region,ATOS IT SERVICES UK LTD,2937830,260.10 ,Luton Magistrates Court - ATOS - AVM Ad-Hoc Labour and Materials - ID 241078
Ministry of Justice,HMCTS,05-Aug-14 ,265000-IT & Telecommunications,CZ999-South East Region,ATOS IT SERVICES UK LTD,2937830,260.10 ,Luton Magistrates Court - ATOS - AVM Ad-Hoc Labour and Materials - ID 241078
Ministry of Justice,HMCTS,05-Aug-14 ,265000-IT & Telecommunications,CZ999-South East Region,ATOS IT SERVICES UK LTD,2937830,260.10 ,Luton Magistrates Court - ATOS - AVM Ad-Hoc Labour and Materials - ID 241078
Ministry of Justice,HMCTS,05-Aug-14 ,265000-IT & Telecommunications,CZ999-South East Region,ATOS IT SERVICES UK LTD,2937830,260.10 ,Luton Magistrates Court - ATOS - AVM Ad-Hoc Labour and Materials - ID 241078
Ministry of Justice,HMCTS,05-Aug-14 ,265000-IT & Telecommunications,CZ999-South East Region,ATOS IT SERVICES UK LTD,2937830,260.10 ,Luton Magistrates Court - ATOS - AVM Ad-Hoc Labour and Materials - ID 241078
Ministry of Justice,HMCTS,05-Aug-14 ,265000-IT & Telecommunications,CZ999-South East Region,ATOS IT SERVICES UK LTD,2937830,260.10 ,Luton Magistrates Court - ATOS - AVM Ad-Hoc Labour and Materials - ID 241078
Ministry of Justice,HMCTS,29-Aug-14 ,265000-IT & Telecommunications,CZ999-South East Region,ATOS IT SERVICES UK LTD,2961147,336.55 ,Plantronics HW251 A Mono Headset 1-11 devices
Ministry of Justice,HMCTS,29-Aug-14 ,265000-IT & Telecommunications,CZ999-South East Region,ATOS IT SERVICES UK LTD,2961147,673.10 ,Plantronics HW251 A Mono Headset 1-11 devices
Ministry of Justice,HMCTS,05-Aug-14 ,265000-IT & Telecommunications,CZ999-South East Region,ATOS IT SERVICES UK LTD,2937830,859.37 ,Aylesbury Crown Court - ATOS - Standard Power Down Request for DISC connected site with no site engineer assistance required ID 225611
Ministry of Justice,HMCTS,05-Aug-14 ,265000-IT & Telecommunications,CZ999-South East Region,ATOS IT SERVICES UK LTD,2937830,860.00 ,First tier Tribunal (property Chamber) Chichester PO19 1YE - ATOS - 1 to 5 Devices Xerox A4 Black & White Laser Printer 3600EDN - ID 236603
Ministry of Justice,HMCTS,05-Aug-14 ,265000-IT & Telecommunications,CZ999-South East Region,ATOS IT SERVICES UK LTD,2937830,874.00 ,"MOJ, Petty France, London - ATOS - RWSII010, Provision and support of Secure Remote Access (RWSII) Capability - ID: 218798"
Ministry of Justice,HMCTS,05-Aug-14 ,265000-IT & Telecommunications,CZ999-South East Region,ATOS IT SERVICES UK LTD,2937830,977.98 ,"Bury St Edmunds County Court - ATOS - NATRELOC1, 1 to 5 Devices National Relocation -Printer or MFD (Multi Function Device) - ID: 235620"
Ministry of Justice,HMCTS,29-Aug-14 ,265000-IT & Telecommunications,CZ999-South East Region,ATOS IT SERVICES UK LTD,2961147,988.80 ,New ISDN2e (Low Start Option - 2 Channels)
Ministry of Justice,HMCTS,29-Aug-14 ,265000-IT & Telecommunications,CZ999-South East Region,ATOS IT SERVICES UK LTD,2961147,"2,128.66 ",Chichester Combined Court - ATOS - Urgent Power Down Request for DISC connected site with on site engineer assistance required - ID 247518
Ministry of Justice,HMCTS,05-Aug-14 ,265000-IT & Telecommunications,CZ999-South East Region,ATOS IT SERVICES UK LTD,2937830,"3,116.00 ","MOJ, Petty France, London - ATOS - POOLLTP, Pool Laptop - ID: 218798"
Ministry of Justice,HMCTS,05-Aug-14 ,265000-IT & Telecommunications,CZ999-South East Region,ATOS IT SERVICES UK LTD,2937830,"3,566.00 ","Norwich Combined Court - ATOS -XERMFD05, 1 to 5 Devices Multi Function device (e.g. Xerox Workcenter 7835) - A3 Colour MFD - ID: 215197"
Ministry of Justice,HMCTS,05-Aug-14 ,265000-IT & Telecommunications,CZ999-South East Region,ATOS IT SERVICES UK LTD,2937830,"4,257.32 ","Chichester Combined Court - ATOS - PDNURG10, Urgent Power Down Request for DISC connected site with on site engineer assistance required - ID: 229964"
Ministry of Justice,HMCTS,29-Aug-14 ,265000-IT & Telecommunications,DZ999-South West Region,ATOS IT SERVICES UK LTD,2961147,5.00 ,USB Extender cable
Ministry of Justice,HMCTS,29-Aug-14 ,265000-IT & Telecommunications,DZ999-South West Region,ATOS IT SERVICES UK LTD,2961147,5.00 ,USB Extender cable
Ministry of Justice,HMCTS,29-Aug-14 ,265000-IT & Telecommunications,DZ999-South West Region,ATOS IT SERVICES UK LTD,2961147,8.07 ,VGA Monitor Extension Cable
Ministry of Justice,HMCTS,29-Aug-14 ,265000-IT & Telecommunications,DZ999-South West Region,ATOS IT SERVICES UK LTD,2961147,8.07 ,SW DISC 1048  _ VGA Monitor Extension Cable
Ministry of Justice,HMCTS,29-Aug-14 ,265000-IT & Telecommunications,DZ999-South West Region,ATOS IT SERVICES UK LTD,2961147,8.80 ,Plantronics U10P-S19 Bottom Cable  1-11 devices
Ministry of Justice,HMCTS,29-Aug-14 ,265000-IT & Telecommunications,DZ999-South West Region,ATOS IT SERVICES UK LTD,2961147,8.80 ,Plantronics U10P-S19 Bottom Cable  1-11 devices
Ministry of Justice,HMCTS,05-Aug-14 ,265000-IT & Telecommunications,DZ999-South West Region,ATOS IT SERVICES UK LTD,2937830,11.16 ,SW DISC 1107 _ HP Standard USB Keyboard
Ministry of Justice,HMCTS,05-Aug-14 ,265000-IT & Telecommunications,DZ999-South West Region,ATOS IT SERVICES UK LTD,2937830,24.25 ,Laptop Security Device with Key lock
Ministry of Justice,HMCTS,05-Aug-14 ,265000-IT & Telecommunications,DZ999-South West Region,ATOS IT SERVICES UK LTD,2937830,24.25 ,Laptop Security Device with Key lock
Ministry of Justice,HMCTS,29-Aug-14 ,265000-IT & Telecommunications,DZ999-South West Region,ATOS IT SERVICES UK LTD,2961147,25.00 ,SW DISC 1020 _ 10m Network Cable
Ministry of Justice,HMCTS,05-Aug-14 ,265000-IT & Telecommunications,DZ999-South West Region,ATOS IT SERVICES UK LTD,2937830,25.78 ,Fixed Handset Conversion to Mobility Handset & Mobility Account 1 - 11 devices
Ministry of Justice,HMCTS,05-Aug-14 ,265000-IT & Telecommunications,DZ999-South West Region,ATOS IT SERVICES UK LTD,2937830,25.78 ,Hunt Group Working 1-10 Instances
Ministry of Justice,HMCTS,05-Aug-14 ,265000-IT & Telecommunications,DZ999-South West Region,ATOS IT SERVICES UK LTD,2937830,25.78 ,External Calls 1-10 Devices
Ministry of Justice,HMCTS,05-Aug-14 ,265000-IT & Telecommunications,DZ999-South West Region,ATOS IT SERVICES UK LTD,2937830,25.78 ,SW DISC 1006 _ Hunt Group Working 1-10 Instances
Ministry of Justice,HMCTS,05-Aug-14 ,265000-IT & Telecommunications,DZ999-South West Region,ATOS IT SERVICES UK LTD,2937830,25.78 ,SW DISC 1014 _ Mobility Handset Conversion to Fixed Handset with new user details 1- 11 devices
Ministry of Justice,HMCTS,05-Aug-14 ,265000-IT & Telecommunications,DZ999-South West Region,ATOS IT SERVICES UK LTD,2937830,25.78 ,SW DISC 1015 _ Hunt Group Working 1-10 Instances
Ministry of Justice,HMCTS,05-Aug-14 ,265000-IT & Telecommunications,DZ999-South West Region,ATOS IT SERVICES UK LTD,2937830,25.78 ,Fixed IPT Phone Change 1-10 Devices
Ministry of Justice,HMCTS,05-Aug-14 ,265000-IT & Telecommunications,DZ999-South West Region,ATOS IT SERVICES UK LTD,2937830,25.78 ,Pick Up Groups 1-10 Devices
Ministry of Justice,HMCTS,29-Aug-14 ,265000-IT & Telecommunications,DZ999-South West Region,ATOS IT SERVICES UK LTD,2961147,25.78 ,External Calls 1-10 Devices
Ministry of Justice,HMCTS,29-Aug-14 ,265000-IT & Telecommunications,DZ999-South West Region,ATOS IT SERVICES UK LTD,2961147,25.78 ,Hunt Group 1-10 Instances
Ministry of Justice,HMCTS,29-Aug-14 ,265000-IT & Telecommunications,DZ999-South West Region,ATOS IT SERVICES UK LTD,2961147,25.78 ,Mobility Handset Conversion to Fixed Handset with new user details 1- 11 devices
Ministry of Justice,HMCTS,05-Aug-14 ,265000-IT & Telecommunications,DZ999-South West Region,ATOS IT SERVICES UK LTD,2937830,37.45 ,SW DISC 1011 _ Relocation of 2-5 desktop client devices within the same building
Ministry of Justice,HMCTS,05-Aug-14 ,265000-IT & Telecommunications,DZ999-South West Region,ATOS IT SERVICES UK LTD,2937830,46.00 ,Provision and support of Secure Remote Access (RWSII) Capability
Ministry of Justice,HMCTS,05-Aug-14 ,265000-IT & Telecommunications,DZ999-South West Region,ATOS IT SERVICES UK LTD,2937830,46.00 ,SW DISC 1010_ Provision and support of Secure Remote Access (RWSII) Capability
Ministry of Justice,HMCTS,05-Aug-14 ,265000-IT & Telecommunications,DZ999-South West Region,ATOS IT SERVICES UK LTD,2937830,46.00 ,SW DISC 1013 _ Provision and support of Secure Remote Access (RWSII) Capability
Ministry of Justice,HMCTS,05-Aug-14 ,265000-IT & Telecommunications,DZ999-South West Region,ATOS IT SERVICES UK LTD,2937830,51.56 ,Hunt Group Working 1-10 Instances
Ministry of Justice,HMCTS,29-Aug-14 ,265000-IT & Telecommunications,DZ999-South West Region,ATOS IT SERVICES UK LTD,2961147,51.56 ,External Calls 1-10 Accounts
Ministry of Justice,HMCTS,29-Aug-14 ,265000-IT & Telecommunications,DZ999-South West Region,ATOS IT SERVICES UK LTD,2961147,56.55 ,Auto Attendant - Message Annoucement - Amend Static Message Announcement
Ministry of Justice,HMCTS,29-Aug-14 ,265000-IT & Telecommunications,DZ999-South West Region,ATOS IT SERVICES UK LTD,2961147,56.55 ,Auto Attendant - Message Prompt Menu - Amend Static Message Prompt Menu
Ministry of Justice,HMCTS,05-Aug-14 ,265000-IT & Telecommunications,DZ999-South West Region,ATOS IT SERVICES UK LTD,2937830,67.31 ,Plantronics HW251 A Mono Headset 1-11 devices
Ministry of Justice,HMCTS,05-Aug-14 ,265000-IT & Telecommunications,DZ999-South West Region,ATOS IT SERVICES UK LTD,2937830,76.90 ,"Docking Station for 2540p,2560p and 2570p laptop"
Ministry of Justice,HMCTS,05-Aug-14 ,265000-IT & Telecommunications,DZ999-South West Region,ATOS IT SERVICES UK LTD,2937830,92.44 ,SW DISC 1107 _ Humanscale M2 Monitor Arm
Ministry of Justice,HMCTS,05-Aug-14 ,265000-IT & Telecommunications,DZ999-South West Region,ATOS IT SERVICES UK LTD,2937830,103.12 ,Fixed IPT Phone Transfer to a new user 1-10 Devices
Ministry of Justice,HMCTS,29-Aug-14 ,265000-IT & Telecommunications,DZ999-South West Region,ATOS IT SERVICES UK LTD,2961147,113.16 ,"HP 230W Docking Station for 8440p, 8540p, 8460p, 8560p, 8470p and 8570p laptops"
Ministry of Justice,HMCTS,29-Aug-14 ,265000-IT & Telecommunications,DZ999-South West Region,ATOS IT SERVICES UK LTD,2961147,113.28 ,Diverse 7110 R 1-11 devices
Ministry of Justice,HMCTS,05-Aug-14 ,265000-IT & Telecommunications,DZ999-South West Region,ATOS IT SERVICES UK LTD,2937830,116.00 ,Relocation of a single desktop client device to a different building.
Ministry of Justice,HMCTS,29-Aug-14 ,265000-IT & Telecommunications,DZ999-South West Region,ATOS IT SERVICES UK LTD,2961147,120.69 ,Relocation of a single desktop client device to a different building
Ministry of Justice,HMCTS,05-Aug-14 ,265000-IT & Telecommunications,DZ999-South West Region,ATOS IT SERVICES UK LTD,2937830,144.00 ,SW DISC 1002 _ Relocation of 2 desktop client devices to a different building.
Ministry of Justice,HMCTS,29-Aug-14 ,265000-IT & Telecommunications,DZ999-South West Region,ATOS IT SERVICES UK LTD,2961147,144.00 ,SW DISC 1021 _Relocation of 2 desktop client devices to a different building.
Ministry of Justice,HMCTS,29-Aug-14 ,265000-IT & Telecommunications,DZ999-South West Region,ATOS IT SERVICES UK LTD,2961147,144.00 ,Relocation of 2 desktop client devices to a different building.
Ministry of Justice,HMCTS,05-Aug-14 ,265000-IT & Telecommunications,DZ999-South West Region,ATOS IT SERVICES UK LTD,2937830,154.68 ,Fixed IPT Phone Transfer to a new user 11-20 Devices
Ministry of Justice,HMCTS,05-Aug-14 ,265000-IT & Telecommunications,DZ999-South West Region,ATOS IT SERVICES UK LTD,2937830,156.52 ,Plantronics HW261 A Duo Headset 1-11 devices
Ministry of Justice,HMCTS,29-Aug-14 ,265000-IT & Telecommunications,DZ999-South West Region,ATOS IT SERVICES UK LTD,2961147,226.32 ,"HP 230W Docking Station for 8440p, 8540p, 8460p, 8560p, 8470p and 8570p laptops"
Ministry of Justice,HMCTS,05-Aug-14 ,265000-IT & Telecommunications,DZ999-South West Region,ATOS IT SERVICES UK LTD,2937830,257.80 ,Fixed IPT Phone Transfer to a new user 1-10 Devices
Ministry of Justice,HMCTS,05-Aug-14 ,265000-IT & Telecommunications,DZ999-South West Region,ATOS IT SERVICES UK LTD,2937830,257.80 ,External Calls 11-20 Accounts
Ministry of Justice,HMCTS,29-Aug-14 ,265000-IT & Telecommunications,DZ999-South West Region,ATOS IT SERVICES UK LTD,2961147,302.82 ,PMD620 Handheld Recorder
Ministry of Justice,HMCTS,29-Aug-14 ,265000-IT & Telecommunications,DZ999-South West Region,ATOS IT SERVICES UK LTD,2961147,302.82 ,PMD620 Handheld Recorder
Ministry of Justice,HMCTS,29-Aug-14 ,265000-IT & Telecommunications,DZ999-South West Region,ATOS IT SERVICES UK LTD,2961147,309.00 ,Polycom Soundstation 2 Conference Phone 1-11 devices
Ministry of Justice,HMCTS,29-Aug-14 ,265000-IT & Telecommunications,DZ999-South West Region,ATOS IT SERVICES UK LTD,2961147,336.55 ,Plantronics HW251 A Mono Headset 1-11 devices
Ministry of Justice,HMCTS,29-Aug-14 ,265000-IT & Telecommunications,DZ999-South West Region,ATOS IT SERVICES UK LTD,2961147,336.55 ,Plantronics HW251 A Mono Headset 1-11 devices
Ministry of Justice,HMCTS,05-Aug-14 ,265000-IT & Telecommunications,DZ999-South West Region,ATOS IT SERVICES UK LTD,2937830,416.16 ,1 to 5 Devices Local Relocation (same Authority Premises) -  Printer or MFD
Ministry of Justice,HMCTS,29-Aug-14 ,265000-IT & Telecommunications,DZ999-South West Region,ATOS IT SERVICES UK LTD,2961147,416.16 ,1 to 5 Devices Local Relocation (same Authority Premises) -  Printer or MFD
Ministry of Justice,HMCTS,29-Aug-14 ,265000-IT & Telecommunications,DZ999-South West Region,ATOS IT SERVICES UK LTD,2961147,417.30 ,SW DISC 1020 _ Plantronics HW251 N Mono Headset 1-11 devices
Ministry of Justice,HMCTS,05-Aug-14 ,265000-IT & Telecommunications,DZ999-South West Region,ATOS IT SERVICES UK LTD,2937830,650.00 ,Recovery of a redundant IPT handset from site 1-11 devices
Ministry of Justice,HMCTS,05-Aug-14 ,265000-IT & Telecommunications,DZ999-South West Region,ATOS IT SERVICES UK LTD,2937830,859.37 ,Standard Power Down Request for DISC connected site with no site engineer assistance required
Ministry of Justice,HMCTS,05-Aug-14 ,265000-IT & Telecommunications,DZ999-South West Region,ATOS IT SERVICES UK LTD,2937830,860.00 ,SW DISC 1001 _ 1 to 5 Devices Xerox A4 Black & White Laser Printer 3600EDN
Ministry of Justice,HMCTS,05-Aug-14 ,265000-IT & Telecommunications,EZ999-Wales Region,ATOS IT SERVICES UK LTD,2937830,25.78 ,Telecomm Hunt Group Working 21-50 Instances
Ministry of Justice,HMCTS,05-Aug-14 ,265000-IT & Telecommunications,EZ999-Wales Region,ATOS IT SERVICES UK LTD,2937830,25.78 ,Telecomm Pick Up Groups 1-10 Devices
Ministry of Justice,HMCTS,05-Aug-14 ,265000-IT & Telecommunications,EZ999-Wales Region,ATOS IT SERVICES UK LTD,2937830,25.78 ,New Internet Protocol Telephony Mobility account without voicemail 11-20 Devices
Ministry of Justice,HMCTS,05-Aug-14 ,265000-IT & Telecommunications,EZ999-Wales Region,ATOS IT SERVICES UK LTD,2937830,25.78 ,Fixed Internet Protocol Telephony Phone Transfer to a new user 1-10 Devices.
Ministry of Justice,HMCTS,05-Aug-14 ,265000-IT & Telecommunications,EZ999-Wales Region,ATOS IT SERVICES UK LTD,2937830,25.78 ,Fixed Internet Protocol Telephony Phone Transfer to a new user 1-10 Devices
Ministry of Justice,HMCTS,29-Aug-14 ,265000-IT & Telecommunications,EZ999-Wales Region,ATOS IT SERVICES UK LTD,2961147,25.78 ,Telecomm Hunt Group Working 1-10 Instances
Ministry of Justice,HMCTS,29-Aug-14 ,265000-IT & Telecommunications,EZ999-Wales Region,ATOS IT SERVICES UK LTD,2961147,25.78 ,Telecomm Hunt Group Working 1-10 Instances
Ministry of Justice,HMCTS,05-Aug-14 ,265000-IT & Telecommunications,EZ999-Wales Region,ATOS IT SERVICES UK LTD,2937830,43.22 ,Bridgend Law Courts - USB headset
Ministry of Justice,HMCTS,05-Aug-14 ,265000-IT & Telecommunications,EZ999-Wales Region,ATOS IT SERVICES UK LTD,2937830,77.34 ,Telecomm Hunt Group Working 1-10 Instances
Ministry of Justice,HMCTS,05-Aug-14 ,265000-IT & Telecommunications,EZ999-Wales Region,ATOS IT SERVICES UK LTD,2937830,103.12 ,Telecomm Pick Up Groups 1-10 Devices
Ministry of Justice,HMCTS,29-Aug-14 ,265000-IT & Telecommunications,EZ999-Wales Region,ATOS IT SERVICES UK LTD,2961147,103.12 ,Fixed Internet Protocol Telephony Phone Transfer to a new user 1-10 Devices
Ministry of Justice,HMCTS,29-Aug-14 ,265000-IT & Telecommunications,EZ999-Wales Region,ATOS IT SERVICES UK LTD,2961147,111.45 ,"Replace faulty / non-faulty, out-of-contract mobile phone device"
Ministry of Justice,HMCTS,29-Aug-14 ,265000-IT & Telecommunications,EZ999-Wales Region,ATOS IT SERVICES UK LTD,2961147,128.90 ,Fixed Internet Protocol Telephony Phone Transfer to a new user 1-10 Devices
Ministry of Justice,HMCTS,05-Aug-14 ,265000-IT & Telecommunications,EZ999-Wales Region,ATOS IT SERVICES UK LTD,2937830,144.00 ,Relocation of 2 desktop client devices to a different building.
Ministry of Justice,HMCTS,05-Aug-14 ,265000-IT & Telecommunications,EZ999-Wales Region,ATOS IT SERVICES UK LTD,2937830,230.45 ,"HMCTS Welsh Language Unit  - 19"" LCD Monitor, multi media monitor with speakers."
Ministry of Justice,HMCTS,05-Aug-14 ,265000-IT & Telecommunications,EZ999-Wales Region,ATOS IT SERVICES UK LTD,2937830,265.63 ,Bridgend Law Courts - Speech Recognition Software
Ministry of Justice,HMCTS,29-Aug-14 ,265000-IT & Telecommunications,EZ999-Wales Region,ATOS IT SERVICES UK LTD,2961147,859.37 ,"Standard Power Down Request, with no site engineer assistance required."
Ministry of Justice,HMCTS,29-Aug-14 ,265000-IT & Telecommunications,EZ999-Wales Region,ATOS IT SERVICES UK LTD,2961147,988.80 ,Information Communications Technology Network Services (New Low Start Option - 2 Channels)
Ministry of Justice,HMCTS,05-Aug-14 ,265000-IT & Telecommunications,EZ999-Wales Region,ATOS IT SERVICES UK LTD,2937830,"3,381.30 ",Ad-Hoc Information Communications Techonology - Labour and Materials
Ministry of Justice,HMCTS,05-Aug-14 ,265000-IT & Telecommunications,FZ999-Midlands Region,ATOS IT SERVICES UK LTD,2937830,5.26 ,Priory Courts - ATOS - New IPT Handset to be deployed on a desk where there is an existing DOM1 connected PC/Laptop but no existing phone 1-11 devices (Recurring Charge).
Ministry of Justice,HMCTS,29-Aug-14 ,265000-IT & Telecommunications,FZ999-Midlands Region,ATOS IT SERVICES UK LTD,2961147,6.38 ,HP USB/PS2 Optical Scroll Mouse
Ministry of Justice,HMCTS,29-Aug-14 ,265000-IT & Telecommunications,FZ999-Midlands Region,ATOS IT SERVICES UK LTD,2961147,8.80 ,Plantronics U10P-S19 Bottom Cable  1-11 devices
Ministry of Justice,HMCTS,05-Aug-14 ,265000-IT & Telecommunications,FZ999-Midlands Region,ATOS IT SERVICES UK LTD,2937830,10.92 ,Centre City Tower  - ATOS - Compact Keyboard
Ministry of Justice,HMCTS,05-Aug-14 ,265000-IT & Telecommunications,FZ999-Midlands Region,ATOS IT SERVICES UK LTD,2937830,11.17 ,MS Access
Ministry of Justice,HMCTS,29-Aug-14 ,265000-IT & Telecommunications,FZ999-Midlands Region,ATOS IT SERVICES UK LTD,2961147,14.13 ,Kensington Orbit Optical Trackball
Ministry of Justice,HMCTS,29-Aug-14 ,265000-IT & Telecommunications,FZ999-Midlands Region,ATOS IT SERVICES UK LTD,2961147,15.14 ,Mini Keypad
Ministry of Justice,HMCTS,05-Aug-14 ,265000-IT & Telecommunications,FZ999-Midlands Region,ATOS IT SERVICES UK LTD,2937830,17.60 ,Priory Courts - ATOS - Replacement/Spare Plantronics U10P-S19 Bottom Cable 1-11 devices.
Ministry of Justice,HMCTS,29-Aug-14 ,265000-IT & Telecommunications,FZ999-Midlands Region,ATOS IT SERVICES UK LTD,2961147,18.33 ,Low-noise / soft touch keyboard
Ministry of Justice,HMCTS,05-Aug-14 ,265000-IT & Telecommunications,FZ999-Midlands Region,ATOS IT SERVICES UK LTD,2937830,25.78 ,External Calls 1-10 Devices
Ministry of Justice,HMCTS,05-Aug-14 ,265000-IT & Telecommunications,FZ999-Midlands Region,ATOS IT SERVICES UK LTD,2937830,25.78 ,New IPT Mobility account with voicemail account 11-20 Accounts
Ministry of Justice,HMCTS,05-Aug-14 ,265000-IT & Telecommunications,FZ999-Midlands Region,ATOS IT SERVICES UK LTD,2937830,25.78 ,Fixed Handset Conversion to Mobility Handset & Mobility Account 1 - 11 devices
Ministry of Justice,HMCTS,05-Aug-14 ,265000-IT & Telecommunications,FZ999-Midlands Region,ATOS IT SERVICES UK LTD,2937830,25.78 ,External Calls 1-10 Devices
Ministry of Justice,HMCTS,05-Aug-14 ,265000-IT & Telecommunications,FZ999-Midlands Region,ATOS IT SERVICES UK LTD,2937830,25.78 ,Centre City Tower - ATOS - External Calls 11-20 Accounts
Ministry of Justice,HMCTS,05-Aug-14 ,265000-IT & Telecommunications,FZ999-Midlands Region,ATOS IT SERVICES UK LTD,2937830,25.78 ,Priory Courts - ATOS - External Calls 1-10 Devices
Ministry of Justice,HMCTS,05-Aug-14 ,265000-IT & Telecommunications,FZ999-Midlands Region,ATOS IT SERVICES UK LTD,2937830,25.78 ,Worcester Combined Court - ATOS - Fixed IPT Phone Change 1-10 Devices.
Ministry of Justice,HMCTS,05-Aug-14 ,265000-IT & Telecommunications,FZ999-Midlands Region,ATOS IT SERVICES UK LTD,2937830,25.78 ,External Calls 1-10 Accounts
Ministry of Justice,HMCTS,05-Aug-14 ,265000-IT & Telecommunications,FZ999-Midlands Region,ATOS IT SERVICES UK LTD,2937830,25.78 ,Wolverhampton Magistates Court - ATOS - Provision of voicemail 1-10 Accounts.
Ministry of Justice,HMCTS,05-Aug-14 ,265000-IT & Telecommunications,FZ999-Midlands Region,ATOS IT SERVICES UK LTD,2937830,25.78 ,Priory Courts - ATOS - Mobility Handset Conversion to Fixed Handset & Import existing Mobility profile 1- 11 devices.
Ministry of Justice,HMCTS,05-Aug-14 ,265000-IT & Telecommunications,FZ999-Midlands Region,ATOS IT SERVICES UK LTD,2937830,25.78 ,Fixed IPT Phone Change 1-10 Devices
Ministry of Justice,HMCTS,29-Aug-14 ,265000-IT & Telecommunications,FZ999-Midlands Region,ATOS IT SERVICES UK LTD,2961147,25.78 ,New IPT Mobility account without voicemail 11-20 Devices
Ministry of Justice,HMCTS,29-Aug-14 ,265000-IT & Telecommunications,FZ999-Midlands Region,ATOS IT SERVICES UK LTD,2961147,25.78 ,Mobility Handset Conversion to Fixed Handset & Import existing Mobility profile 1- 11 devices
Ministry of Justice,HMCTS,29-Aug-14 ,265000-IT & Telecommunications,FZ999-Midlands Region,ATOS IT SERVICES UK LTD,2961147,25.78 ,External Calls 1-10 Devices
Ministry of Justice,HMCTS,05-Aug-14 ,265000-IT & Telecommunications,FZ999-Midlands Region,ATOS IT SERVICES UK LTD,2937830,29.67 ,Converse 2100 1 -11 devices
Ministry of Justice,HMCTS,29-Aug-14 ,265000-IT & Telecommunications,FZ999-Midlands Region,ATOS IT SERVICES UK LTD,2961147,30.00 ,5m Network Cable
Ministry of Justice,HMCTS,05-Aug-14 ,265000-IT & Telecommunications,FZ999-Midlands Region,ATOS IT SERVICES UK LTD,2937830,33.33 ,Space Saving Mini Keyboard
Ministry of Justice,HMCTS,29-Aug-14 ,265000-IT & Telecommunications,FZ999-Midlands Region,ATOS IT SERVICES UK LTD,2961147,33.33 ,Space Saving Mini Keyboard
Ministry of Justice,HMCTS,29-Aug-14 ,265000-IT & Telecommunications,FZ999-Midlands Region,ATOS IT SERVICES UK LTD,2961147,43.22 ,IMMIGRATION TRIBUNALS NOTTINGHAM MAGISTRATES  - ATOS - Andrea NC181VM USB headset
Ministry of Justice,HMCTS,05-Aug-14 ,265000-IT & Telecommunications,FZ999-Midlands Region,ATOS IT SERVICES UK LTD,2937830,46.00 ,Provision and support of Secure Remote Access (RWSII) Capability
Ministry of Justice,HMCTS,05-Aug-14 ,265000-IT & Telecommunications,FZ999-Midlands Region,ATOS IT SERVICES UK LTD,2937830,46.00 ,HMCTS - ATOS -  Provision and support of Secure Remote Access (RWSII) Capability.
Ministry of Justice,HMCTS,29-Aug-14 ,265000-IT & Telecommunications,FZ999-Midlands Region,ATOS IT SERVICES UK LTD,2961147,46.00 ,Provision and support of Secure Remote Access (RWSII) Capability
Ministry of Justice,HMCTS,05-Aug-14 ,265000-IT & Telecommunications,FZ999-Midlands Region,ATOS IT SERVICES UK LTD,2937830,54.99 ,Low-noise / soft touch keyboard
Ministry of Justice,HMCTS,05-Aug-14 ,265000-IT & Telecommunications,FZ999-Midlands Region,ATOS IT SERVICES UK LTD,2937830,56.55 ,Auto Attendant - Message Prompt Option - Amend Option destination
Ministry of Justice,HMCTS,29-Aug-14 ,265000-IT & Telecommunications,FZ999-Midlands Region,ATOS IT SERVICES UK LTD,2961147,56.55 ,Auto Attendant - Message Prompt Option - Add new Option to an existing Message Prompt Menu
Ministry of Justice,HMCTS,29-Aug-14 ,265000-IT & Telecommunications,FZ999-Midlands Region,ATOS IT SERVICES UK LTD,2961147,56.55 ,Auto Attendant - Message Prompt Option - Amend Option destination
Ministry of Justice,HMCTS,05-Aug-14 ,265000-IT & Telecommunications,FZ999-Midlands Region,ATOS IT SERVICES UK LTD,2937830,60.34 ,Desktop PC - HP DC8300
Ministry of Justice,HMCTS,29-Aug-14 ,265000-IT & Telecommunications,FZ999-Midlands Region,ATOS IT SERVICES UK LTD,2961147,60.34 ,Relocation of a single desktop client device within the same building
Ministry of Justice,HMCTS,05-Aug-14 ,265000-IT & Telecommunications,FZ999-Midlands Region,ATOS IT SERVICES UK LTD,2937830,83.96 ,Evoluent Vertical Mouse
Ministry of Justice,HMCTS,29-Aug-14 ,265000-IT & Telecommunications,FZ999-Midlands Region,ATOS IT SERVICES UK LTD,2961147,85.87 ,X-Kryptor Client software installation
Ministry of Justice,HMCTS,05-Aug-14 ,265000-IT & Telecommunications,FZ999-Midlands Region,ATOS IT SERVICES UK LTD,2937830,92.44 ,Centre City Tower  - ATOS - Humanscale M2 Monitor Arm
Ministry of Justice,HMCTS,05-Aug-14 ,265000-IT & Telecommunications,FZ999-Midlands Region,ATOS IT SERVICES UK LTD,2937830,99.88 ,Plantronics HW261 N Duo Headset 1-11 devices
Ministry of Justice,HMCTS,29-Aug-14 ,265000-IT & Telecommunications,FZ999-Midlands Region,ATOS IT SERVICES UK LTD,2961147,113.16 ,"HP 230W Docking Station for 8440p, 8540p, 8460p, 8560p, 8470p and 8570p laptops"
Ministry of Justice,HMCTS,29-Aug-14 ,265000-IT & Telecommunications,FZ999-Midlands Region,ATOS IT SERVICES UK LTD,2961147,120.68 ,Desktop PC - HP DC8300
Ministry of Justice,HMCTS,05-Aug-14 ,265000-IT & Telecommunications,FZ999-Midlands Region,ATOS IT SERVICES UK LTD,2937830,181.02 ,Desktop PC - HP DC8300
Ministry of Justice,HMCTS,29-Aug-14 ,265000-IT & Telecommunications,FZ999-Midlands Region,ATOS IT SERVICES UK LTD,2961147,230.72 ,New PSTN Line
Ministry of Justice,HMCTS,29-Aug-14 ,265000-IT & Telecommunications,FZ999-Midlands Region,ATOS IT SERVICES UK LTD,2961147,241.36 ,Desktop PC - HP DC8300
Ministry of Justice,HMCTS,05-Aug-14 ,265000-IT & Telecommunications,FZ999-Midlands Region,ATOS IT SERVICES UK LTD,2937830,309.00 ,North Staffordshire Justice Centre - ATOS - Remove CLI Option 1.
Ministry of Justice,HMCTS,29-Aug-14 ,265000-IT & Telecommunications,FZ999-Midlands Region,ATOS IT SERVICES UK LTD,2961147,309.00 ,Provide CLI Option 2
Ministry of Justice,HMCTS,05-Aug-14 ,265000-IT & Telecommunications,FZ999-Midlands Region,ATOS IT SERVICES UK LTD,2937830,339.30 ,Modify Existing Call Flow Change to Option Destination
Ministry of Justice,HMCTS,29-Aug-14 ,265000-IT & Telecommunications,FZ999-Midlands Region,ATOS IT SERVICES UK LTD,2961147,360.00 ,Auto Attendant - Amend existing Auto Attendant Call Flow
Ministry of Justice,HMCTS,29-Aug-14 ,265000-IT & Telecommunications,FZ999-Midlands Region,ATOS IT SERVICES UK LTD,2961147,360.00 ,Auto Attendant - Amend existing Auto Attendant Call Flow
Ministry of Justice,HMCTS,05-Aug-14 ,265000-IT & Telecommunications,FZ999-Midlands Region,ATOS IT SERVICES UK LTD,2937830,416.16 ,1 to 5 Devices Local Relocation (same Authority Premises) -  Printer or MFD
Ministry of Justice,HMCTS,05-Aug-14 ,265000-IT & Telecommunications,FZ999-Midlands Region,ATOS IT SERVICES UK LTD,2937830,416.16 ,1 to 5 Devices Local Relocation (same Authority Premises) -  Printer or MFD
Ministry of Justice,HMCTS,29-Aug-14 ,265000-IT & Telecommunications,FZ999-Midlands Region,ATOS IT SERVICES UK LTD,2961147,859.37 ,Leicester County Court - ATOS - Standard Power Down Request for DISC connected site (no site engineer assistance required).
Ministry of Justice,HMCTS,29-Aug-14 ,265000-IT & Telecommunications,FZ999-Midlands Region,ATOS IT SERVICES UK LTD,2961147,860.00 ,1 to 5 Devices Xerox A4 Black & White Laser Printer 3600EDN
Ministry of Justice,HMCTS,05-Aug-14 ,265000-IT & Telecommunications,FZ999-Midlands Region,ATOS IT SERVICES UK LTD,2937830,"2,580.00 ",1 to 5 Devices Xerox A4 Black & White Laser Printer 3600EDN
Ministry of Justice,HMCTS,05-Aug-14 ,265000-IT & Telecommunications,GZ999-North West Region,ATOS IT SERVICES UK LTD,2937830,5.00 ,3M USB Device Cable
Ministry of Justice,HMCTS,05-Aug-14 ,265000-IT & Telecommunications,GZ999-North West Region,ATOS IT SERVICES UK LTD,2937830,5.00 ,3M USB Device Cable
Ministry of Justice,HMCTS,29-Aug-14 ,265000-IT & Telecommunications,GZ999-North West Region,ATOS IT SERVICES UK LTD,2961147,5.00 ,AO-Carlisle Mags-3M USB Device Cable-DISC-ID251694
Ministry of Justice,HMCTS,29-Aug-14 ,265000-IT & Telecommunications,GZ999-North West Region,ATOS IT SERVICES UK LTD,2961147,5.00 ,AO-Carlisle Mags-Pack of two USB Device Cables 1M-DISC-ID251694
Ministry of Justice,HMCTS,05-Aug-14 ,265000-IT & Telecommunications,GZ999-North West Region,ATOS IT SERVICES UK LTD,2937830,6.19 ,1.5m Network Cable (Pack of 3)
Ministry of Justice,HMCTS,29-Aug-14 ,265000-IT & Telecommunications,GZ999-North West Region,ATOS IT SERVICES UK LTD,2961147,6.38 ,AO-Manchester CJC-HP USB/PS2 Optical Scroll Mouse-DISC-ID247091
Ministry of Justice,HMCTS,05-Aug-14 ,265000-IT & Telecommunications,GZ999-North West Region,ATOS IT SERVICES UK LTD,2937830,11.62 ,MS Visio Std
Ministry of Justice,HMCTS,05-Aug-14 ,265000-IT & Telecommunications,GZ999-North West Region,ATOS IT SERVICES UK LTD,2937830,25.78 ,Hunt Group Working 1-10 Instances
Ministry of Justice,HMCTS,05-Aug-14 ,265000-IT & Telecommunications,GZ999-North West Region,ATOS IT SERVICES UK LTD,2937830,25.78 ,AO-Preston Mags-External Calls 1-10 Devices-DISC
Ministry of Justice,HMCTS,05-Aug-14 ,265000-IT & Telecommunications,GZ999-North West Region,ATOS IT SERVICES UK LTD,2937830,25.78 ,AO-Tameside Mags-Provision of voicemail 1-10 Accounts-DISC
Ministry of Justice,HMCTS,29-Aug-14 ,265000-IT & Telecommunications,GZ999-North West Region,ATOS IT SERVICES UK LTD,2961147,25.78 ,AO-Blackburn County-External Calls 11-20 Accounts-DISC
Ministry of Justice,HMCTS,29-Aug-14 ,265000-IT & Telecommunications,GZ999-North West Region,ATOS IT SERVICES UK LTD,2961147,25.78 ,AO Chester County - Mobility Account Changes 1-10 Accounts - DISC
Ministry of Justice,HMCTS,29-Aug-14 ,265000-IT & Telecommunications,GZ999-North West Region,ATOS IT SERVICES UK LTD,2961147,25.78 ,Provision of voicemail 1-10 Accounts
Ministry of Justice,HMCTS,29-Aug-14 ,265000-IT & Telecommunications,GZ999-North West Region,ATOS IT SERVICES UK LTD,2961147,25.78 ,Fixed IPT Phone Change 1-10 Devices
Ministry of Justice,HMCTS,05-Aug-14 ,265000-IT & Telecommunications,GZ999-North West Region,ATOS IT SERVICES UK LTD,2937830,26.66 ,Request a headset - Olympus E62 - for use with Olympus transcription software (play back of Olympus Digital Voice Recorder recordings)
Ministry of Justice,HMCTS,29-Aug-14 ,265000-IT & Telecommunications,GZ999-North West Region,ATOS IT SERVICES UK LTD,2961147,31.31 ,AO-Manchester CJC-Ergonomic Keyboard [Microsoft Natural MultiMedia]-DISC-ID247091
Ministry of Justice,HMCTS,05-Aug-14 ,265000-IT & Telecommunications,GZ999-North West Region,ATOS IT SERVICES UK LTD,2937830,37.45 ,Relocation of 2-5 desktop client devices within the same building
Ministry of Justice,HMCTS,05-Aug-14 ,265000-IT & Telecommunications,GZ999-North West Region,ATOS IT SERVICES UK LTD,2937830,43.22 ,Andrea NC181VM USB headset
Ministry of Justice,HMCTS,05-Aug-14 ,265000-IT & Telecommunications,GZ999-North West Region,ATOS IT SERVICES UK LTD,2937830,43.22 ,Andrea NC181VM USB headset
Ministry of Justice,HMCTS,05-Aug-14 ,265000-IT & Telecommunications,GZ999-North West Region,ATOS IT SERVICES UK LTD,2937830,46.00 ,Provision and support of Secure Remote Access (RWSII) Capability
Ministry of Justice,HMCTS,05-Aug-14 ,265000-IT & Telecommunications,GZ999-North West Region,ATOS IT SERVICES UK LTD,2937830,46.22 ,Request Olympus dictation and transcription software for a user.  Does not include Olympus Digital Professional Dictation Solution - DS-7000
Ministry of Justice,HMCTS,05-Aug-14 ,265000-IT & Telecommunications,GZ999-North West Region,ATOS IT SERVICES UK LTD,2937830,46.22 ,Request Olympus dictation and transcription software for a user.  Does not include Olympus Digital Professional Dictation Solution - DS-7000
Ministry of Justice,HMCTS,29-Aug-14 ,265000-IT & Telecommunications,GZ999-North West Region,ATOS IT SERVICES UK LTD,2961147,46.22 ,AO-Magistrates Advisory -Request Olympus dictation and transcription software for a user.  Does not include Olympus Digital Professional Dictation Solution - DS-7000-DISC
Ministry of Justice,HMCTS,05-Aug-14 ,265000-IT & Telecommunications,GZ999-North West Region,ATOS IT SERVICES UK LTD,2937830,55.15 ,Request a foot pedal - Olympus RS31 -  for use with Olympus transcription software (play back of Olympus Digital Voice Recorder recordings)
Ministry of Justice,HMCTS,05-Aug-14 ,265000-IT & Telecommunications,GZ999-North West Region,ATOS IT SERVICES UK LTD,2937830,56.55 ,Convert Existing Flexible Message to Static
Ministry of Justice,HMCTS,05-Aug-14 ,265000-IT & Telecommunications,GZ999-North West Region,ATOS IT SERVICES UK LTD,2937830,60.34 ,Desktop PC - HP DC8300
Ministry of Justice,HMCTS,29-Aug-14 ,265000-IT & Telecommunications,GZ999-North West Region,ATOS IT SERVICES UK LTD,2961147,60.34 ,AO-Bolton County-Desktop PC - HP DC8300-DISC-ID248996
Ministry of Justice,HMCTS,29-Aug-14 ,265000-IT & Telecommunications,GZ999-North West Region,ATOS IT SERVICES UK LTD,2961147,60.34 ,AO-Bolton County-Desktop PC - HP DC8300-DISC-ID248916
Ministry of Justice,HMCTS,05-Aug-14 ,265000-IT & Telecommunications,GZ999-North West Region,ATOS IT SERVICES UK LTD,2937830,62.62 ,Ergonomic Keyboard [Microsoft Natural MultiMedia]
Ministry of Justice,HMCTS,05-Aug-14 ,265000-IT & Telecommunications,GZ999-North West Region,ATOS IT SERVICES UK LTD,2937830,67.31 ,Plantronics HW251 A Mono Headset 12-30 devices
Ministry of Justice,HMCTS,05-Aug-14 ,265000-IT & Telecommunications,GZ999-North West Region,ATOS IT SERVICES UK LTD,2937830,67.31 ,Plantronics HW251 A Mono Headset 1-11 devices
Ministry of Justice,HMCTS,05-Aug-14 ,265000-IT & Telecommunications,GZ999-North West Region,ATOS IT SERVICES UK LTD,2937830,77.34 ,ATOS-Blackburn County-Hunt Group Working 1-10 Instances-DISC
Ministry of Justice,HMCTS,05-Aug-14 ,265000-IT & Telecommunications,GZ999-North West Region,ATOS IT SERVICES UK LTD,2937830,78.26 ,Reassign BlackBerry device within Business Unit
Ministry of Justice,HMCTS,29-Aug-14 ,265000-IT & Telecommunications,GZ999-North West Region,ATOS IT SERVICES UK LTD,2961147,82.78 ,AO-Preston Magistrates-BlackBerry (Vodafone)-DISC
Ministry of Justice,HMCTS,29-Aug-14 ,265000-IT & Telecommunications,GZ999-North West Region,ATOS IT SERVICES UK LTD,2961147,82.78 ,AO-NW Regional Support-BlackBerry (Vodafone)-DISC-ID250254
Ministry of Justice,HMCTS,29-Aug-14 ,265000-IT & Telecommunications,GZ999-North West Region,ATOS IT SERVICES UK LTD,2961147,92.70 ,Plantronics Vista Plus DM15 Acoustic Shock Adaptor 1-11 devices
Ministry of Justice,HMCTS,29-Aug-14 ,265000-IT & Telecommunications,GZ999-North West Region,ATOS IT SERVICES UK LTD,2961147,99.88 ,Plantronics HW261 N Duo Headset 1-11 devices
Ministry of Justice,HMCTS,05-Aug-14 ,265000-IT & Telecommunications,GZ999-North West Region,ATOS IT SERVICES UK LTD,2937830,113.16 ,"HP 230W Docking Station for 8440p, 8540p, 8460p, 8560p, 8470p and 8570p laptops"
Ministry of Justice,HMCTS,29-Aug-14 ,265000-IT & Telecommunications,GZ999-North West Region,ATOS IT SERVICES UK LTD,2961147,113.16 ,"HP 230W Docking Station for 8440p, 8540p, 8460p, 8560p, 8470p and 8570p laptops"
Ministry of Justice,HMCTS,29-Aug-14 ,265000-IT & Telecommunications,GZ999-North West Region,ATOS IT SERVICES UK LTD,2961147,120.68 ,AO-Bolton County-Desktop PC - HP DC8300-DISC-ID249003
Ministry of Justice,HMCTS,05-Aug-14 ,265000-IT & Telecommunications,GZ999-North West Region,ATOS IT SERVICES UK LTD,2937830,139.05 ,Plantronics CS540 Wireless Headset 1-11 devices
Ministry of Justice,HMCTS,29-Aug-14 ,265000-IT & Telecommunications,GZ999-North West Region,ATOS IT SERVICES UK LTD,2961147,153.80 ,"Docking Station for 2540p,2560p and 2570p laptop"
Ministry of Justice,HMCTS,29-Aug-14 ,265000-IT & Telecommunications,GZ999-North West Region,ATOS IT SERVICES UK LTD,2961147,164.00 ,AO-Manchester Civil Justice Centre-HMCTS Judicial Laptop-DISC-ID245586
Ministry of Justice,HMCTS,05-Aug-14 ,265000-IT & Telecommunications,GZ999-North West Region,ATOS IT SERVICES UK LTD,2937830,230.00 ,Provision and support of Secure Remote Access (RWSII) Capability
Ministry of Justice,HMCTS,05-Aug-14 ,265000-IT & Telecommunications,GZ999-North West Region,ATOS IT SERVICES UK LTD,2937830,269.24 ,Plantronics HW251 A Mono Headset 1-11 devices
Ministry of Justice,HMCTS,05-Aug-14 ,265000-IT & Telecommunications,GZ999-North West Region,ATOS IT SERVICES UK LTD,2937830,381.33 ,Olympus Digital Voice Recorder  - DS-7000 - new device
Ministry of Justice,HMCTS,05-Aug-14 ,265000-IT & Telecommunications,GZ999-North West Region,ATOS IT SERVICES UK LTD,2937830,416.16 ,AO-Barrow County Court-1 to 5 Devices Local Relocation (same Authority Premises) -  Printer or MFD-DISC
Ministry of Justice,HMCTS,05-Aug-14 ,265000-IT & Telecommunications,GZ999-North West Region,ATOS IT SERVICES UK LTD,2937830,416.16 ,1 to 5 Devices Local Relocation (same Authority Premises) -  Printer or MFD
Ministry of Justice,HMCTS,29-Aug-14 ,265000-IT & Telecommunications,GZ999-North West Region,ATOS IT SERVICES UK LTD,2961147,416.16 ,1 to 5 Devices Local Relocation (same Authority Premises) -  Printer or MFD
Ministry of Justice,HMCTS,05-Aug-14 ,265000-IT & Telecommunications,GZ999-North West Region,ATOS IT SERVICES UK LTD,2937830,488.99 ,1 to 5 Devices National Relocation -Printer or MFD (Multi Function Device)
Ministry of Justice,HMCTS,05-Aug-14 ,265000-IT & Telecommunications,GZ999-North West Region,ATOS IT SERVICES UK LTD,2937830,488.99 ,1 to 5 Devices National Relocation -Printer or MFD (Multi Function Device)
Ministry of Justice,HMCTS,05-Aug-14 ,265000-IT & Telecommunications,GZ999-North West Region,ATOS IT SERVICES UK LTD,2937830,488.99 ,1 to 5 Devices National Relocation -Printer or MFD (Multi Function Device)
Ministry of Justice,HMCTS,05-Aug-14 ,265000-IT & Telecommunications,GZ999-North West Region,ATOS IT SERVICES UK LTD,2937830,488.99 ,1 to 5 Devices National Relocation -Printer or MFD (Multi Function Device)
Ministry of Justice,HMCTS,29-Aug-14 ,265000-IT & Telecommunications,GZ999-North West Region,ATOS IT SERVICES UK LTD,2961147,736.00 ,Provision and support of Secure Remote Access (RWSII) Capability
Ministry of Justice,HMCTS,05-Aug-14 ,265000-IT & Telecommunications,GZ999-North West Region,ATOS IT SERVICES UK LTD,2937830,820.00 ,"Large Form Laptop - HP EliteBook 8570p (15.6"" screen)"
Ministry of Justice,HMCTS,05-Aug-14 ,265000-IT & Telecommunications,GZ999-North West Region,ATOS IT SERVICES UK LTD,2937830,860.00 ,1 to 5 Devices Xerox A4 Black & White Laser Printer 3600EDN
Ministry of Justice,HMCTS,05-Aug-14 ,265000-IT & Telecommunications,GZ999-North West Region,ATOS IT SERVICES UK LTD,2937830,860.00 ,AO-Liverpool Mags-1 to 5 Devices Xerox A4 Black & White Laser Printer 3600EDN-DISC
Ministry of Justice,HMCTS,29-Aug-14 ,265000-IT & Telecommunications,GZ999-North West Region,ATOS IT SERVICES UK LTD,2961147,"2,624.00 ","Large Form Laptop - HP EliteBook 8570p (15.6"" screen)"
Ministry of Justice,HMCTS,05-Aug-14 ,265000-IT & Telecommunications,HZ999-North East Region,ATOS IT SERVICES UK LTD,2937830,5.13 ,AO-Newton Aycliffe Mags-Standard Keyboard-DISC
Ministry of Justice,HMCTS,05-Aug-14 ,265000-IT & Telecommunications,HZ999-North East Region,ATOS IT SERVICES UK LTD,2937830,25.78 ,AO-Newcastle County-New IPT Mobility account with voicemail account 11-20 Accounts-DISC
Ministry of Justice,HMCTS,05-Aug-14 ,265000-IT & Telecommunications,HZ999-North East Region,ATOS IT SERVICES UK LTD,2937830,25.78 ,AO-Newcastle County-Deletion of a Mobility user account 1-10 Accounts-DISC
Ministry of Justice,HMCTS,29-Aug-14 ,265000-IT & Telecommunications,HZ999-North East Region,ATOS IT SERVICES UK LTD,2961147,25.78 ,AO-Sheffield Comb Court-Hunt Group Working 11-20 Instances-DISC-ID246743
Ministry of Justice,HMCTS,29-Aug-14 ,265000-IT & Telecommunications,HZ999-North East Region,ATOS IT SERVICES UK LTD,2961147,25.78 ,AO-Sheffield Comb Court-Hunt Group Working 11-20 Instances-DISC-ID246743
Ministry of Justice,HMCTS,29-Aug-14 ,265000-IT & Telecommunications,HZ999-North East Region,ATOS IT SERVICES UK LTD,2961147,25.78 ,AO-Sheffield CC-Hunt Group 1-10 Instances-DISC-ID248627
Ministry of Justice,HMCTS,29-Aug-14 ,265000-IT & Telecommunications,HZ999-North East Region,ATOS IT SERVICES UK LTD,2961147,25.78 ,AO-Sheffield-Hunt Group 11-20 Instances-DISC-ID248627
Ministry of Justice,HMCTS,29-Aug-14 ,265000-IT & Telecommunications,HZ999-North East Region,ATOS IT SERVICES UK LTD,2961147,25.78 ,AO-Bradford Cty-Hunt Group 1-10 Instances-DISC-ID248289
Ministry of Justice,HMCTS,29-Aug-14 ,265000-IT & Telecommunications,HZ999-North East Region,ATOS IT SERVICES UK LTD,2961147,25.78 ,Hunt Group 1-10 Instances
Ministry of Justice,HMCTS,29-Aug-14 ,265000-IT & Telecommunications,HZ999-North East Region,ATOS IT SERVICES UK LTD,2961147,25.78 ,External Calls 1-10 Accounts
Ministry of Justice,HMCTS,29-Aug-14 ,265000-IT & Telecommunications,HZ999-North East Region,ATOS IT SERVICES UK LTD,2961147,25.78 ,Pick Up Groups 1-10 Instances
Ministry of Justice,HMCTS,29-Aug-14 ,265000-IT & Telecommunications,HZ999-North East Region,ATOS IT SERVICES UK LTD,2961147,25.78 ,Hunt Group 1-10 Instances
Ministry of Justice,HMCTS,29-Aug-14 ,265000-IT & Telecommunications,HZ999-North East Region,ATOS IT SERVICES UK LTD,2961147,25.78 ,External Calls 1-10 Accounts
Ministry of Justice,HMCTS,29-Aug-14 ,265000-IT & Telecommunications,HZ999-North East Region,ATOS IT SERVICES UK LTD,2961147,25.78 ,Fixed Handset Conversion to Mobility Handset & Deletion of previous fixed user details 1 - 11 devices
Ministry of Justice,HMCTS,29-Aug-14 ,265000-IT & Telecommunications,HZ999-North East Region,ATOS IT SERVICES UK LTD,2961147,25.78 ,Fixed Handset Conversion to Mobility Handset & Mobility Account 1 - 11 devices
Ministry of Justice,HMCTS,29-Aug-14 ,265000-IT & Telecommunications,HZ999-North East Region,ATOS IT SERVICES UK LTD,2961147,25.78 ,AO-Halifax County-New IPT Mobility account with voicemail account 11-20 Accounts-DISC
Ministry of Justice,HMCTS,29-Aug-14 ,265000-IT & Telecommunications,HZ999-North East Region,ATOS IT SERVICES UK LTD,2961147,25.78 ,Hunt Group 1-10 Instances
Ministry of Justice,HMCTS,29-Aug-14 ,265000-IT & Telecommunications,HZ999-North East Region,ATOS IT SERVICES UK LTD,2961147,25.78 ,Pick Up Groups 1-10 Instances
Ministry of Justice,HMCTS,05-Aug-14 ,265000-IT & Telecommunications,HZ999-North East Region,ATOS IT SERVICES UK LTD,2937830,36.66 ,AO-York County-Cherry eVolution WHITE STREAM PS/2 and USB-DISC
Ministry of Justice,HMCTS,05-Aug-14 ,265000-IT & Telecommunications,HZ999-North East Region,ATOS IT SERVICES UK LTD,2937830,43.22 ,Andrea NC181VM USB headset
Ministry of Justice,HMCTS,05-Aug-14 ,265000-IT & Telecommunications,HZ999-North East Region,ATOS IT SERVICES UK LTD,2937830,46.00 ,Provision and support of Secure Remote Access (RWSII) Capability
Ministry of Justice,HMCTS,05-Aug-14 ,265000-IT & Telecommunications,HZ999-North East Region,ATOS IT SERVICES UK LTD,2937830,46.00 ,Provision and support of Secure Remote Access (RWSII) Capability
Ministry of Justice,HMCTS,05-Aug-14 ,265000-IT & Telecommunications,HZ999-North East Region,ATOS IT SERVICES UK LTD,2937830,46.00 ,AO-SSCSA Leeds-Provision and support of Secure Remote Access (RWSII) Capability-DISC
Ministry of Justice,HMCTS,29-Aug-14 ,265000-IT & Telecommunications,HZ999-North East Region,ATOS IT SERVICES UK LTD,2961147,46.00 ,AO-Bradford Cty-Provision and support of Secure Remote Access (RWSII) Capability-DISC-ID250623
Ministry of Justice,HMCTS,29-Aug-14 ,265000-IT & Telecommunications,HZ999-North East Region,ATOS IT SERVICES UK LTD,2961147,46.00 ,Provision and support of Secure Remote Access (RWSII) Capability
Ministry of Justice,HMCTS,05-Aug-14 ,265000-IT & Telecommunications,HZ999-North East Region,ATOS IT SERVICES UK LTD,2937830,46.22 ,AO-Leeds ETS-Request Olympus dictation and transcription software for a user.  Does not include Olympus Digital Professional Dictation Solution - DS-7000-DISC
Ministry of Justice,HMCTS,05-Aug-14 ,265000-IT & Telecommunications,HZ999-North East Region,ATOS IT SERVICES UK LTD,2937830,46.22 ,Request Olympus dictation and transcription software for a user.  Does not include Olympus Digital Professional Dictation Solution - DS-7000
Ministry of Justice,HMCTS,05-Aug-14 ,265000-IT & Telecommunications,HZ999-North East Region,ATOS IT SERVICES UK LTD,2937830,46.22 ,Request Olympus dictation and transcription software for a user.  Does not include Olympus Digital Professional Dictation Solution - DS-7000
Ministry of Justice,HMCTS,29-Aug-14 ,265000-IT & Telecommunications,HZ999-North East Region,ATOS IT SERVICES UK LTD,2961147,55.15 ,Request a foot pedal - Olympus RS31 -  for use with Olympus transcription software (play back of Olympus Digital Voice Recorder recordings)
Ministry of Justice,HMCTS,29-Aug-14 ,265000-IT & Telecommunications,HZ999-North East Region,ATOS IT SERVICES UK LTD,2961147,56.55 ,Auto Attendant - Message Prompt Option - Amend Option destination
Ministry of Justice,HMCTS,29-Aug-14 ,265000-IT & Telecommunications,HZ999-North East Region,ATOS IT SERVICES UK LTD,2961147,56.55 ,Auto Attendant- Operator Busy Handling
Ministry of Justice,HMCTS,29-Aug-14 ,265000-IT & Telecommunications,HZ999-North East Region,ATOS IT SERVICES UK LTD,2961147,67.31 ,Plantronics HW251 A Mono Headset 1-11 devices
Ministry of Justice,HMCTS,05-Aug-14 ,265000-IT & Telecommunications,HZ999-North East Region,ATOS IT SERVICES UK LTD,2937830,82.78 ,BlackBerry (Vodafone)
Ministry of Justice,HMCTS,05-Aug-14 ,265000-IT & Telecommunications,HZ999-North East Region,ATOS IT SERVICES UK LTD,2937830,82.78 ,BlackBerry (Vodafone)
Ministry of Justice,HMCTS,05-Aug-14 ,265000-IT & Telecommunications,HZ999-North East Region,ATOS IT SERVICES UK LTD,2937830,83.46 ,Plantronics HW251 N Mono Headset 1-11 devices
Ministry of Justice,HMCTS,05-Aug-14 ,265000-IT & Telecommunications,HZ999-North East Region,ATOS IT SERVICES UK LTD,2937830,92.00 ,Provision and support of Secure Remote Access (RWSII) Capability x2
Ministry of Justice,HMCTS,05-Aug-14 ,265000-IT & Telecommunications,HZ999-North East Region,ATOS IT SERVICES UK LTD,2937830,165.56 ,BlackBerry (Vodafone)
Ministry of Justice,HMCTS,05-Aug-14 ,265000-IT & Telecommunications,HZ999-North East Region,ATOS IT SERVICES UK LTD,2937830,416.16 ,AO-Sheffield Magistrates-1 to 5 Devices Local Relocation (same Authority Premises) -  Printer or MFD-DISC
Ministry of Justice,HMCTS,05-Aug-14 ,265000-IT & Telecommunications,HZ999-North East Region,ATOS IT SERVICES UK LTD,2937830,832.32 ,AO-Bradford Mags-1 to 5 Devices Local Relocation (same Authority Premises) -  Printer or MFD-DISC
Ministry of Justice,HMCTS,05-Aug-14 ,265000-IT & Telecommunications,HZ999-North East Region,ATOS IT SERVICES UK LTD,2937830,"1,699.00 ",Auto Attendant - Create NEW Auto Attendant Call Flow
Ministry of Justice,HMCTS,29-Aug-14 ,265000-IT & Telecommunications,SJ999-Scotland,ATOS IT SERVICES UK LTD,2961147,25.78 ,AO-Glasgow IAC-Pick Up Groups 1-10 Instances-DISC-ID248219
Ministry of Justice,HMCTS,29-Aug-14 ,265000-IT & Telecommunications,SJ999-Scotland,ATOS IT SERVICES UK LTD,2961147,381.33 ,AO-Glasglow ETS-Olympus Digital Voice Recorder  - DS-7000 - new device-DISC-ID248329
Ministry of Justice,HMCTS,05-Aug-14 ,265000-IT & Telecommunications,SK999-Enforcement,ATOS IT SERVICES UK LTD,2937830,5.16 ,Receipt Invoice automatically created on 30-JUL-14
Ministry of Justice,HMCTS,05-Aug-14 ,265000-IT & Telecommunications,SK999-Enforcement,ATOS IT SERVICES UK LTD,2937830,5.16 ,Receipt Invoice automatically created on 30-JUL-14
Ministry of Justice,HMCTS,05-Aug-14 ,265000-IT & Telecommunications,SK999-Enforcement,ATOS IT SERVICES UK LTD,2937830,6.19 ,HMCTS Wales Enforcement  - ATOS - 1.5m Network Cable (Pack of 3)
Ministry of Justice,HMCTS,05-Aug-14 ,265000-IT & Telecommunications,SK999-Enforcement,ATOS IT SERVICES UK LTD,2937830,10.31 ,Receipt Invoice automatically created on 30-JUL-14
Ministry of Justice,HMCTS,05-Aug-14 ,265000-IT & Telecommunications,SK999-Enforcement,ATOS IT SERVICES UK LTD,2937830,11.62 ,HMCTS 80 VICTORIA AVENUE SS2 6EU - ATOS - Installation of one instance of Mozilla Firefox V17 ESR for one user - ID 56380
Ministry of Justice,HMCTS,05-Aug-14 ,265000-IT & Telecommunications,SK999-Enforcement,ATOS IT SERVICES UK LTD,2937830,11.62 ,HMCTS 80 VICTORIA AVENUE SS2 6EU - ATOS - Installation of one instance of Mozilla Firefox V17 ESR for one user - ID 56380
Ministry of Justice,HMCTS,29-Aug-14 ,265000-IT & Telecommunications,SK999-Enforcement,ATOS IT SERVICES UK LTD,2961147,18.33 ,SW DISC 1050 _ Cherry eVolution WHITE STREAM PS/2 and USB
Ministry of Justice,HMCTS,05-Aug-14 ,265000-IT & Telecommunications,SK999-Enforcement,ATOS IT SERVICES UK LTD,2937830,25.78 ,Removal of voicemail 1-10 Accounts
Ministry of Justice,HMCTS,29-Aug-14 ,265000-IT & Telecommunications,SK999-Enforcement,ATOS IT SERVICES UK LTD,2961147,25.78 ,Mobility Handset Conversion to Fixed Handset with new user details 1- 11 devices
Ministry of Justice,HMCTS,05-Aug-14 ,265000-IT & Telecommunications,SK999-Enforcement,ATOS IT SERVICES UK LTD,2937830,25.78 ,"Bedford Magistrates Court, Enforcement Unit - ATOS -     ITPHUNT01, Hunt Group Working 1-10 Devices - ID: 230345"
Ministry of Justice,HMCTS,05-Aug-14 ,265000-IT & Telecommunications,SK999-Enforcement,ATOS IT SERVICES UK LTD,2937830,25.78 ,"Bedford Magistrates Court, Enforcement Unit - ATOS -     ITPPICK01, Pick Up Groups 1-10 Devices - ID: 230345"
Ministry of Justice,HMCTS,05-Aug-14 ,265000-IT & Telecommunications,SK999-Enforcement,ATOS IT SERVICES UK LTD,2937830,37.37 ,SW DISC 1008 _ Cirque Glidepoint SmartCat
Ministry of Justice,HMCTS,05-Aug-14 ,265000-IT & Telecommunications,SK999-Enforcement,ATOS IT SERVICES UK LTD,2937830,51.56 ,"Bedford Magistrates Court, Enforcement Unit - ATOS -   ITPFIXTRAN01, Fixed IPT Phone Transfer to a new user 1-10 Devices - ID: 230345"
Ministry of Justice,HMCTS,05-Aug-14 ,265000-IT & Telecommunications,SK999-Enforcement,ATOS IT SERVICES UK LTD,2937830,52.80 ,SW DISC 1009 _ Plantronics U10P-S19 Bottom Cable  1-11 devices
Ministry of Justice,HMCTS,05-Aug-14 ,265000-IT & Telecommunications,SK999-Enforcement,ATOS IT SERVICES UK LTD,2937830,56.55 ,HMCTS - ATOS - Modify Existing Call Flow Change to time of day feature
Ministry of Justice,HMCTS,05-Aug-14 ,265000-IT & Telecommunications,SK999-Enforcement,ATOS IT SERVICES UK LTD,2937830,67.31 ,Southend Magistrates Court - ATOS - Plantronics HW251 A Mono Headset 1-11 devices - ID 136155
Ministry of Justice,HMCTS,05-Aug-14 ,265000-IT & Telecommunications,SK999-Enforcement,ATOS IT SERVICES UK LTD,2937830,67.31 ,Southend Magistrates Court - ATOS - Plantronics HW251 A Mono Headset 1-11 devices - ID 136155
Ministry of Justice,HMCTS,05-Aug-14 ,265000-IT & Telecommunications,SK999-Enforcement,ATOS IT SERVICES UK LTD,2937830,67.31 ,Southend Magistrates Court - ATOS - Plantronics HW251 A Mono Headset 1-11 devices - ID 136155
Ministry of Justice,HMCTS,05-Aug-14 ,265000-IT & Telecommunications,SK999-Enforcement,ATOS IT SERVICES UK LTD,2937830,67.31 ,Plantronics HW251 A Mono Headset 1-11 devices
Ministry of Justice,HMCTS,29-Aug-14 ,265000-IT & Telecommunications,SK999-Enforcement,ATOS IT SERVICES UK LTD,2961147,81.44 ,Left Handed Keyboard
Ministry of Justice,HMCTS,05-Aug-14 ,265000-IT & Telecommunications,SK999-Enforcement,ATOS IT SERVICES UK LTD,2937830,83.46 ,Plantronics HW251 N Mono Headset 1-11 devices
Ministry of Justice,HMCTS,29-Aug-14 ,265000-IT & Telecommunications,SK999-Enforcement,ATOS IT SERVICES UK LTD,2961147,83.96 ,SW DISC 1050 _ Evoluent Vertical Mouse
Ministry of Justice,HMCTS,05-Aug-14 ,265000-IT & Telecommunications,SK999-Enforcement,ATOS IT SERVICES UK LTD,2937830,144.00 ,HMCTS Wales Enforcement  - ATOS - Relocation of 2 desktop client devices to a different building.
Ministry of Justice,HMCTS,05-Aug-14 ,265000-IT & Telecommunications,SK999-Enforcement,ATOS IT SERVICES UK LTD,2937830,181.02 ,Desktop PC - HP DC8300
Ministry of Justice,HMCTS,29-Aug-14 ,265000-IT & Telecommunications,SK999-Enforcement,ATOS IT SERVICES UK LTD,2961147,201.93 ,Plantronics HW251 A Mono Headset 1-11 devices
Ministry of Justice,HMCTS,29-Aug-14 ,265000-IT & Telecommunications,SK999-Enforcement,ATOS IT SERVICES UK LTD,2961147,313.04 ,SW DISC 1047 _ Plantronics HW261 A Duo Headset 1-11 devices
Ministry of Justice,HMCTS,05-Aug-14 ,265000-IT & Telecommunications,SK999-Enforcement,ATOS IT SERVICES UK LTD,2937830,488.99 ,Bedford Magistrates Court - National Relocation -Printer or MFD (Multi Function Device) move and Print Map update. - ID 237999  CAT - NATRELOC1
Ministry of Justice,HMCTS,05-Aug-14 ,265000-IT & Telecommunications,SK999-Enforcement,ATOS IT SERVICES UK LTD,2937830,584.22 ,SW DISC 1009 _ Plantronics HW251 N Mono Headset 1-11 devices
Ministry of Justice,HMCTS,05-Aug-14 ,265000-IT & Telecommunications,SK999-Enforcement,ATOS IT SERVICES UK LTD,2937830,659.20 ,HMCTS - ATOS - Plantronics CS510 Wireless Headset/4 devices @ 164.80 each.
Ministry of Justice,HMCTS,29-Aug-14 ,265000-IT & Telecommunications,SM999-National Business Centres,ATOS IT SERVICES UK LTD,2961147,8.80 ,Plantronics U10P-S19 Bottom Cable  1-11 devices
Ministry of Justice,HMCTS,05-Aug-14 ,265000-IT & Telecommunications,SM999-National Business Centres,ATOS IT SERVICES UK LTD,2937830,11.17 ,MS Access
Ministry of Justice,HMCTS,05-Aug-14 ,265000-IT & Telecommunications,SM999-National Business Centres,ATOS IT SERVICES UK LTD,2937830,11.62 ,MS Visio Professional
Ministry of Justice,HMCTS,05-Aug-14 ,265000-IT & Telecommunications,SM999-National Business Centres,ATOS IT SERVICES UK LTD,2937830,18.33 ,AO-Loughbough AIT-Cherry eVolution WHITE STREAM PS/2 and USB-DISC
Ministry of Justice,HMCTS,29-Aug-14 ,265000-IT & Telecommunications,SM999-National Business Centres,ATOS IT SERVICES UK LTD,2961147,18.33 ,AO-Loughbough AIT-Cherry eVolution WHITE STREAM PS/2 and USB-DISC-IDF250665
Ministry of Justice,HMCTS,29-Aug-14 ,265000-IT & Telecommunications,SM999-National Business Centres,ATOS IT SERVICES UK LTD,2961147,25.00 ,5m Network Cable
Ministry of Justice,HMCTS,05-Aug-14 ,265000-IT & Telecommunications,SM999-National Business Centres,ATOS IT SERVICES UK LTD,2937830,25.23 ,AO-Begrave Road MHRT-Additional/spare mains charger for BlackBerry 9300-DISC
Ministry of Justice,HMCTS,05-Aug-14 ,265000-IT & Telecommunications,SM999-National Business Centres,ATOS IT SERVICES UK LTD,2937830,25.78 ,Fixed Handset Conversion to Mobility Handset & Mobility Account 1 - 11 devices
Ministry of Justice,HMCTS,05-Aug-14 ,265000-IT & Telecommunications,SM999-National Business Centres,ATOS IT SERVICES UK LTD,2937830,25.78 ,Fixed Handset Conversion to Mobility Handset & Mobility Account 1 - 11 devices
Ministry of Justice,HMCTS,29-Aug-14 ,265000-IT & Telecommunications,SM999-National Business Centres,ATOS IT SERVICES UK LTD,2961147,25.78 ,Fixed IPT Phone Transfer to a new user 1-10 Devices
Ministry of Justice,HMCTS,29-Aug-14 ,265000-IT & Telecommunications,SM999-National Business Centres,ATOS IT SERVICES UK LTD,2961147,25.78 ,Hunt Group 1-10 Instances
Ministry of Justice,HMCTS,29-Aug-14 ,265000-IT & Telecommunications,SM999-National Business Centres,ATOS IT SERVICES UK LTD,2961147,46.00 ,AO-MAnchester Civil Justice Centre-Provision and support of Secure Remote Access -DISC(RWSII) Capability
Ministry of Justice,HMCTS,29-Aug-14 ,265000-IT & Telecommunications,SM999-National Business Centres,ATOS IT SERVICES UK LTD,2961147,60.34 ,Installation of a single desktop device
Ministry of Justice,HMCTS,05-Aug-14 ,265000-IT & Telecommunications,SM999-National Business Centres,ATOS IT SERVICES UK LTD,2937830,66.86 ,Return BlackBerry device (no longer required)
Ministry of Justice,HMCTS,29-Aug-14 ,265000-IT & Telecommunications,SM999-National Business Centres,ATOS IT SERVICES UK LTD,2961147,83.96 ,Evoluent Vertical Mouse
Ministry of Justice,HMCTS,29-Aug-14 ,265000-IT & Telecommunications,SM999-National Business Centres,ATOS IT SERVICES UK LTD,2961147,83.96 ,Evoluent Vertical Mouse
Ministry of Justice,HMCTS,29-Aug-14 ,265000-IT & Telecommunications,SM999-National Business Centres,ATOS IT SERVICES UK LTD,2961147,108.00 ,AO-Loughbough AIT-Relocation of 3 desktop client devices within the same building.-DISC-AIT
Ministry of Justice,HMCTS,29-Aug-14 ,265000-IT & Telecommunications,SM999-National Business Centres,ATOS IT SERVICES UK LTD,2961147,125.00 ,10m Network Cable
Ministry of Justice,HMCTS,05-Aug-14 ,265000-IT & Telecommunications,SM999-National Business Centres,ATOS IT SERVICES UK LTD,2937830,136.38 ,AO-Loughbrough-Black GoldTouch USB Keyboard-DISC
Ministry of Justice,HMCTS,29-Aug-14 ,265000-IT & Telecommunications,SM999-National Business Centres,ATOS IT SERVICES UK LTD,2961147,180.46 ,Mobility Handset Conversion to Fixed Handset with new user details 1- 11 devices
Ministry of Justice,HMCTS,05-Aug-14 ,265000-IT & Telecommunications,SM999-National Business Centres,ATOS IT SERVICES UK LTD,2937830,250.38 ,Plantronics HW251 N Mono Headset 12-30 devices
Ministry of Justice,HMCTS,29-Aug-14 ,265000-IT & Telecommunications,SM999-National Business Centres,ATOS IT SERVICES UK LTD,2961147,283.58 ,Mobility Handset Conversion to Fixed Handset with new user details 1- 11 devices
Ministry of Justice,HMCTS,29-Aug-14 ,265000-IT & Telecommunications,SM999-National Business Centres,ATOS IT SERVICES UK LTD,2961147,306.43 ,Thermal Transfer Barcode Label Printer
Ministry of Justice,HMCTS,05-Aug-14 ,265000-IT & Telecommunications,SM999-National Business Centres,ATOS IT SERVICES UK LTD,2937830,374.55 ,AO-Teesside Magistrates-Relocation of 2-5 desktop client devices to a different building-DISC
Ministry of Justice,HMCTS,05-Aug-14 ,265000-IT & Telecommunications,SM999-National Business Centres,ATOS IT SERVICES UK LTD,2937830,374.55 ,AO-Teesside Magistrates-Relocation of 2-5 desktop client devices to a different building-DISC
Ministry of Justice,HMCTS,05-Aug-14 ,265000-IT & Telecommunications,SM999-National Business Centres,ATOS IT SERVICES UK LTD,2937830,374.55 ,AO-Teesside Magistrates-Relocation of 2-5 desktop client devices to a different building-DISC
Ministry of Justice,HMCTS,05-Aug-14 ,265000-IT & Telecommunications,SM999-National Business Centres,ATOS IT SERVICES UK LTD,2937830,374.55 ,AO-Teesside MagistratesRelocation of 2-5 desktop client devices to a different building-DISC
Ministry of Justice,HMCTS,05-Aug-14 ,265000-IT & Telecommunications,SM999-National Business Centres,ATOS IT SERVICES UK LTD,2937830,399.52 ,Plantronics HW261 N Duo Headset 12-30 devices
Ministry of Justice,HMCTS,29-Aug-14 ,265000-IT & Telecommunications,SM999-National Business Centres,ATOS IT SERVICES UK LTD,2961147,488.99 ,1 to 5 Devices National Relocation -Printer or MFD (Multi Function Device)
Ministry of Justice,HMCTS,29-Aug-14 ,265000-IT & Telecommunications,SM999-National Business Centres,ATOS IT SERVICES UK LTD,2961147,587.22 ,ZoomText Magnifier/Reader
Ministry of Justice,HMCTS,19-Aug-14 ,265000-IT & Telecommunications,BZ999-London Region,ATOS ORIGIN IT SERVICES UK LTD T/A ATOS HEALTHCARE,2951819,"34,893.00 ","Central London County Court - Atos Origin - A-R-04103-04 v01 - A-R-04103-04 -CLCC Decommission						 						 											"
Ministry of Justice,HMCTS,26-Aug-14 ,610400-Debtors <1 year - Prepayments & Accrued Income,CZ999-South East Region,AYLESBURY CONSERVATIVES,2957677,"42,783.12 ",Rates Payment
Ministry of Justice,HMCTS,19-Aug-14 ,311200-Criminal Legal Aid,SL999-Centralised Frontline,B SINGH#DX 23531,2950838,"286,842.00 ",Legal fees to solicitors for  the repayment of fees paid by the acquitted defendants
Ministry of Justice,HMCTS,22-Aug-14 ,610400-Debtors <1 year - Prepayments & Accrued Income,CZ999-South East Region,BASILDON BOROUGH COUNCIL,2955329,"37,114.00 ",Rates Payment
Ministry of Justice,HMCTS,22-Aug-14 ,610400-Debtors <1 year - Prepayments & Accrued Income,FZ999-Midlands Region,BIRMINGHAM CITY COUNCIL,2955334,"31,089.00 ",Rates Payment
Ministry of Justice,HMCTS,22-Aug-14 ,610400-Debtors <1 year - Prepayments & Accrued Income,FZ999-Midlands Region,BIRMINGHAM CITY COUNCIL,2955334,"46,995.00 ",Rates Payment
Ministry of Justice,HMCTS,22-Aug-14 ,610400-Debtors <1 year - Prepayments & Accrued Income,FZ999-Midlands Region,BIRMINGHAM CITY COUNCIL,2955334,"157,614.00 ",Rates Payment
Ministry of Justice,HMCTS,22-Aug-14 ,610400-Debtors <1 year - Prepayments & Accrued Income,DZ999-South West Region,BOURNEMOUTH BOROUGH COUNCIL,2955344,"42,657.00 ",Rates Payment
Ministry of Justice,HMCTS,22-Aug-14 ,610400-Debtors <1 year - Prepayments & Accrued Income,HZ999-North East Region,BRADFORD METROPOLITAN COUNCIL,2955346,"59,286.00 ",Rates Payment
Ministry of Justice,HMCTS,22-Aug-14 ,610400-Debtors <1 year - Prepayments & Accrued Income,DZ999-South West Region,BRISTOL CITY COUNCIL,2955350,"49,164.00 ",Rates Payment
Ministry of Justice,HMCTS,22-Aug-14 ,610400-Debtors <1 year - Prepayments & Accrued Income,DZ999-South West Region,BRISTOL CITY COUNCIL,2955350,"53,020.00 ",Rates Payment
Ministry of Justice,HMCTS,22-Aug-14 ,610400-Debtors <1 year - Prepayments & Accrued Income,DZ999-South West Region,BRISTOL CITY COUNCIL,2955350,"77,120.00 ",Rates Payment
Ministry of Justice,HMCTS,19-Aug-14 ,261000-Fuel and Utilities,BZ999-London Region,BRITISH GAS BUSINESS,2951854,-13.74 ,London Region Consolidated Electricity Charges - British Gas 2014/15 - Replacement for PO 20000173776 (Credit 5% VAT Element)
Ministry of Justice,HMCTS,19-Aug-14 ,261000-Fuel and Utilities,BZ999-London Region,BRITISH GAS BUSINESS,2951854,0.03 ,London Region Consolidated Electricity Charges - British Gas 2014/15 - Replacement for PO 20000173776 (20% VAT Element)
Ministry of Justice,HMCTS,19-Aug-14 ,261000-Fuel and Utilities,BZ999-London Region,BRITISH GAS BUSINESS,2951854,"4,483.27 ",London Region Consolidated Electricity Charges - British Gas 2014/15 - Replacement for PO 20000173776 ( 20% VAT Element)
Ministry of Justice,HMCTS,19-Aug-14 ,261000-Fuel and Utilities,BZ999-London Region,BRITISH GAS BUSINESS,2951854,"22,141.64 ",London Region Consolidated Electricity Charges - British Gas 2014/15 - Replacement for PO 20000173776
Ministry of Justice,HMCTS,19-Aug-14 ,261000-Fuel and Utilities,CZ999-South East Region,BRITISH GAS BUSINESS,2951856,155.65 ,SE Region Consolidated - British Gas - Electricity supply - 2014/15 - Replacement for PO 20000173665
Ministry of Justice,HMCTS,19-Aug-14 ,261000-Fuel and Utilities,CZ999-South East Region,BRITISH GAS BUSINESS,2951856,"3,112.97 ",SE Region Consolidated - British Gas - Electricity supply - 2014/15 - Replacement for PO 20000173665
Ministry of Justice,HMCTS,19-Aug-14 ,261000-Fuel and Utilities,CZ999-South East Region,BRITISH GAS BUSINESS,2951856,"8,861.81 ",SE Region Consolidated - British Gas - Electricity supply - 2014/15 - Replacement for PO 20000173665
Ministry of Justice,HMCTS,19-Aug-14 ,261000-Fuel and Utilities,CZ999-South East Region,BRITISH GAS BUSINESS,2951856,"44,309.04 ",SE Region Consolidated - British Gas - Electricity supply - 2014/15 - Replacement for PO 20000173665
Ministry of Justice,HMCTS,20-Aug-14 ,261000-Fuel and Utilities,DZ999-South West Region,BRITISH GAS BUSINESS,2954336,"-5,470.23 ",South West Regional Office (DA170) - British Gas - Account no.: 3053490 - Electricity Consumption costs (various sites) 14/15
Ministry of Justice,HMCTS,20-Aug-14 ,261000-Fuel and Utilities,DZ999-South West Region,BRITISH GAS BUSINESS,2954336,-15.90 ,South West Regional Office (DA170) - British Gas - Account no.: 3053490 - Electricity Consumption costs (various sites) 14/15
Ministry of Justice,HMCTS,20-Aug-14 ,261000-Fuel and Utilities,DZ999-South West Region,BRITISH GAS BUSINESS,2954336,-0.01 ,South West Regional Office (DA170) - British Gas - Account no.: 3053490 - Electricity Consumption costs (various sites) 14/15
Ministry of Justice,HMCTS,20-Aug-14 ,261000-Fuel and Utilities,DZ999-South West Region,BRITISH GAS BUSINESS,2954336,15.90 ,South West Regional Office (DA170) - British Gas - Account no.: 3053490 - Electricity Consumption costs (various sites) 14/15
Ministry of Justice,HMCTS,20-Aug-14 ,261000-Fuel and Utilities,DZ999-South West Region,BRITISH GAS BUSINESS,2954336,15.90 ,South West Regional Office (DA170) - British Gas - Account no.: 3053490 - Electricity Consumption costs (various sites) 14/15
Ministry of Justice,HMCTS,20-Aug-14 ,261000-Fuel and Utilities,DZ999-South West Region,BRITISH GAS BUSINESS,2954336,318.05 ,South West Regional Office (DA170) - British Gas - Account no.: 3053490 - Electricity Consumption costs (various sites) 14/15
Ministry of Justice,HMCTS,20-Aug-14 ,261000-Fuel and Utilities,DZ999-South West Region,BRITISH GAS BUSINESS,2954336,"5,470.23 ",South West Regional Office (DA170) - British Gas - Account no.: 3053490 - Electricity Consumption costs (various sites) 14/15
Ministry of Justice,HMCTS,20-Aug-14 ,261000-Fuel and Utilities,DZ999-South West Region,BRITISH GAS BUSINESS,2954336,"5,470.23 ",South West Regional Office (DA170) - British Gas - Account no.: 3053490 - Electricity Consumption costs (various sites) 14/15
Ministry of Justice,HMCTS,20-Aug-14 ,261000-Fuel and Utilities,DZ999-South West Region,BRITISH GAS BUSINESS,2954336,"27,351.13 ",South West Regional Office (DA170) - British Gas - Account no.: 3053490 - Electricity Consumption costs (various sites) 14/15
Ministry of Justice,HMCTS,19-Aug-14 ,261000-Fuel and Utilities,EZ999-Wales Region,BRITISH GAS BUSINESS,2951856,-0.01 ,Electricity charges for HMCTS Wales 2014/15.
Ministry of Justice,HMCTS,19-Aug-14 ,261000-Fuel and Utilities,EZ999-Wales Region,BRITISH GAS BUSINESS,2951856,17.50 ,Electricity charges for HMCTS Wales 2014/15.
Ministry of Justice,HMCTS,19-Aug-14 ,261000-Fuel and Utilities,EZ999-Wales Region,BRITISH GAS BUSINESS,2951856,349.93 ,Electricity charges for HMCTS Wales 2014/15.
Ministry of Justice,HMCTS,19-Aug-14 ,261000-Fuel and Utilities,EZ999-Wales Region,BRITISH GAS BUSINESS,2951856,"4,469.36 ",Electricity charges for HMCTS Wales 2014/15.
Ministry of Justice,HMCTS,19-Aug-14 ,261000-Fuel and Utilities,EZ999-Wales Region,BRITISH GAS BUSINESS,2951856,"22,346.80 ",Electricity charges for HMCTS Wales 2014/15.
Ministry of Justice,HMCTS,20-Aug-14 ,261000-Fuel and Utilities,FZ999-Midlands Region,BRITISH GAS BUSINESS,2954336,-0.02 ,BGB electricity for  HMCTS Midlands 2014/15.
Ministry of Justice,HMCTS,20-Aug-14 ,261000-Fuel and Utilities,FZ999-Midlands Region,BRITISH GAS BUSINESS,2954336,35.74 ,BGB electricity for  HMCTS Midlands 2014/15.
Ministry of Justice,HMCTS,20-Aug-14 ,261000-Fuel and Utilities,FZ999-Midlands Region,BRITISH GAS BUSINESS,2954336,714.84 ,BGB electricity for  HMCTS Midlands 2014/15.
Ministry of Justice,HMCTS,20-Aug-14 ,261000-Fuel and Utilities,FZ999-Midlands Region,BRITISH GAS BUSINESS,2954336,"5,175.58 ",BGB electricity for  HMCTS Midlands 2014/15.
Ministry of Justice,HMCTS,20-Aug-14 ,261000-Fuel and Utilities,FZ999-Midlands Region,BRITISH GAS BUSINESS,2954336,"25,877.90 ",BGB electricity for  HMCTS Midlands 2014/15.
Ministry of Justice,HMCTS,29-Aug-14 ,261000-Fuel and Utilities,GZ999-North West Region,BRITISH GAS BUSINESS,2961174,0.01 ,NW Region Consol Acc - Electricity - British Gas - 14/15
Ministry of Justice,HMCTS,29-Aug-14 ,261000-Fuel and Utilities,GZ999-North West Region,BRITISH GAS BUSINESS,2961174,9.29 ,NW Region Consol Acc - Electricity - British Gas - 14/15
Ministry of Justice,HMCTS,29-Aug-14 ,261000-Fuel and Utilities,GZ999-North West Region,BRITISH GAS BUSINESS,2961174,185.83 ,NW Region Consol Acc - Electricity - British Gas - 14/15
Ministry of Justice,HMCTS,29-Aug-14 ,261000-Fuel and Utilities,GZ999-North West Region,BRITISH GAS BUSINESS,2961174,"6,071.14 ",NW Region Consol Acc - Electricity - British Gas - 14/15
Ministry of Justice,HMCTS,29-Aug-14 ,261000-Fuel and Utilities,GZ999-North West Region,BRITISH GAS BUSINESS,2961174,"30,355.70 ",NW Region Consol Acc - Electricity - British Gas - 14/15
Ministry of Justice,HMCTS,19-Aug-14 ,261000-Fuel and Utilities,HZ999-North East Region,BRITISH GAS BUSINESS,2951856,0.04 ,North East Consol Account - Electricity - British Gas - 14/15
Ministry of Justice,HMCTS,19-Aug-14 ,261000-Fuel and Utilities,HZ999-North East Region,BRITISH GAS BUSINESS,2951856,35.21 ,North East Consol Account - Electricity - British Gas - 14/15
Ministry of Justice,HMCTS,19-Aug-14 ,261000-Fuel and Utilities,HZ999-North East Region,BRITISH GAS BUSINESS,2951856,704.18 ,North East Consol Account - Electricity - British Gas - 14/15
Ministry of Justice,HMCTS,19-Aug-14 ,261000-Fuel and Utilities,HZ999-North East Region,BRITISH GAS BUSINESS,2951856,"9,351.49 ",North East Consol Account - Electricity - British Gas - 14/15
Ministry of Justice,HMCTS,19-Aug-14 ,261000-Fuel and Utilities,HZ999-North East Region,BRITISH GAS BUSINESS,2951856,"46,757.43 ",North East Consol Account - Electricity - British Gas - 14/15
Ministry of Justice,HMCTS,01-Aug-14 ,225000-Banking and Finance,FC999-Centrally Managed Costs by F&G,BUCKINGHAMSHIRE COUNTY COUNCIL,2935399,"24,780.94 ",Local Authority Loans Interest
Ministry of Justice,HMCTS,01-Aug-14 ,721200-Creditors > 1 year - Other,FC999-Centrally Managed Costs by F&G,BUCKINGHAMSHIRE COUNTY COUNCIL,2935399,"16,241.61 ",721214-LT Local Authority Loan Balances
Ministry of Justice,HMCTS,22-Aug-14 ,610400-Debtors <1 year - Prepayments & Accrued Income,CZ999-South East Region,CAMBRIDGE CITY COUNCIL,2955355,"26,992.00 ",Rates Payment
Ministry of Justice,HMCTS,22-Aug-14 ,610400-Debtors <1 year - Prepayments & Accrued Income,CZ999-South East Region,CANTERBURY CITY COUNCIL,2955357,"40,729.00 ",Rates Payment
Ministry of Justice,HMCTS,22-Aug-14 ,610400-Debtors <1 year - Prepayments & Accrued Income,EZ999-Wales Region,CARDIFF COUNTY COUNCIL,2955358,"37,603.50 ",Rates Payment
Ministry of Justice,HMCTS,01-Aug-14 ,225000-Banking and Finance,FC999-Centrally Managed Costs by F&G,CARDIFF COUNTY COUNCIL,2935421,"48,693.20 ",Local Authority Loans Interest
Ministry of Justice,HMCTS,01-Aug-14 ,721200-Creditors > 1 year - Other,FC999-Centrally Managed Costs by F&G,CARDIFF COUNTY COUNCIL,2935421,"120,546.00 ",721214-LT Local Authority Loan Balances
Ministry of Justice,HMCTS,22-Aug-14 ,610400-Debtors <1 year - Prepayments & Accrued Income,GZ999-North West Region,CARDIFF COUNTY COUNCIL,2955358,"25,542.00 ",Rates Payment
Ministry of Justice,HMCTS,22-Aug-14 ,610400-Debtors <1 year - Prepayments & Accrued Income,EZ999-Wales Region,CARLISLE CITY COUNCIL,2955359,"28,197.00 ",Rates Payment
Ministry of Justice,HMCTS,29-Aug-14 ,265000-IT & Telecommunications,AT899-HQ - ICT,CGI IT UK LTD,2961205,"21,846.00 ",HMCTS 321 ASTREA Phase 1
Ministry of Justice,HMCTS,08-Aug-14 ,265000-IT & Telecommunications,AT899-HQ - ICT,CGI IT UK LTD,2942823,"28,838.00 ",(Initiation & Delivery) CCN 3622-03 IFAS Defect 45
Ministry of Justice,HMCTS,29-Aug-14 ,265000-IT & Telecommunications,AT899-HQ - ICT,CGI IT UK LTD,2961205,"36,803.00 ","CGI-CCN3974-02 - UAT complete - HMCTS 314 ARIA - PM Sonia Ferrari						 					 						 						 						 					 					"
Ministry of Justice,HMCTS,15-Aug-14 ,265000-IT & Telecommunications,AT899-HQ - ICT,CGI IT UK LTD,2949435,"127,996.00 ","L-R-3824-02 Libra MAAT - M4 SOAP Gateway Development Complete				 					 					"
Ministry of Justice,HMCTS,15-Aug-14 ,265000-IT & Telecommunications,AT899-HQ - ICT,CGI IT UK LTD,2949435,"201,983.00 ","L-R-3824-02 Libra MAAT - M3 Libra Application Development Complete						 					 					"
Ministry of Justice,HMCTS,22-Aug-14 ,610400-Debtors <1 year - Prepayments & Accrued Income,CZ999-South East Region,CHELMSFORD BOROUGH COUNCIL,2955363,"27,233.00 ",Rates Payment
Ministry of Justice,HMCTS,22-Aug-14 ,610400-Debtors <1 year - Prepayments & Accrued Income,CZ999-South East Region,CHELMSFORD BOROUGH COUNCIL,2955363,"29,643.00 ",Rates Payment
Ministry of Justice,HMCTS,22-Aug-14 ,610400-Debtors <1 year - Prepayments & Accrued Income,CZ999-South East Region,CHELMSFORD BOROUGH COUNCIL,2955363,"33,499.00 ",Rates Payment
Ministry of Justice,HMCTS,01-Aug-14 ,225000-Banking and Finance,FC999-Centrally Managed Costs by F&G,CHESHIRE WEST & CHESTER COUNCIL,2935433,"10,187.82 ",Local Authority Loans Interest
Ministry of Justice,HMCTS,01-Aug-14 ,721200-Creditors > 1 year - Other,FC999-Centrally Managed Costs by F&G,CHESHIRE WEST & CHESTER COUNCIL,2935433,"15,305.34 ",721214-LT Local Authority Loan Balances
Ministry of Justice,HMCTS,01-Aug-14 ,225000-Banking and Finance,FC999-Centrally Managed Costs by F&G,CITY AND COUNTY OF SWANSEA,2935436,"22,390.86 ",Local Authority Loans Interest
Ministry of Justice,HMCTS,01-Aug-14 ,721200-Creditors > 1 year - Other,FC999-Centrally Managed Costs by F&G,CITY AND COUNTY OF SWANSEA,2935436,"19,537.63 ",721214-LT Local Authority Loan Balances
Ministry of Justice,HMCTS,22-Aug-14 ,610400-Debtors <1 year - Prepayments & Accrued Income,FZ999-Midlands Region,CITY OF LINCOLN COUNCIL,2955373,"31,571.00 ",Rates Payment
Ministry of Justice,HMCTS,22-Aug-14 ,610400-Debtors <1 year - Prepayments & Accrued Income,BZ999-London Region,CITY OF LONDON,2955374,"67,804.00 ",Rates Payment
Ministry of Justice,HMCTS,22-Aug-14 ,610400-Debtors <1 year - Prepayments & Accrued Income,BZ999-London Region,CITY OF LONDON,2955374,"372,922.00 ",Rates Payment
Ministry of Justice,HMCTS,01-Aug-14 ,225000-Banking and Finance,FC999-Centrally Managed Costs by F&G,CITY OF LONDON,2935437,"16,320.00 ",Local Authority Loans Interest
Ministry of Justice,HMCTS,01-Aug-14 ,721200-Creditors > 1 year - Other,FC999-Centrally Managed Costs by F&G,CITY OF LONDON,2935437,"90,668.00 ",721214-LT Local Authority Loan Balances
Ministry of Justice,HMCTS,22-Aug-14 ,610400-Debtors <1 year - Prepayments & Accrued Income,FZ999-Midlands Region,CITY OF STOKE ON TRENT,2955375,"33,740.00 ",Rates Payment
Ministry of Justice,HMCTS,05-Aug-14 ,226000-Court Costs,SL999-Centralised Frontline,COBLEYS#DX 14200,2936831,"59,194.80 ",Legal fees to solicitors for  the repayment of fees paid by the acquitted defendants
Ministry of Justice,HMCTS,22-Aug-14 ,610400-Debtors <1 year - Prepayments & Accrued Income,CZ999-South East Region,COLCHESTER BOROUGH COUNCIL,2955377,"31,330.00 ",Rates Payment
Ministry of Justice,HMCTS,01-Aug-14 ,225000-Banking and Finance,FC999-Centrally Managed Costs by F&G,CORNWALL COUNTY COUNCIL,2935456,"7,114.40 ",Local Authority Loans Interest
Ministry of Justice,HMCTS,01-Aug-14 ,721200-Creditors > 1 year - Other,FC999-Centrally Managed Costs by F&G,CORNWALL COUNTY COUNCIL,2935456,"57,298.40 ",721214-LT Local Authority Loan Balances
Ministry of Justice,HMCTS,15-Aug-14 ,261000-Fuel and Utilities,BZ999-London Region,CORONA ENERGY,2949456,-0.04 ,HMCTS London Region - Corona - Consolidated Gas Account 2014/15 - Replacement for PO 20000173777 (20% VAT Element)
Ministry of Justice,HMCTS,15-Aug-14 ,261000-Fuel and Utilities,BZ999-London Region,CORONA ENERGY,2949456,313.31 ,HMCTS London Region - Corona - Consolidated Gas Account 2014/15 - Replacement for PO 20000173777 (5% VAT Element)
Ministry of Justice,HMCTS,15-Aug-14 ,261000-Fuel and Utilities,BZ999-London Region,CORONA ENERGY,2949456,"5,821.13 ",HMCTS London Region - Corona - Consolidated Gas Account 2014/15 - Replacement for PO 20000173777 (20% VAT Element)
Ministry of Justice,HMCTS,15-Aug-14 ,261000-Fuel and Utilities,BZ999-London Region,CORONA ENERGY,2949456,"6,266.26 ",HMCTS London Region - Corona - Consolidated Gas Account 2014/15 - Replacement for PO 20000173777
Ministry of Justice,HMCTS,15-Aug-14 ,261000-Fuel and Utilities,BZ999-London Region,CORONA ENERGY,2949456,"29,105.63 ",HMCTS London Region - Corona - Consolidated Gas Account 2014/15 - Replacement for PO 20000173777
Ministry of Justice,HMCTS,19-Aug-14 ,261000-Fuel and Utilities,CZ999-South East Region,CORONA ENERGY,2951925,350.85 ,SE Region Consolidated - Corona - Gas charges 2014/15 - Replacement for PO 20000173659
Ministry of Justice,HMCTS,19-Aug-14 ,261000-Fuel and Utilities,CZ999-South East Region,CORONA ENERGY,2951925,"4,820.99 ",SE Region Consolidated - Corona - Gas charges 2014/15 - Replacement for PO 20000173659
Ministry of Justice,HMCTS,19-Aug-14 ,261000-Fuel and Utilities,CZ999-South East Region,CORONA ENERGY,2951925,"7,017.05 ",SE Region Consolidated - Corona - Gas charges 2014/15 - Replacement for PO 20000173659
Ministry of Justice,HMCTS,19-Aug-14 ,261000-Fuel and Utilities,CZ999-South East Region,CORONA ENERGY,2951925,"24,104.95 ",SE Region Consolidated - Corona - Gas charges 2014/15 - Replacement for PO 20000173659
Ministry of Justice,HMCTS,22-Aug-14 ,261000-Fuel and Utilities,DZ999-South West Region,CORONA ENERGY,2956221,-0.04 ,SW Finance Office _ Corona Energy _ DA170-222143 _ GAS _ Acct no.:20301400 _ Monthly Consolidated Bill for various sites in the SW Region.
Ministry of Justice,HMCTS,22-Aug-14 ,261000-Fuel and Utilities,DZ999-South West Region,CORONA ENERGY,2956221,341.08 ,SW Finance Office _ Corona Energy _ DA170-222143 _ GAS _ Acct no.:20301400 _ Monthly Consolidated Bill for various sites in the SW Region.
Ministry of Justice,HMCTS,22-Aug-14 ,261000-Fuel and Utilities,DZ999-South West Region,CORONA ENERGY,2956221,"3,095.18 ",SW Finance Office _ Corona Energy _ DA170-222143 _ GAS _ Acct no.:20301400 _ Monthly Consolidated Bill for various sites in the SW Region.
Ministry of Justice,HMCTS,22-Aug-14 ,261000-Fuel and Utilities,DZ999-South West Region,CORONA ENERGY,2956221,"6,821.65 ",SW Finance Office _ Corona Energy _ DA170-222143 _ GAS _ Acct no.:20301400 _ Monthly Consolidated Bill for various sites in the SW Region.
Ministry of Justice,HMCTS,22-Aug-14 ,261000-Fuel and Utilities,DZ999-South West Region,CORONA ENERGY,2956221,"15,475.90 ",SW Finance Office _ Corona Energy _ DA170-222143 _ GAS _ Acct no.:20301400 _ Monthly Consolidated Bill for various sites in the SW Region.
Ministry of Justice,HMCTS,19-Aug-14 ,261000-Fuel and Utilities,FZ999-Midlands Region,CORONA ENERGY,2951925,-0.04 ,Corona Energy gas HMCTS Midlands 2014/15.
Ministry of Justice,HMCTS,19-Aug-14 ,261000-Fuel and Utilities,FZ999-Midlands Region,CORONA ENERGY,2951925,147.13 ,Corona Energy gas HMCTS Midlands 2014/15.
Ministry of Justice,HMCTS,19-Aug-14 ,261000-Fuel and Utilities,FZ999-Midlands Region,CORONA ENERGY,2951925,"2,942.64 ",Corona Energy gas HMCTS Midlands 2014/15.
Ministry of Justice,HMCTS,19-Aug-14 ,261000-Fuel and Utilities,FZ999-Midlands Region,CORONA ENERGY,2951925,"5,314.49 ",Corona Energy gas HMCTS Midlands 2014/15.
Ministry of Justice,HMCTS,19-Aug-14 ,261000-Fuel and Utilities,FZ999-Midlands Region,CORONA ENERGY,2951925,"5,969.51 ",Corona Energy gas HMCTS Midlands 2014/15.
Ministry of Justice,HMCTS,19-Aug-14 ,261000-Fuel and Utilities,FZ999-Midlands Region,CORONA ENERGY,2951925,"26,572.43 ",Corona Energy gas HMCTS Midlands 2014/15.
Ministry of Justice,HMCTS,19-Aug-14 ,261000-Fuel and Utilities,FZ999-Midlands Region,CORONA ENERGY,2951925,"29,847.55 ",Corona Energy gas HMCTS Midlands 2014/15.
Ministry of Justice,HMCTS,15-Aug-14 ,261000-Fuel and Utilities,GZ999-North West Region,CORONA ENERGY,2949456,-0.02 ,NW Region Consolidated - Gas - Corona - April 13 - March 14
Ministry of Justice,HMCTS,15-Aug-14 ,261000-Fuel and Utilities,GZ999-North West Region,CORONA ENERGY,2949456,370.41 ,NW Region Consolidated - Gas - Corona - April 13 - March 14
Ministry of Justice,HMCTS,15-Aug-14 ,261000-Fuel and Utilities,GZ999-North West Region,CORONA ENERGY,2949456,"3,701.28 ",NW Region Consolidated - Gas - Corona - April 13 - March 14
Ministry of Justice,HMCTS,15-Aug-14 ,261000-Fuel and Utilities,GZ999-North West Region,CORONA ENERGY,2949456,"7,408.11 ",NW Region Consolidated - Gas - Corona - April 13 - March 14
Ministry of Justice,HMCTS,15-Aug-14 ,261000-Fuel and Utilities,GZ999-North West Region,CORONA ENERGY,2949456,"18,506.39 ",NW Region Consolidated - Gas - Corona - April 13 - March 14
Ministry of Justice,HMCTS,15-Aug-14 ,261000-Fuel and Utilities,HZ999-North East Region,CORONA ENERGY,2949456,-0.05 ,North East Consol Account - Gas - Corona 13/14
Ministry of Justice,HMCTS,15-Aug-14 ,261000-Fuel and Utilities,HZ999-North East Region,CORONA ENERGY,2949456,-0.01 ,North East Consol Account - Gas - Corona 13/14
Ministry of Justice,HMCTS,15-Aug-14 ,261000-Fuel and Utilities,HZ999-North East Region,CORONA ENERGY,2949456,0.01 ,North East Consol Account - Gas - Corona 13/14
Ministry of Justice,HMCTS,15-Aug-14 ,261000-Fuel and Utilities,HZ999-North East Region,CORONA ENERGY,2949456,0.01 ,North East Consol Account - Gas - Corona 13/14
Ministry of Justice,HMCTS,15-Aug-14 ,261000-Fuel and Utilities,HZ999-North East Region,CORONA ENERGY,2949456,142.14 ,North East Consol Account - Gas - Corona 13/14
Ministry of Justice,HMCTS,15-Aug-14 ,261000-Fuel and Utilities,HZ999-North East Region,CORONA ENERGY,2949456,"2,842.75 ",North East Consol Account - Gas - Corona 13/14
Ministry of Justice,HMCTS,15-Aug-14 ,261000-Fuel and Utilities,HZ999-North East Region,CORONA ENERGY,2949456,"4,852.96 ",North East Consol Account - Gas - Corona 13/14
Ministry of Justice,HMCTS,15-Aug-14 ,261000-Fuel and Utilities,HZ999-North East Region,CORONA ENERGY,2949456,"24,264.80 ",North East Consol Account - Gas - Corona 13/14
Ministry of Justice,HMCTS,22-Aug-14 ,610400-Debtors <1 year - Prepayments & Accrued Income,FZ999-Midlands Region,COVENTRY CITY COUNCIL,2955385,"26,510.00 ",Rates Payment
Ministry of Justice,HMCTS,22-Aug-14 ,610400-Debtors <1 year - Prepayments & Accrued Income,FZ999-Midlands Region,COVENTRY CITY COUNCIL,2955385,"29,161.00 ",Rates Payment
Ministry of Justice,HMCTS,29-Aug-14 ,221000-Property Rent and Rates,SJ999-Scotland,CROWN OFFICE & PROCURATOR FISCAL SERVICE,3320,"18,082.32 ",Rent for 2nd Floor in property Inverness Baron Taylor's Street - 12/13
Ministry of Justice,HMCTS,29-Aug-14 ,222002-Other Property Costs,SJ999-Scotland,CROWN OFFICE & PROCURATOR FISCAL SERVICE,3320,"9,585.45 ",Service Charge for 2nd Floor in property Inverness Baron Taylor's Street - 12/13
Ministry of Justice,HMCTS,29-Aug-14 ,610400-Debtors <1 year - Prepayments & Accrued Income,SJ999-Scotland,CROWN OFFICE & PROCURATOR FISCAL SERVICE,3320,"8,059.45 ",Rates for 2nd Floor in property Inverness Baron Taylor's Street - 12/13
Ministry of Justice,HMCTS,01-Aug-14 ,225000-Banking and Finance,FC999-Centrally Managed Costs by F&G,CUMBRIA COUNTY COUNCIL,2935467,"13,926.67 ",Local Authority Loans Interest
Ministry of Justice,HMCTS,01-Aug-14 ,721200-Creditors > 1 year - Other,FC999-Centrally Managed Costs by F&G,CUMBRIA COUNTY COUNCIL,2935467,"12,324.49 ",721214-LT Local Authority Loan Balances
Ministry of Justice,HMCTS,22-Aug-14 ,222002-Other Property Costs,AG999-HQ - Estates,DEPARTMENT FOR WORK & PENSIONS (DWP),3313,"20,345.33 ",Other Government Department occupancy costs Tribunal sites
Ministry of Justice,HMCTS,20-Aug-14 ,222002-Other Property Costs,AG999-HQ - Estates,DEPARTMENT FOR WORK & PENSIONS (DWP),3310,"46,754.47 ",Other Government Department occupancy costs Tribunal sites
Ministry of Justice,HMCTS,22-Aug-14 ,222002-Other Property Costs,AG999-HQ - Estates,DEPARTMENT FOR WORK & PENSIONS (DWP),3313,"161,818.50 ",Other Government Department occupancy costs Tribunal sites
Ministry of Justice,HMCTS,22-Aug-14 ,222002-Other Property Costs,AG999-HQ - Estates,DEPARTMENT FOR WORK & PENSIONS (DWP),3313,"763,980.44 ",Other Government Department occupancy costs Tribunal sites
Ministry of Justice,HMCTS,22-Aug-14 ,610400-Debtors <1 year - Prepayments & Accrued Income,FZ999-Midlands Region,DERBY CITY COUNCIL,2955393,"30,366.00 ",Rates Payment
Ministry of Justice,HMCTS,08-Aug-14 ,262000-SCA Costs,FZ999-Midlands Region,DERBYSHIRE COURTS LTD,2942871,"476,464.31 ",Derby & Chesterfield - Derbyshire Courts Ltd (SE1 9RD) - Monthly 2014-15 Unitary Charges for Derbyshire
Ministry of Justice,HMCTS,01-Aug-14 ,225000-Banking and Finance,FC999-Centrally Managed Costs by F&G,DEVON COUNTY COUNCIL,2935483,"6,781.20 ",Local Authority Loans Interest
Ministry of Justice,HMCTS,01-Aug-14 ,721200-Creditors > 1 year - Other,FC999-Centrally Managed Costs by F&G,DEVON COUNTY COUNCIL,2935483,"28,840.43 ",721214-LT Local Authority Loan Balances
Ministry of Justice,HMCTS,22-Aug-14 ,610400-Debtors <1 year - Prepayments & Accrued Income,CZ999-South East Region,DOVER DISTRICT COUNCIL,2955395,"53,126.00 ",Rates Payment
Ministry of Justice,HMCTS,20-Aug-14 ,261000-Fuel and Utilities,BZ999-London Region,EDF ENERGY LTD,2954390,"9,925.07 ",EDF Energy Ltd - Electricity Costs for RCJ. Strand. Period April 2013 to March 2014. (Account No. 13592343). Business Entity IH701. NAC 222142. (20% VAT Element )
Ministry of Justice,HMCTS,20-Aug-14 ,261000-Fuel and Utilities,BZ999-London Region,EDF ENERGY LTD,2954390,"49,625.34 ",EDF Energy Ltd - Electricity Costs for RCJ. Strand. Period April 2013 to March 2014. (Account No. 13592343). Business Entity IH701. NAC 222142.
Ministry of Justice,HMCTS,08-Aug-14 ,261000-Fuel and Utilities,GZ999-North West Region,EDF ENERGY LTD,2942892,"6,384.97 ",Manchester CJC - Electricity - EDF - 13/14
Ministry of Justice,HMCTS,08-Aug-14 ,261000-Fuel and Utilities,GZ999-North West Region,EDF ENERGY LTD,2942892,"31,924.86 ",Manchester CJC - Electricity - EDF - 13/14
Ministry of Justice,HMCTS,19-Aug-14 ,226000-Court Costs,SL999-Centralised Frontline,EDWARD HAYES LLP#DX 30307,2950851,"104,809.42 ",Legal fees to solicitors for  the repayment of fees paid by the acquitted defendants
Ministry of Justice,HMCTS,12-Aug-14 ,262000-SCA Costs,DZ999-South West Region,ENTERPRISE CIVIC BUILDINGS LIMITED,2944841,"281,111.80 ",Exeter - Enterprise Civic Buildings  Ltd (W1S 1TD) - Monthly 2014-15 Unitary Charges for Exeter PFI
Ministry of Justice,HMCTS,01-Aug-14 ,225000-Banking and Finance,FC999-Centrally Managed Costs by F&G,ESSEX COUNTY COUNCIL,2935499,"7,024.68 ",Local Authority Loans Interest
Ministry of Justice,HMCTS,01-Aug-14 ,721200-Creditors > 1 year - Other,FC999-Centrally Managed Costs by F&G,ESSEX COUNTY COUNCIL,2935499,"43,582.97 ",721214-LT Local Authority Loan Balances
Ministry of Justice,HMCTS,19-Aug-14 ,226000-Court Costs,BZ999-London Region,EUREST SERVICES,2951989,"52,454.48 ",London Region - Eurest Smart Cards - Consolidated Juror Smartcards - 2013/14
Ministry of Justice,HMCTS,01-Aug-14 ,263000-Other Contracted Out Services,BZ999-London Region,EUREST SERVICES,2935500,"32,752.07 ",London Region - Eurest Services - Catering Contract Subsidy April-August 2014
Ministry of Justice,HMCTS,08-Aug-14 ,226000-Court Costs,FZ999-Midlands Region,EUREST SERVICES,2942901,"25,733.43 ",Midlands Region Catering Jurors Subsidy 11/12 - Eurest Services
Ministry of Justice,HMCTS,06-Aug-14 ,226000-Court Costs,FZ999-Midlands Region,EUREST SERVICES,2940776,"32,410.71 ",Midlands Region Catering Jurors Subsidy 11/12 - Eurest Services
Ministry of Justice,HMCTS,06-Aug-14 ,226000-Court Costs,GZ999-North West Region,EUREST SERVICES,2940776,"22,573.34 ",NW Region - Jury Swipe Cards - Eurest - April 13 - March 14
Ministry of Justice,HMCTS,06-Aug-14 ,226000-Court Costs,HZ999-North East Region,EUREST SERVICES,2940776,"23,656.66 ",North East Consol Account - Jury Swipe Cards contract continuation replacing PO 20000163584 - EurestService - 13/14
Ministry of Justice,HMCTS,22-Aug-14 ,610400-Debtors <1 year - Prepayments & Accrued Income,DZ999-South West Region,EXETER CITY COUNCIL,2955408,"45,067.00 ",Rates Payment
Ministry of Justice,HMCTS,22-Aug-14 ,611000-Debtors <1 year - Other Debtors,WW000-Balance Sheet,FAREHAM BOROUGH COUNCIL,2956117,"32,213.06 ",Rates Payment
Ministry of Justice,HMCTS,19-Aug-14 ,222003-CIS Labour TFM Estates,EZ999-Wales Region,G4S FACILITIES MANAGEMENT (UK) LTD,2952008,564.66 ,Wales - G4S - Catering
Ministry of Justice,HMCTS,20-Aug-14 ,222003-CIS Labour TFM Estates,EZ999-Wales Region,G4S FACILITIES MANAGEMENT (UK) LTD,2954405,"1,876.00 ",Wales - G4S - Grounds Maintenance
Ministry of Justice,HMCTS,19-Aug-14 ,222003-CIS Labour TFM Estates,EZ999-Wales Region,G4S FACILITIES MANAGEMENT (UK) LTD,2952008,"5,852.76 ",Wales - G4S - Grounds Maintenance
Ministry of Justice,HMCTS,20-Aug-14 ,222003-CIS Labour TFM Estates,EZ999-Wales Region,G4S FACILITIES MANAGEMENT (UK) LTD,2954405,"6,757.61 ",Wales - G4S - Management Costs
Ministry of Justice,HMCTS,19-Aug-14 ,222003-CIS Labour TFM Estates,EZ999-Wales Region,G4S FACILITIES MANAGEMENT (UK) LTD,2952008,"12,129.51 ",Wales - G4S - Waste Disposal
Ministry of Justice,HMCTS,19-Aug-14 ,222003-CIS Labour TFM Estates,EZ999-Wales Region,G4S FACILITIES MANAGEMENT (UK) LTD,2952008,"12,573.38 ",Wales - G4S - Internal Maintenance
Ministry of Justice,HMCTS,19-Aug-14 ,222003-CIS Labour TFM Estates,EZ999-Wales Region,G4S FACILITIES MANAGEMENT (UK) LTD,2952008,"13,224.20 ",Wales - G4S - Management
Ministry of Justice,HMCTS,20-Aug-14 ,222003-CIS Labour TFM Estates,EZ999-Wales Region,G4S FACILITIES MANAGEMENT (UK) LTD,2954405,"30,473.92 ",Wales - G4S - Internal Maintenance
Ministry of Justice,HMCTS,19-Aug-14 ,222003-CIS Labour TFM Estates,EZ999-Wales Region,G4S FACILITIES MANAGEMENT (UK) LTD,2952008,"42,369.23 ",Wales - G4S - Management Costs
Ministry of Justice,HMCTS,20-Aug-14 ,222003-CIS Labour TFM Estates,EZ999-Wales Region,G4S FACILITIES MANAGEMENT (UK) LTD,2954405,"57,751.60 ",Wales - G4S - Mechanical & Electrical
Ministry of Justice,HMCTS,19-Aug-14 ,222003-CIS Labour TFM Estates,EZ999-Wales Region,G4S FACILITIES MANAGEMENT (UK) LTD,2952008,"58,244.33 ",Wales - G4S - Mechanical & Electrical
Ministry of Justice,HMCTS,19-Aug-14 ,222003-CIS Labour TFM Estates,EZ999-Wales Region,G4S FACILITIES MANAGEMENT (UK) LTD,2952008,"67,229.24 ",Wales - G4S - Cleaning
Ministry of Justice,HMCTS,19-Aug-14 ,222003-CIS Labour TFM Estates,EZ999-Wales Region,G4S FACILITIES MANAGEMENT (UK) LTD,2952008,"141,967.57 ",Wales - G4S - Security
Ministry of Justice,HMCTS,20-Aug-14 ,222003-CIS Labour TFM Estates,FZ999-Midlands Region,G4S FACILITIES MANAGEMENT (UK) LTD,2954405,607.26 ,Catering
Ministry of Justice,HMCTS,20-Aug-14 ,222003-CIS Labour TFM Estates,FZ999-Midlands Region,G4S FACILITIES MANAGEMENT (UK) LTD,2954405,753.50 ,Pest & Vermin
Ministry of Justice,HMCTS,20-Aug-14 ,222003-CIS Labour TFM Estates,FZ999-Midlands Region,G4S FACILITIES MANAGEMENT (UK) LTD,2954405,"1,340.97 ",Pest & Vermin
Ministry of Justice,HMCTS,20-Aug-14 ,222003-CIS Labour TFM Estates,FZ999-Midlands Region,G4S FACILITIES MANAGEMENT (UK) LTD,2954405,"2,204.62 ",Management Costs
Ministry of Justice,HMCTS,20-Aug-14 ,222003-CIS Labour TFM Estates,FZ999-Midlands Region,G4S FACILITIES MANAGEMENT (UK) LTD,2954405,"3,534.69 ",Cleaning
Ministry of Justice,HMCTS,19-Aug-14 ,222003-CIS Labour TFM Estates,FZ999-Midlands Region,G4S FACILITIES MANAGEMENT (UK) LTD,2952008,"8,673.44 ",Grounds Maintenance
Ministry of Justice,HMCTS,20-Aug-14 ,222003-CIS Labour TFM Estates,FZ999-Midlands Region,G4S FACILITIES MANAGEMENT (UK) LTD,2954405,"12,858.21 ",Management Costs
Ministry of Justice,HMCTS,20-Aug-14 ,222003-CIS Labour TFM Estates,FZ999-Midlands Region,G4S FACILITIES MANAGEMENT (UK) LTD,2954405,"20,852.01 ",Waste Disposal
Ministry of Justice,HMCTS,20-Aug-14 ,222003-CIS Labour TFM Estates,FZ999-Midlands Region,G4S FACILITIES MANAGEMENT (UK) LTD,2954405,"25,106.68 ",Security
Ministry of Justice,HMCTS,19-Aug-14 ,222003-CIS Labour TFM Estates,FZ999-Midlands Region,G4S FACILITIES MANAGEMENT (UK) LTD,2952008,"27,220.35 ",Internal Repair and Maintenance
Ministry of Justice,HMCTS,20-Aug-14 ,222003-CIS Labour TFM Estates,FZ999-Midlands Region,G4S FACILITIES MANAGEMENT (UK) LTD,2954405,"31,645.96 ",Management Costs
Ministry of Justice,HMCTS,20-Aug-14 ,222003-CIS Labour TFM Estates,FZ999-Midlands Region,G4S FACILITIES MANAGEMENT (UK) LTD,2954405,"60,467.76 ",Internal Repair & Maintenance
Ministry of Justice,HMCTS,19-Aug-14 ,222003-CIS Labour TFM Estates,FZ999-Midlands Region,G4S FACILITIES MANAGEMENT (UK) LTD,2952008,"103,319.37 ",Management Costs
Ministry of Justice,HMCTS,20-Aug-14 ,222003-CIS Labour TFM Estates,FZ999-Midlands Region,G4S FACILITIES MANAGEMENT (UK) LTD,2954405,"110,975.07 ",M&E Repair & Maintenance
Ministry of Justice,HMCTS,19-Aug-14 ,222003-CIS Labour TFM Estates,FZ999-Midlands Region,G4S FACILITIES MANAGEMENT (UK) LTD,2952008,"152,294.89 ",M&E Repair & Maintenance
Ministry of Justice,HMCTS,20-Aug-14 ,222003-CIS Labour TFM Estates,FZ999-Midlands Region,G4S FACILITIES MANAGEMENT (UK) LTD,2954405,"175,949.21 ",Cleaning
Ministry of Justice,HMCTS,20-Aug-14 ,222003-CIS Labour TFM Estates,FZ999-Midlands Region,G4S FACILITIES MANAGEMENT (UK) LTD,2954405,"338,941.66 ",Security
Ministry of Justice,HMCTS,19-Aug-14 ,222003-CIS Labour TFM Estates,GZ999-North West Region,G4S FACILITIES MANAGEMENT (UK) LTD,2952008,189.51 ,TFM Annual Fixed Catering
Ministry of Justice,HMCTS,20-Aug-14 ,222003-CIS Labour TFM Estates,GZ999-North West Region,G4S FACILITIES MANAGEMENT (UK) LTD,2954405,580.00 ,Pest & Vermin
Ministry of Justice,HMCTS,19-Aug-14 ,222003-CIS Labour TFM Estates,GZ999-North West Region,G4S FACILITIES MANAGEMENT (UK) LTD,2952008,796.20 ,TFM Annual Fixed Pest & Vermin
Ministry of Justice,HMCTS,20-Aug-14 ,222003-CIS Labour TFM Estates,GZ999-North West Region,G4S FACILITIES MANAGEMENT (UK) LTD,2954405,"1,147.74 ",Grounds Maintenance
Ministry of Justice,HMCTS,20-Aug-14 ,222003-CIS Labour TFM Estates,GZ999-North West Region,G4S FACILITIES MANAGEMENT (UK) LTD,2954405,"2,550.60 ",Waste
Ministry of Justice,HMCTS,20-Aug-14 ,222003-CIS Labour TFM Estates,GZ999-North West Region,G4S FACILITIES MANAGEMENT (UK) LTD,2954405,"2,656.38 ",Management Costs
Ministry of Justice,HMCTS,20-Aug-14 ,222003-CIS Labour TFM Estates,GZ999-North West Region,G4S FACILITIES MANAGEMENT (UK) LTD,2954405,"3,778.16 ",Cleaning
Ministry of Justice,HMCTS,20-Aug-14 ,222003-CIS Labour TFM Estates,GZ999-North West Region,G4S FACILITIES MANAGEMENT (UK) LTD,2954405,"8,530.51 ",Management Costs
Ministry of Justice,HMCTS,19-Aug-14 ,222003-CIS Labour TFM Estates,GZ999-North West Region,G4S FACILITIES MANAGEMENT (UK) LTD,2952008,"11,764.59 ",TFM Annual Grounds Maintenance
Ministry of Justice,HMCTS,19-Aug-14 ,222003-CIS Labour TFM Estates,GZ999-North West Region,G4S FACILITIES MANAGEMENT (UK) LTD,2952008,"19,587.90 ",TFM Annual Fixed Waste Disposal
Ministry of Justice,HMCTS,20-Aug-14 ,222003-CIS Labour TFM Estates,GZ999-North West Region,G4S FACILITIES MANAGEMENT (UK) LTD,2954405,"28,509.69 ",Security
Ministry of Justice,HMCTS,19-Aug-14 ,222003-CIS Labour TFM Estates,GZ999-North West Region,G4S FACILITIES MANAGEMENT (UK) LTD,2952008,"28,944.80 ",TFM Annual Fixed Management
Ministry of Justice,HMCTS,19-Aug-14 ,222003-CIS Labour TFM Estates,GZ999-North West Region,G4S FACILITIES MANAGEMENT (UK) LTD,2952008,"100,015.11 ",TFM Annual Management Costs
Ministry of Justice,HMCTS,20-Aug-14 ,222003-CIS Labour TFM Estates,GZ999-North West Region,G4S FACILITIES MANAGEMENT (UK) LTD,2954405,"112,592.34 ",Internal Maintenance and M&E
Ministry of Justice,HMCTS,19-Aug-14 ,222003-CIS Labour TFM Estates,GZ999-North West Region,G4S FACILITIES MANAGEMENT (UK) LTD,2952008,"168,919.16 ",TFM Annual Fixed Cleaning
Ministry of Justice,HMCTS,19-Aug-14 ,222003-CIS Labour TFM Estates,GZ999-North West Region,G4S FACILITIES MANAGEMENT (UK) LTD,2952008,"186,262.68 ",TFM Annual Fixed Internal Maint Service & M&E
Ministry of Justice,HMCTS,19-Aug-14 ,222003-CIS Labour TFM Estates,GZ999-North West Region,G4S FACILITIES MANAGEMENT (UK) LTD,2952008,"280,308.37 ",TFM Annual Fixed Security
Ministry of Justice,HMCTS,19-Aug-14 ,222003-CIS Labour TFM Estates,HZ999-North East Region,G4S FACILITIES MANAGEMENT (UK) LTD,2952008,180.00 ,TFM Annual Fixed Catering
Ministry of Justice,HMCTS,19-Aug-14 ,222003-CIS Labour TFM Estates,HZ999-North East Region,G4S FACILITIES MANAGEMENT (UK) LTD,2952008,187.87 ,TFM Annual Fixed Pest & Vermin
Ministry of Justice,HMCTS,19-Aug-14 ,222003-CIS Labour TFM Estates,HZ999-North East Region,G4S FACILITIES MANAGEMENT (UK) LTD,2952008,696.20 ,Pest & Vermin
Ministry of Justice,HMCTS,19-Aug-14 ,222003-CIS Labour TFM Estates,HZ999-North East Region,G4S FACILITIES MANAGEMENT (UK) LTD,2952008,"1,221.20 ",Waste
Ministry of Justice,HMCTS,20-Aug-14 ,222003-CIS Labour TFM Estates,HZ999-North East Region,G4S FACILITIES MANAGEMENT (UK) LTD,2954405,"1,646.38 ",Grounds Maintenance
Ministry of Justice,HMCTS,19-Aug-14 ,222003-CIS Labour TFM Estates,HZ999-North East Region,G4S FACILITIES MANAGEMENT (UK) LTD,2952008,"1,743.64 ",Management Costs
Ministry of Justice,HMCTS,19-Aug-14 ,222003-CIS Labour TFM Estates,HZ999-North East Region,G4S FACILITIES MANAGEMENT (UK) LTD,2952008,"2,437.72 ",Cleaning
Ministry of Justice,HMCTS,20-Aug-14 ,222003-CIS Labour TFM Estates,HZ999-North East Region,G4S FACILITIES MANAGEMENT (UK) LTD,2954405,"9,163.02 ",Management Costs
Ministry of Justice,HMCTS,19-Aug-14 ,222003-CIS Labour TFM Estates,HZ999-North East Region,G4S FACILITIES MANAGEMENT (UK) LTD,2952008,"9,697.52 ",TFM Annual Grounds Maintenance
Ministry of Justice,HMCTS,19-Aug-14 ,222003-CIS Labour TFM Estates,HZ999-North East Region,G4S FACILITIES MANAGEMENT (UK) LTD,2952008,"18,893.45 ",Security
Ministry of Justice,HMCTS,19-Aug-14 ,222003-CIS Labour TFM Estates,HZ999-North East Region,G4S FACILITIES MANAGEMENT (UK) LTD,2952008,"31,849.49 ",TFM Annual Fixed Management Costs
Ministry of Justice,HMCTS,19-Aug-14 ,222003-CIS Labour TFM Estates,HZ999-North East Region,G4S FACILITIES MANAGEMENT (UK) LTD,2952008,"37,260.09 ",TFM Annual Fixed Waste Disposal
Ministry of Justice,HMCTS,19-Aug-14 ,222003-CIS Labour TFM Estates,HZ999-North East Region,G4S FACILITIES MANAGEMENT (UK) LTD,2952008,"106,384.38 ",TFM Annual Management costs
Ministry of Justice,HMCTS,20-Aug-14 ,222003-CIS Labour TFM Estates,HZ999-North East Region,G4S FACILITIES MANAGEMENT (UK) LTD,2954405,"120,527.28 ",Internal Maintenance and M&E
Ministry of Justice,HMCTS,19-Aug-14 ,222003-CIS Labour TFM Estates,HZ999-North East Region,G4S FACILITIES MANAGEMENT (UK) LTD,2952008,"164,332.83 ",TFM Annual Fixed Cleaning
Ministry of Justice,HMCTS,19-Aug-14 ,222003-CIS Labour TFM Estates,HZ999-North East Region,G4S FACILITIES MANAGEMENT (UK) LTD,2952008,"171,136.15 ",TFM Annual  Fixed Internal Maint Service and M&E
Ministry of Justice,HMCTS,19-Aug-14 ,222003-CIS Labour TFM Estates,HZ999-North East Region,G4S FACILITIES MANAGEMENT (UK) LTD,2952008,"325,809.60 ",TFM Annual  Fixed Security
Ministry of Justice,HMCTS,22-Aug-14 ,266000-Judicial Costs,AG999-HQ - Estates,GROUND TRANSPORT LTD,2956292,"35,213.73 ",Various Judges' Lodgings - Ground Transport Ltd - Judicial Car Provision 2014/15 Replaces PO 20000173460
Ministry of Justice,HMCTS,26-Aug-14 ,262000-SCA Costs,FZ999-Midlands Region,H & W COURTS LIMITED,2957783,"513,651.73 ",Hereford & Worcester - H & W Courts Ltd - Monthly 2014-15 Unitary Charges for H&W PFI
Ministry of Justice,HMCTS,29-Aug-14 ,532000-Tangible GBV - Additions,GZ999-North West Region,HENRY BOOT CONSTRUCTION LTD,2961322,"-21,364.07 ",Liverpool QE11 - Henry Boot Construction - Replacement chiller No 3 MWFA North West 2 - Lot 3
Ministry of Justice,HMCTS,19-Aug-14 ,532000-Tangible GBV - Additions,GZ999-North West Region,HENRY BOOT CONSTRUCTION LTD,2952047,"20,042.56 ",Blackpool Magistrates' - Henry Boot Construction - Replacement chillers MWFA North West 2 - Lot 3
Ministry of Justice,HMCTS,29-Aug-14 ,532000-Tangible GBV - Additions,GZ999-North West Region,HENRY BOOT CONSTRUCTION LTD,2961322,"21,364.07 ",Liverpool QE11 - Henry Boot Construction - Replacement chiller No 3 MWFA North West 2 - Lot 3
Ministry of Justice,HMCTS,29-Aug-14 ,532000-Tangible GBV - Additions,GZ999-North West Region,HENRY BOOT CONSTRUCTION LTD,2961322,"21,364.07 ",Liverpool QE11 - Henry Boot Construction - Replacement chiller No 3 MWFA North West 2 - Lot 3
Ministry of Justice,HMCTS,19-Aug-14 ,532000-Tangible GBV - Additions,GZ999-North West Region,HENRY BOOT CONSTRUCTION LTD,2952047,"100,212.79 ",Blackpool Magistrates' - Henry Boot Construction - Replacement chillers MWFA North West 2 - Lot 3
Ministry of Justice,HMCTS,29-Aug-14 ,532000-Tangible GBV - Additions,GZ999-North West Region,HENRY BOOT CONSTRUCTION LTD,2961322,"106,820.36 ",Liverpool QE11 - Henry Boot Construction - Replacement chiller No 3 MWFA North West 2 - Lot 3
Ministry of Justice,HMCTS,05-Aug-14 ,223001-Printing Postage and Office expenditure,CZ999-South East Region,HERTFORDSHIRE CONSTABULARY,2938134,"22,170.00 ",Daily Courier delivery system between court buildings. Annual fee taken quarterly.
Ministry of Justice,HMCTS,22-Aug-14 ,610400-Debtors <1 year - Prepayments & Accrued Income,HZ999-North East Region,HULL CITY COUNCIL,2955427,"33,499.00 ",Rates Payment
Ministry of Justice,HMCTS,22-Aug-14 ,610400-Debtors <1 year - Prepayments & Accrued Income,CZ999-South East Region,HUNTINGDONSHIRE DISTRICT COUNCIL,2955428,"26,269.00 ",Rates Payment
Ministry of Justice,HMCTS,22-Aug-14 ,611000-Debtors <1 year - Other Debtors,WW000-Balance Sheet,ING LEASE (UK) LTD,2956335,"36,447.67 ",REFUND OF INV NO'S 001/14/0007155 & 001/14/0014274 ALREADY PAID
Ministry of Justice,HMCTS,20-Aug-14 ,262000-SCA Costs,BZ999-London Region,IRON MOUNTAIN UK LTD,2954437,"181,383.12 ",Iron Mountain Storage Facility for Probate Services for the month of June 2014
Ministry of Justice,HMCTS,13-Aug-14 ,532000-Tangible GBV - Additions,DZ999-South West Region,ISG CONSTRUCTION LTD,2947735,"-184,580.00 ",CIS Labour - Truro Combined Court - ISG CONSTRUCTION LTD - capital maintenance works (SAA)
Ministry of Justice,HMCTS,01-Aug-14 ,532000-Tangible GBV - Additions,DZ999-South West Region,ISG CONSTRUCTION LTD,2935608,"-102,020.00 ",CIS Labour - Truro Combined Court - ISG CONSTRUCTION LTD - capital maintenance works (SAA)
Ministry of Justice,HMCTS,13-Aug-14 ,532000-Tangible GBV - Additions,DZ999-South West Region,ISG CONSTRUCTION LTD,2947735,"-70,580.00 ",CIS Labour - Truro Combined Court - ISG CONSTRUCTION LTD - capital maintenance works (SAA)
Ministry of Justice,HMCTS,13-Aug-14 ,532000-Tangible GBV - Additions,DZ999-South West Region,ISG CONSTRUCTION LTD,2947735,"1,940.00 ",CIS Labour - Truro Combined Court - ISG CONSTRUCTION LTD - capital maintenance works (SAA)
Ministry of Justice,HMCTS,01-Aug-14 ,532000-Tangible GBV - Additions,DZ999-South West Region,ISG CONSTRUCTION LTD,2935608,"4,940.00 ",CIS Labour - Truro Combined Court - ISG CONSTRUCTION LTD - capital maintenance works (SAA)
Ministry of Justice,HMCTS,13-Aug-14 ,532000-Tangible GBV - Additions,DZ999-South West Region,ISG CONSTRUCTION LTD,2947735,"9,700.00 ",CIS Labour - Truro Combined Court - ISG CONSTRUCTION LTD - capital maintenance works (SAA)
Ministry of Justice,HMCTS,13-Aug-14 ,532000-Tangible GBV - Additions,DZ999-South West Region,ISG CONSTRUCTION LTD,2947735,"16,980.00 ",CIS Labour - Truro Combined Court - ISG CONSTRUCTION LTD - capital maintenance works (SAA)
Ministry of Justice,HMCTS,01-Aug-14 ,532000-Tangible GBV - Additions,DZ999-South West Region,ISG CONSTRUCTION LTD,2935608,"17,420.00 ",CIS Labour - Truro Combined Court - ISG CONSTRUCTION LTD - capital maintenance works (SAA)
Ministry of Justice,HMCTS,13-Aug-14 ,532000-Tangible GBV - Additions,DZ999-South West Region,ISG CONSTRUCTION LTD,2947735,"18,580.00 ",CIS Labour - Truro Combined Court - ISG CONSTRUCTION LTD - capital maintenance works (SAA)
Ministry of Justice,HMCTS,01-Aug-14 ,532000-Tangible GBV - Additions,DZ999-South West Region,ISG CONSTRUCTION LTD,2935608,"24,700.00 ",CIS Labour - Truro Combined Court - ISG CONSTRUCTION LTD - capital maintenance works (SAA)
Ministry of Justice,HMCTS,13-Aug-14 ,532000-Tangible GBV - Additions,DZ999-South West Region,ISG CONSTRUCTION LTD,2947735,"33,080.00 ",CIS Labour - Truro Combined Court - ISG CONSTRUCTION LTD - capital maintenance works (SAA)
Ministry of Justice,HMCTS,01-Aug-14 ,532000-Tangible GBV - Additions,DZ999-South West Region,ISG CONSTRUCTION LTD,2935608,"33,580.00 ",CIS Labour - Truro Combined Court - ISG CONSTRUCTION LTD - capital maintenance works (SAA)
Ministry of Justice,HMCTS,01-Aug-14 ,532000-Tangible GBV - Additions,DZ999-South West Region,ISG CONSTRUCTION LTD,2935608,"46,080.00 ",CIS Labour - Truro Combined Court - ISG CONSTRUCTION LTD - capital maintenance works (SAA)
Ministry of Justice,HMCTS,13-Aug-14 ,532000-Tangible GBV - Additions,DZ999-South West Region,ISG CONSTRUCTION LTD,2947735,"70,580.00 ",CIS Labour - Truro Combined Court - ISG CONSTRUCTION LTD - capital maintenance works (SAA)
Ministry of Justice,HMCTS,13-Aug-14 ,532000-Tangible GBV - Additions,DZ999-South West Region,ISG CONSTRUCTION LTD,2947735,"84,900.00 ",CIS Labour - Truro Magistrates' Court - ISG CONSTRUCTION LTD - capital maintenance works (SAA)
Ministry of Justice,HMCTS,01-Aug-14 ,532000-Tangible GBV - Additions,DZ999-South West Region,ISG CONSTRUCTION LTD,2935608,"87,100.00 ",CIS Labour - Plymouth Combined Court - ISG CONSTRUCTION LTD - capital maintenance works (SAA)
Ministry of Justice,HMCTS,13-Aug-14 ,532000-Tangible GBV - Additions,DZ999-South West Region,ISG CONSTRUCTION LTD,2947735,"92,900.00 ",CIS Labour - Plymouth Magistrates' Court - ISG CONSTRUCTION LTD - capital maintenance works (SAA)
Ministry of Justice,HMCTS,01-Aug-14 ,532000-Tangible GBV - Additions,DZ999-South West Region,ISG CONSTRUCTION LTD,2935608,"102,020.00 ",CIS Labour - Truro Combined Court - ISG CONSTRUCTION LTD - capital maintenance works (SAA)
Ministry of Justice,HMCTS,13-Aug-14 ,532000-Tangible GBV - Additions,DZ999-South West Region,ISG CONSTRUCTION LTD,2947735,"165,400.00 ",CIS Labour - Plymouth Combined Court - ISG CONSTRUCTION LTD - capital maintenance works (SAA)
Ministry of Justice,HMCTS,01-Aug-14 ,532000-Tangible GBV - Additions,DZ999-South West Region,ISG CONSTRUCTION LTD,2935608,"167,900.00 ",CIS Labour - Plymouth Magistrates' Court - ISG CONSTRUCTION LTD - capital maintenance works (SAA)
Ministry of Justice,HMCTS,13-Aug-14 ,532000-Tangible GBV - Additions,DZ999-South West Region,ISG CONSTRUCTION LTD,2947735,"184,580.00 ",CIS Labour - Truro Combined Court - ISG CONSTRUCTION LTD - capital maintenance works (SAA)
Ministry of Justice,HMCTS,01-Aug-14 ,532000-Tangible GBV - Additions,DZ999-South West Region,ISG CONSTRUCTION LTD,2935608,"230,400.00 ",CIS Labour - Truro Magistrates' Court - ISG CONSTRUCTION LTD - capital maintenance works (SAA)
Ministry of Justice,HMCTS,20-Aug-14 ,532000-Tangible GBV - Additions,EZ999-Wales Region,ISG CONSTRUCTION LTD,2954438,"6,763.90 ",CIS Labour - Cardiff Civil Justice Centre - ISG Construction - New DDA Lifts replacement
Ministry of Justice,HMCTS,20-Aug-14 ,532000-Tangible GBV - Additions,EZ999-Wales Region,ISG CONSTRUCTION LTD,2954438,"33,819.50 ",CIS Labour - Cardiff Civil Justice Centre - ISG Construction - New DDA Lifts replacement
Ministry of Justice,HMCTS,05-Aug-14 ,532000-Tangible GBV - Additions,EZ999-Wales Region,ISG CONSTRUCTION LTD,2938159,"41,318.80 ",CIS Labour - Llanelli Magistrates Court - ISG Construction - Asbestos Removal & Integration
Ministry of Justice,HMCTS,05-Aug-14 ,532000-Tangible GBV - Additions,EZ999-Wales Region,ISG CONSTRUCTION LTD,2938159,"206,593.99 ",CIS Labour - Llanelli Magistrates Court - ISG Construction - Asbestos Removal & Integration
Ministry of Justice,HMCTS,08-Aug-14 ,211000-Judicial Salaries - Salaried,FC999-Centrally Managed Costs by F&G,JUDICIAL PENSIONS SCHEME,3276,"2,760,788.36 ",Payment to Paymaster for Lower Judiciary Pension payment
Ministry of Justice,HMCTS,08-Aug-14 ,211000-Judicial Salaries - Salaried,FC999-Centrally Managed Costs by F&G,JUDICIAL PENSIONS SCHEME,3276,"3,360,341.02 ",Payment to Paymaster for Higher Judiciary Pension payment
Ministry of Justice,HMCTS,01-Aug-14 ,225000-Banking and Finance,FC999-Centrally Managed Costs by F&G,KENT COUNTY COUNCIL,2935637,"11,212.93 ",Local Authority Loans Interest
Ministry of Justice,HMCTS,01-Aug-14 ,721200-Creditors > 1 year - Other,FC999-Centrally Managed Costs by F&G,KENT COUNTY COUNCIL,2935637,"37,694.40 ",721214-LT Local Authority Loan Balances
Ministry of Justice,HMCTS,01-Aug-14 ,225000-Banking and Finance,FC999-Centrally Managed Costs by F&G,LANCASHIRE COUNTY COUNCIL,2935646,"16,247.20 ",Local Authority Loans Interest
Ministry of Justice,HMCTS,01-Aug-14 ,721200-Creditors > 1 year - Other,FC999-Centrally Managed Costs by F&G,LANCASHIRE COUNTY COUNCIL,2935646,"25,996.00 ",721214-LT Local Authority Loan Balances
Ministry of Justice,HMCTS,01-Aug-14 ,225000-Banking and Finance,FC999-Centrally Managed Costs by F&G,LEEDS CITY COUNCIL,2935653,"25,718.31 ",Local Authority Loans Interest
Ministry of Justice,HMCTS,01-Aug-14 ,721200-Creditors > 1 year - Other,FC999-Centrally Managed Costs by F&G,LEEDS CITY COUNCIL,2935653,"32,967.30 ",721214-LT Local Authority Loan Balances
Ministry of Justice,HMCTS,22-Aug-14 ,610400-Debtors <1 year - Prepayments & Accrued Income,HZ999-North East Region,LEEDS CITY COUNCIL,2955436,"53,984.00 ",Rates Payment
Ministry of Justice,HMCTS,22-Aug-14 ,610400-Debtors <1 year - Prepayments & Accrued Income,HZ999-North East Region,LEEDS CITY COUNCIL,2955436,"69,890.00 ",Rates Payment
Ministry of Justice,HMCTS,22-Aug-14 ,610400-Debtors <1 year - Prepayments & Accrued Income,FZ999-Midlands Region,LEICESTER CITY COUNCIL,2955437,"26,510.00 ",Rates Payment
Ministry of Justice,HMCTS,22-Aug-14 ,610400-Debtors <1 year - Prepayments & Accrued Income,FZ999-Midlands Region,LEICESTER CITY COUNCIL,2955437,"34,463.00 ",Rates Payment
Ministry of Justice,HMCTS,20-Aug-14 ,265000-IT & Telecommunications,FC999-Centrally Managed Costs by F&G,LIBERATA UK LTD,2954460,"2,203.30 ",ICT App Maint & Supp (NON VAT Rec)
Ministry of Justice,HMCTS,20-Aug-14 ,265000-IT & Telecommunications,FC999-Centrally Managed Costs by F&G,LIBERATA UK LTD,2954460,"2,268.40 ",ICT Hosting (NON VAT Rec)
Ministry of Justice,HMCTS,20-Aug-14 ,265000-IT & Telecommunications,FC999-Centrally Managed Costs by F&G,LIBERATA UK LTD,2954460,"11,016.51 ","Application Support 14/15					 			"
Ministry of Justice,HMCTS,20-Aug-14 ,265000-IT & Telecommunications,FC999-Centrally Managed Costs by F&G,LIBERATA UK LTD,2954460,"11,342.00 ","Cloud Hosting 14/15				"
Ministry of Justice,HMCTS,22-Aug-14 ,610400-Debtors <1 year - Prepayments & Accrued Income,GZ999-North West Region,LIVERPOOL CITY COUNCIL,2955439,"77,602.00 ",Rates Payment
Ministry of Justice,HMCTS,22-Aug-14 ,610400-Debtors <1 year - Prepayments & Accrued Income,GZ999-North West Region,LIVERPOOL CITY COUNCIL,2955439,"139,780.00 ",Rates Payment
Ministry of Justice,HMCTS,20-Aug-14 ,610400-Debtors <1 year - Prepayments & Accrued Income,EZ999-Wales Region,LONDON & CAPITAL COMMERCIAL INSURANCE SERVICES LTD,2954461,"37,497.34 ",Rates Payment
Ministry of Justice,HMCTS,22-Aug-14 ,610400-Debtors <1 year - Prepayments & Accrued Income,BZ999-London Region,LONDON BOROUGH OF BRENT,2955442,"39,658.00 ",Rates Payment
Ministry of Justice,HMCTS,01-Aug-14 ,225000-Banking and Finance,FC999-Centrally Managed Costs by F&G,LONDON BOROUGH OF BRENT,2935663,"9,456.19 ",Local Authority Loans Interest
Ministry of Justice,HMCTS,01-Aug-14 ,721200-Creditors > 1 year - Other,FC999-Centrally Managed Costs by F&G,LONDON BOROUGH OF BRENT,2935663,"182,647.84 ",721214-LT Local Authority Loan Balances
Ministry of Justice,HMCTS,22-Aug-14 ,610400-Debtors <1 year - Prepayments & Accrued Income,BZ999-London Region,LONDON BOROUGH OF BROMLEY,2955443,"33,634.00 ",Rates Payment
Ministry of Justice,HMCTS,22-Aug-14 ,610400-Debtors <1 year - Prepayments & Accrued Income,BZ999-London Region,LONDON BOROUGH OF CAMDEN,2955444,"32,881.00 ",Rates Payment
Ministry of Justice,HMCTS,22-Aug-14 ,610400-Debtors <1 year - Prepayments & Accrued Income,BZ999-London Region,LONDON BOROUGH OF CAMDEN,2955444,"42,168.00 ",Rates Payment
Ministry of Justice,HMCTS,22-Aug-14 ,610400-Debtors <1 year - Prepayments & Accrued Income,BZ999-London Region,LONDON BOROUGH OF CAMDEN,2955444,"61,746.00 ",Rates Payment
Ministry of Justice,HMCTS,22-Aug-14 ,610400-Debtors <1 year - Prepayments & Accrued Income,BZ999-London Region,LONDON BOROUGH OF CAMDEN,2955444,"170,680.00 ",Rates Payment
Ministry of Justice,HMCTS,22-Aug-14 ,610400-Debtors <1 year - Prepayments & Accrued Income,BZ999-London Region,LONDON BOROUGH OF CROYDON,2955445,"33,383.00 ",Rates Payment
Ministry of Justice,HMCTS,22-Aug-14 ,610400-Debtors <1 year - Prepayments & Accrued Income,BZ999-London Region,LONDON BOROUGH OF CROYDON,2955445,"75,802.00 ",Rates Payment
Ministry of Justice,HMCTS,22-Aug-14 ,610400-Debtors <1 year - Prepayments & Accrued Income,BZ999-London Region,LONDON BOROUGH OF GREENWICH,2955448,"81,324.00 ",Rates Payment
Ministry of Justice,HMCTS,22-Aug-14 ,610400-Debtors <1 year - Prepayments & Accrued Income,BZ999-London Region,LONDON BOROUGH OF HAMMERSMITH & FULHAM,2955449,"53,512.00 ",Rates Payment
Ministry of Justice,HMCTS,22-Aug-14 ,610400-Debtors <1 year - Prepayments & Accrued Income,BZ999-London Region,LONDON BOROUGH OF HARINGEY,2955450,"59,738.00 ",Rates Payment
Ministry of Justice,HMCTS,22-Aug-14 ,610400-Debtors <1 year - Prepayments & Accrued Income,BZ999-London Region,LONDON BOROUGH OF HARROW,2955451,"51,455.00 ",Rates Payment
Ministry of Justice,HMCTS,22-Aug-14 ,610400-Debtors <1 year - Prepayments & Accrued Income,BZ999-London Region,LONDON BOROUGH OF HOUNSLOW,2955454,"65,260.00 ",Rates Payment
Ministry of Justice,HMCTS,22-Aug-14 ,610400-Debtors <1 year - Prepayments & Accrued Income,BZ999-London Region,LONDON BOROUGH OF ISLINGTON,2955455,"51,706.00 ",Rates Payment
Ministry of Justice,HMCTS,22-Aug-14 ,610400-Debtors <1 year - Prepayments & Accrued Income,BZ999-London Region,LONDON BOROUGH OF ISLINGTON,2955455,"54,718.00 ",Rates Payment
Ministry of Justice,HMCTS,22-Aug-14 ,610400-Debtors <1 year - Prepayments & Accrued Income,BZ999-London Region,LONDON BOROUGH OF MERTON,2955457,"25,351.00 ",Rates Payment
Ministry of Justice,HMCTS,01-Aug-14 ,225000-Banking and Finance,FC999-Centrally Managed Costs by F&G,LONDON BOROUGH OF MERTON,2935665,"60,758.20 ",Local Authority Loans Interest
Ministry of Justice,HMCTS,01-Aug-14 ,721200-Creditors > 1 year - Other,FC999-Centrally Managed Costs by F&G,LONDON BOROUGH OF MERTON,2935665,"75,935.14 ",721214-LT Local Authority Loan Balances
Ministry of Justice,HMCTS,22-Aug-14 ,610400-Debtors <1 year - Prepayments & Accrued Income,BZ999-London Region,LONDON BOROUGH OF NEWHAM,2955458,"33,885.00 ",Rates Payment
Ministry of Justice,HMCTS,22-Aug-14 ,610400-Debtors <1 year - Prepayments & Accrued Income,BZ999-London Region,LONDON BOROUGH OF REDBRIDGE,2955459,"49,447.00 ",Rates Payment
Ministry of Justice,HMCTS,22-Aug-14 ,610400-Debtors <1 year - Prepayments & Accrued Income,BZ999-London Region,LONDON BOROUGH OF RICHMOND UPON THAMES,2955460,"34,885.64 ",Rates Payment
Ministry of Justice,HMCTS,22-Aug-14 ,610400-Debtors <1 year - Prepayments & Accrued Income,BZ999-London Region,LONDON BOROUGH OF SOUTHWARK,2955461,"34,889.00 ",Rates Payment
Ministry of Justice,HMCTS,22-Aug-14 ,610400-Debtors <1 year - Prepayments & Accrued Income,BZ999-London Region,LONDON BOROUGH OF SOUTHWARK,2955461,"48,694.00 ",Rates Payment
Ministry of Justice,HMCTS,22-Aug-14 ,610400-Debtors <1 year - Prepayments & Accrued Income,BZ999-London Region,LONDON BOROUGH OF SOUTHWARK,2955461,"93,372.00 ",Rates Payment
Ministry of Justice,HMCTS,22-Aug-14 ,610400-Debtors <1 year - Prepayments & Accrued Income,BZ999-London Region,LONDON BOROUGH OF SOUTHWARK,2955461,"115,460.00 ",Rates Payment
Ministry of Justice,HMCTS,22-Aug-14 ,610400-Debtors <1 year - Prepayments & Accrued Income,BZ999-London Region,LONDON BOROUGH OF TOWER HAMLETS,2955462,"46,434.95 ",Rates Payment
Ministry of Justice,HMCTS,22-Aug-14 ,610400-Debtors <1 year - Prepayments & Accrued Income,CZ999-South East Region,LUTON BOROUGH COUNCIL,2955464,"35,186.00 ",Rates Payment
Ministry of Justice,HMCTS,22-Aug-14 ,610400-Debtors <1 year - Prepayments & Accrued Income,CZ999-South East Region,MAIDSTONE BOROUGH COUNCIL,2955465,"64,106.00 ",Rates Payment
Ministry of Justice,HMCTS,01-Aug-14 ,225000-Banking and Finance,FC999-Centrally Managed Costs by F&G,MANCHESTER CITY COUNCIL,2935682,"15,109.14 ",Local Authority Loans Interest
Ministry of Justice,HMCTS,01-Aug-14 ,721200-Creditors > 1 year - Other,FC999-Centrally Managed Costs by F&G,MANCHESTER CITY COUNCIL,2935682,"13,620.20 ",721214-LT Local Authority Loan Balances
Ministry of Justice,HMCTS,22-Aug-14 ,610400-Debtors <1 year - Prepayments & Accrued Income,GZ999-North West Region,MANCHESTER CITY COUNCIL,2955466,"25,787.00 ",Rates Payment
Ministry of Justice,HMCTS,22-Aug-14 ,610400-Debtors <1 year - Prepayments & Accrued Income,GZ999-North West Region,MANCHESTER CITY COUNCIL,2955466,"28,679.00 ",Rates Payment
Ministry of Justice,HMCTS,22-Aug-14 ,610400-Debtors <1 year - Prepayments & Accrued Income,GZ999-North West Region,MANCHESTER CITY COUNCIL,2955466,"57,358.00 ",Rates Payment
Ministry of Justice,HMCTS,22-Aug-14 ,610400-Debtors <1 year - Prepayments & Accrued Income,GZ999-North West Region,MANCHESTER CITY COUNCIL,2955466,"58,322.00 ",Rates Payment
Ministry of Justice,HMCTS,22-Aug-14 ,610400-Debtors <1 year - Prepayments & Accrued Income,GZ999-North West Region,MANCHESTER CITY COUNCIL,2955466,"253,050.00 ",Rates Payment
Ministry of Justice,HMCTS,05-Aug-14 ,265000-IT & Telecommunications,AP999-HQ - Strategy & Change,MDS TECHNOLOGIES LTD,2938254,"-4,819.01 ",MDS Monthly Support Charges (pcm) - credit
Ministry of Justice,HMCTS,29-Aug-14 ,265000-IT & Telecommunications,AP999-HQ - Strategy & Change,MDS TECHNOLOGIES LTD,2961404,"-4,203.77 ",MDS Monthly Support Charges (pcm) - credit
Ministry of Justice,HMCTS,29-Aug-14 ,265000-IT & Telecommunications,AP999-HQ - Strategy & Change,MDS TECHNOLOGIES LTD,2961404,"4,203.77 ",MDS Monthly Support Charges (pcm) - Incorrect - has a matching credit note
Ministry of Justice,HMCTS,05-Aug-14 ,265000-IT & Telecommunications,AP999-HQ - Strategy & Change,MDS TECHNOLOGIES LTD,2938254,"4,819.01 ",MDS Monthly Support Charges (pcm)
Ministry of Justice,HMCTS,05-Aug-14 ,265000-IT & Telecommunications,AP999-HQ - Strategy & Change,MDS TECHNOLOGIES LTD,2938254,"4,819.01 ",MDS Monthly Support Charges (pcm)
Ministry of Justice,HMCTS,29-Aug-14 ,265000-IT & Telecommunications,AP999-HQ - Strategy & Change,MDS TECHNOLOGIES LTD,2961404,"8,755.77 ",MDS Monthly Support Charges (pcm) - VAT
Ministry of Justice,HMCTS,29-Aug-14 ,265000-IT & Telecommunications,AP999-HQ - Strategy & Change,MDS TECHNOLOGIES LTD,2961404,"21,018.83 ",MDS Monthly Support Charges (pcm)
Ministry of Justice,HMCTS,29-Aug-14 ,265000-IT & Telecommunications,AP999-HQ - Strategy & Change,MDS TECHNOLOGIES LTD,2961404,"22,760.00 ",QinetiQ log-capture service set-up
Ministry of Justice,HMCTS,05-Aug-14 ,265000-IT & Telecommunications,AP999-HQ - Strategy & Change,MDS TECHNOLOGIES LTD,2938254,"24,095.06 ",MDS Monthly Support Charges (pcm)
Ministry of Justice,HMCTS,15-Aug-14 ,226000-Court Costs,SL999-Centralised Frontline,MESSRS ALBIN & CO SOLICITORS#DX 40111,200597,"33,923.41 ",Legal fees to solicitors for  the repayment of fees paid by the acquitted defendants
Ministry of Justice,HMCTS,05-Aug-14 ,226000-Court Costs,SL999-Centralised Frontline,MESSRS BARK & CO#DX 447,193516,"84,434.52 ",Legal fees to solicitors for  the repayment of fees paid by the acquitted defendants
Ministry of Justice,HMCTS,19-Aug-14 ,226000-Court Costs,SL999-Centralised Frontline,MESSRS BUXTON RYAN & CO#DX47909,200855,"57,052.00 ",Legal fees to solicitors for  the repayment of fees paid by the acquitted defendants
Ministry of Justice,HMCTS,05-Aug-14 ,226000-Court Costs,SL999-Centralised Frontline,MESSRS CENTRAL LAW PRACTICE# DX 51159,193542,"142,502.00 ",Legal fees to solicitors for  the repayment of fees paid by the acquitted defendants
Ministry of Justice,HMCTS,05-Aug-14 ,311200-Criminal Legal Aid,SL999-Centralised Frontline,MESSRS HSR#DX 300715,193646,"51,419.14 ",Legal fees to solicitors for  the repayment of fees paid by the acquitted defendants
Ministry of Justice,HMCTS,05-Aug-14 ,226000-Court Costs,SL999-Centralised Frontline,MESSRS KINGSLEY NAPLEY LLP#DX 22,193677,"97,858.17 ",Legal fees to solicitors for  the repayment of fees paid by the acquitted defendants
Ministry of Justice,HMCTS,19-Aug-14 ,226000-Court Costs,SL999-Centralised Frontline,MESSRS MARTIN CRAY & CO#DX 2725,2950980,"40,645.76 ",Legal fees to solicitors for  the repayment of fees paid by the acquitted defendants
Ministry of Justice,HMCTS,19-Aug-14 ,311200-Criminal Legal Aid,SL999-Centralised Frontline,MESSRS MURRIA SOLICITORS (ADVOCATES)#DX 23521,2950992,"89,920.00 ",Legal fees to solicitors for  the repayment of fees paid by the acquitted defendants
Ministry of Justice,HMCTS,05-Aug-14 ,311200-Criminal Legal Aid,SL999-Centralised Frontline,MESSRS RICHARD HASWELL SOLICITORS,193759,"48,402.18 ",Legal fees to solicitors for  the repayment of fees paid by the acquitted defendants
Ministry of Justice,HMCTS,05-Aug-14 ,311200-Criminal Legal Aid,SL999-Centralised Frontline,MESSRS SHEARMAN BOWEN LTD#DX 218,2936986,"29,865.60 ",Legal fees to solicitors for  the repayment of fees paid by the acquitted defendants
Ministry of Justice,HMCTS,05-Aug-14 ,226000-Court Costs,SL999-Centralised Frontline,MESSRS STEPHEN FIDLER & CO#DX 8,2936994,"26,056.48 ",Legal fees to solicitors for  the repayment of fees paid by the acquitted defendants
Ministry of Justice,HMCTS,19-Aug-14 ,311200-Criminal Legal Aid,SL999-Centralised Frontline,MESSRS STEPHENSONS#DX 19319,201096,"39,047.60 ",Legal fees to solicitors for  the repayment of fees paid by the acquitted defendants
Ministry of Justice,HMCTS,19-Aug-14 ,226000-Court Costs,SL999-Centralised Frontline,MESSRS STOCKDALE & REID#DX 62004,201099,"40,927.12 ",Legal fees to solicitors for  the repayment of fees paid by the acquitted defendants
Ministry of Justice,HMCTS,22-Aug-14 ,610400-Debtors <1 year - Prepayments & Accrued Income,HZ999-North East Region,MIDDLESBROUGH COUNCIL,2955472,"32,053.00 ",Rates Payment
Ministry of Justice,HMCTS,22-Aug-14 ,610400-Debtors <1 year - Prepayments & Accrued Income,HZ999-North East Region,MIDDLESBROUGH COUNCIL,2955472,"67,962.00 ",Rates Payment
Ministry of Justice,HMCTS,05-Aug-14 ,226000-Court Costs,SL999-Centralised Frontline,MIDDLEWEEKS #DX700014,193825,"129,393.60 ",Legal fees to solicitors for  the repayment of fees paid by the acquitted defendants
Ministry of Justice,HMCTS,19-Aug-14 ,222003-CIS Labour TFM Estates,BZ999-London Region,MITIE JUSTICE LTD,2952169,"-20,000.00 ",Grounds Maintenance
Ministry of Justice,HMCTS,29-Aug-14 ,222003-CIS Labour TFM Estates,BZ999-London Region,MITIE JUSTICE LTD,2961417,"3,040.29 ",Grounds Maintenance
Ministry of Justice,HMCTS,19-Aug-14 ,222003-CIS Labour TFM Estates,BZ999-London Region,MITIE JUSTICE LTD,2952169,"17,285.31 ",Grounds Maintenance
Ministry of Justice,HMCTS,19-Aug-14 ,222003-CIS Labour TFM Estates,BZ999-London Region,MITIE JUSTICE LTD,2952169,"20,000.00 ",Grounds Maintenance
Ministry of Justice,HMCTS,19-Aug-14 ,222003-CIS Labour TFM Estates,BZ999-London Region,MITIE JUSTICE LTD,2952169,"45,577.57 ",Internal Repairs & Maintenance
Ministry of Justice,HMCTS,29-Aug-14 ,222003-CIS Labour TFM Estates,BZ999-London Region,MITIE JUSTICE LTD,2961417,"49,286.17 ",M&E Maintenance
Ministry of Justice,HMCTS,29-Aug-14 ,222003-CIS Labour TFM Estates,BZ999-London Region,MITIE JUSTICE LTD,2961417,"53,983.03 ",Internal Repairs & Maintenance
Ministry of Justice,HMCTS,19-Aug-14 ,222003-CIS Labour TFM Estates,BZ999-London Region,MITIE JUSTICE LTD,2952169,"148,953.32 ",Management
Ministry of Justice,HMCTS,19-Aug-14 ,222003-CIS Labour TFM Estates,BZ999-London Region,MITIE JUSTICE LTD,2952169,"249,808.05 ",M&E Maintenance
Ministry of Justice,HMCTS,15-Aug-14 ,222003-CIS Labour TFM Estates,CZ999-South East Region,MITIE JUSTICE LTD,2949660,420.76 ,Management Costs
Ministry of Justice,HMCTS,26-Aug-14 ,222003-CIS Labour TFM Estates,CZ999-South East Region,MITIE JUSTICE LTD,2957859,540.96 ,Internal Moves
Ministry of Justice,HMCTS,26-Aug-14 ,222003-CIS Labour TFM Estates,CZ999-South East Region,MITIE JUSTICE LTD,2957859,600.00 ,Pest Control
Ministry of Justice,HMCTS,29-Aug-14 ,222003-CIS Labour TFM Estates,CZ999-South East Region,MITIE JUSTICE LTD,2961417,791.37 ,Pest Control
Ministry of Justice,HMCTS,29-Aug-14 ,222003-CIS Labour TFM Estates,CZ999-South East Region,MITIE JUSTICE LTD,2961417,"5,264.76 ",Catering - Lease Contracts
Ministry of Justice,HMCTS,26-Aug-14 ,222003-CIS Labour TFM Estates,CZ999-South East Region,MITIE JUSTICE LTD,2957859,"8,119.51 ",Waste Disposal
Ministry of Justice,HMCTS,29-Aug-14 ,222003-CIS Labour TFM Estates,CZ999-South East Region,MITIE JUSTICE LTD,2961417,"13,802.15 ",Management Costs
Ministry of Justice,HMCTS,15-Aug-14 ,222003-CIS Labour TFM Estates,CZ999-South East Region,MITIE JUSTICE LTD,2949660,"20,617.12 ",Grounds Maintenance
Ministry of Justice,HMCTS,29-Aug-14 ,222003-CIS Labour TFM Estates,CZ999-South East Region,MITIE JUSTICE LTD,2961417,"22,624.90 ",Grounds Maintenance
Ministry of Justice,HMCTS,27-Aug-14 ,222003-CIS Labour TFM Estates,CZ999-South East Region,MITIE JUSTICE LTD,2959679,"22,726.53 ",CIS labour - Basildon Combined - Mitie Justice -  Emergency Lighting remedials
Ministry of Justice,HMCTS,26-Aug-14 ,222003-CIS Labour TFM Estates,CZ999-South East Region,MITIE JUSTICE LTD,2957859,"33,660.63 ",Security
Ministry of Justice,HMCTS,29-Aug-14 ,222003-CIS Labour TFM Estates,CZ999-South East Region,MITIE JUSTICE LTD,2961417,"51,991.04 ",Waste Disposal
Ministry of Justice,HMCTS,29-Aug-14 ,222003-CIS Labour TFM Estates,CZ999-South East Region,MITIE JUSTICE LTD,2961417,"64,302.72 ",Internal Repair & Maintenance
Ministry of Justice,HMCTS,29-Aug-14 ,222003-CIS Labour TFM Estates,CZ999-South East Region,MITIE JUSTICE LTD,2961417,"93,392.45 ",Management Costs
Ministry of Justice,HMCTS,29-Aug-14 ,222003-CIS Labour TFM Estates,CZ999-South East Region,MITIE JUSTICE LTD,2961417,"177,095.78 ",Cleaning
Ministry of Justice,HMCTS,29-Aug-14 ,222003-CIS Labour TFM Estates,CZ999-South East Region,MITIE JUSTICE LTD,2961417,"406,407.39 ",M&E Repair & Maintenance
Ministry of Justice,HMCTS,29-Aug-14 ,222003-CIS Labour TFM Estates,CZ999-South East Region,MITIE JUSTICE LTD,2961417,"440,069.08 ",Security
Ministry of Justice,HMCTS,05-Aug-14 ,532000-Tangible GBV - Additions,CZ999-South East Region,MITIE JUSTICE LTD,2938266,"19,294.73 ",CIS Labour - Luton crown court - Mitie Justice Ltd - To replace the R22 chillers on site
Ministry of Justice,HMCTS,05-Aug-14 ,532000-Tangible GBV - Additions,CZ999-South East Region,MITIE JUSTICE LTD,2938266,"96,473.65 ",CIS Labour - Luton crown court - Mitie Justice Ltd - To replace the R22 chillers on site
Ministry of Justice,HMCTS,15-Aug-14 ,222003-CIS Labour TFM Estates,DZ999-South West Region,MITIE JUSTICE LTD,2949660,"2,159.20 ","CIS Labour - TFM Works Package B, South West Region - Soft Services (Fixed) - Pest Control"
Ministry of Justice,HMCTS,15-Aug-14 ,222003-CIS Labour TFM Estates,DZ999-South West Region,MITIE JUSTICE LTD,2949660,"2,235.58 ","CIS Labour - TFM Works Package B, South West Region - Soft Services (Fixed) - Catering - Lease Contracts"
Ministry of Justice,HMCTS,15-Aug-14 ,222003-CIS Labour TFM Estates,DZ999-South West Region,MITIE JUSTICE LTD,2949660,"7,302.92 ","CIS Labour - TFM Works Package B, South West Region - Soft Services (Fixed) - Management Costs"
Ministry of Justice,HMCTS,15-Aug-14 ,222003-CIS Labour TFM Estates,DZ999-South West Region,MITIE JUSTICE LTD,2949660,"9,515.81 ","CIS Labour - TFM Works Package B, South West Region - Hard Services (Fixed) - Grounds Maintenance"
Ministry of Justice,HMCTS,15-Aug-14 ,222003-CIS Labour TFM Estates,DZ999-South West Region,MITIE JUSTICE LTD,2949660,"19,991.85 ","CIS Labour - TFM Works Package B, South West Region - Hard Services (Fixed) - Internal Repair & Maintenance"
Ministry of Justice,HMCTS,15-Aug-14 ,222003-CIS Labour TFM Estates,DZ999-South West Region,MITIE JUSTICE LTD,2949660,"24,142.20 ","CIS Labour - TFM Works Package B, South West Region - Soft Services (Fixed) - Waste Disposal"
Ministry of Justice,HMCTS,15-Aug-14 ,222003-CIS Labour TFM Estates,DZ999-South West Region,MITIE JUSTICE LTD,2949660,"66,973.25 ","CIS Labour - TFM Works Package B, South West Region - Hard Services (Fixed) - Management Costs"
Ministry of Justice,HMCTS,15-Aug-14 ,222003-CIS Labour TFM Estates,DZ999-South West Region,MITIE JUSTICE LTD,2949660,"88,384.39 ","CIS Labour - TFM Works Package B, South West Region - Hard Services (Fixed) - M&E Repair & Maintenance"
Ministry of Justice,HMCTS,15-Aug-14 ,222003-CIS Labour TFM Estates,DZ999-South West Region,MITIE JUSTICE LTD,2949660,"111,108.39 ","CIS Labour - TFM Works Package B, South West Region - Soft Services (Fixed) - Cleaning"
Ministry of Justice,HMCTS,15-Aug-14 ,222003-CIS Labour TFM Estates,DZ999-South West Region,MITIE JUSTICE LTD,2949660,"215,923.96 ","CIS Labour - TFM Works Package B, South West Region - Soft Services (Fixed) - Security"
Ministry of Justice,HMCTS,22-Aug-14 ,262000-SCA Costs,CZ999-South East Region,MODERN COURTS (EAST ANGLIA) LTD,2956419,"446,256.77 ",Ipswich & Cambridge - Modern Courts (East Anglia) Ltd (BR8 7AG) - Monthly 2014-15 Unitary Charges for East Anglia PFI
Ministry of Justice,HMCTS,22-Aug-14 ,262000-SCA Costs,HZ999-North East Region,MODERN COURTS (HUMBERSIDE) LTD,2956420,"370,203.71 ","Beverley, Hull & Bridlington - Modern Courts (Humberside) Ltd (BR8 7AG) - Unitary Charges for Humberside PFI - Monthly"
Ministry of Justice,HMCTS,08-Aug-14 ,610300-Debtors < 1 Year - Deposits & Advances,GZ999-North West Region,NEOPOST LTD,2943113,"125,935.00 ","weekly franking machine re-credits for HMCTS, MOJ and LAA"
Ministry of Justice,HMCTS,15-Aug-14 ,610300-Debtors < 1 Year - Deposits & Advances,GZ999-North West Region,NEOPOST LTD,2949676,"127,460.00 ","weekly franking machine re-credits for HMCTS, MOJ and LAA"
Ministry of Justice,HMCTS,26-Aug-14 ,610300-Debtors < 1 Year - Deposits & Advances,GZ999-North West Region,NEOPOST LTD,2957874,"141,275.00 ","weekly franking machine re-credits for HMCTS, MOJ and LAA"
Ministry of Justice,HMCTS,05-Aug-14 ,610300-Debtors < 1 Year - Deposits & Advances,GZ999-North West Region,NEOPOST LTD,2938291,"146,974.00 ","weekly franking machine re-credits for HMCTS, MOJ and LAA"
Ministry of Justice,HMCTS,22-Aug-14 ,610400-Debtors <1 year - Prepayments & Accrued Income,HZ999-North East Region,NEWCASTLE UPON TYNE CITY COUNCIL,2955479,"71,336.00 ",Rates Payment
Ministry of Justice,HMCTS,05-Aug-14 ,311200-Criminal Legal Aid,SL999-Centralised Frontline,NIGEL WELLER & CO (ADVOCATES)#DX 3112,193893,"32,580.00 ",Legal fees to solicitors for  the repayment of fees paid by the acquitted defendants
Ministry of Justice,HMCTS,22-Aug-14 ,610400-Debtors <1 year - Prepayments & Accrued Income,DZ999-South West Region,NORTH SOMERSET COUNCIL,2955484,"36,873.00 ",Rates Payment
Ministry of Justice,HMCTS,22-Aug-14 ,610400-Debtors <1 year - Prepayments & Accrued Income,FZ999-Midlands Region,NORTHAMPTON BOROUGH COUNCIL,2955486,"40,970.00 ",Rates Payment
Ministry of Justice,HMCTS,22-Aug-14 ,610400-Debtors <1 year - Prepayments & Accrued Income,CZ999-South East Region,NORWICH CITY COUNCIL,2955488,"31,812.00 ",Rates Payment
Ministry of Justice,HMCTS,22-Aug-14 ,610400-Debtors <1 year - Prepayments & Accrued Income,FZ999-Midlands Region,NOTTINGHAM CITY COUNCIL,2955489,"38,801.00 ",Rates Payment
Ministry of Justice,HMCTS,22-Aug-14 ,610400-Debtors <1 year - Prepayments & Accrued Income,FZ999-Midlands Region,NOTTINGHAM CITY COUNCIL,2955489,"74,710.00 ",Rates Payment
Ministry of Justice,HMCTS,22-Aug-14 ,610400-Debtors <1 year - Prepayments & Accrued Income,CZ999-South East Region,OXFORD CITY COUNCIL,2955492,"29,884.00 ",Rates Payment
Ministry of Justice,HMCTS,12-Aug-14 ,262000-SCA Costs,HZ999-North East Region,PALECASTLE LTD,2945340,"102,256.36 ",Sheffield - Palecastle Ltd  (WA14 2EX) - Unitary Charges for Sheffield PFI - Monthly
Ministry of Justice,HMCTS,08-Aug-14 ,223001-Printing Postage and Office expenditure,CZ999-South East Region,POLICE & CRIME COMMISSIONER FOR ESSEX,2943249,"26,771.50 ",Royal mail postage and distribution
Ministry of Justice,HMCTS,22-Aug-14 ,610400-Debtors <1 year - Prepayments & Accrued Income,DZ999-South West Region,PORTSMOUTH CITY COUNCIL,2955496,"41,934.00 ",Rates Payment
Ministry of Justice,HMCTS,22-Aug-14 ,610400-Debtors <1 year - Prepayments & Accrued Income,GZ999-North West Region,PRESTON CITY COUNCIL,2955498,"56,876.00 ",Rates Payment
Ministry of Justice,HMCTS,22-Aug-14 ,610400-Debtors <1 year - Prepayments & Accrued Income,CZ999-South East Region,READING BOROUGH COUNCIL,2955499,"40,479.64 ",Rates Payment
Ministry of Justice,HMCTS,22-Aug-14 ,610400-Debtors <1 year - Prepayments & Accrued Income,HZ999-North East Region,ROTHERHAM METROPOLITAN BOROUGH COUNCIL,2955505,"27,956.00 ",Rates Payment
Ministry of Justice,HMCTS,22-Aug-14 ,610400-Debtors <1 year - Prepayments & Accrued Income,BZ999-London Region,ROYAL BOROUGH OF KINGSTON UPON THAMES,2955506,"96,886.00 ",Rates Payment
Ministry of Justice,HMCTS,05-Aug-14 ,223001-Printing Postage and Office expenditure,CZ999-South East Region,ROYAL MAIL GROUP PLC,2938430,"4,873.75 ",SE Regional Mail variable charges - Royal Mail 2014/15- Account number 166289000 - Replaces PO 20000173034
Ministry of Justice,HMCTS,05-Aug-14 ,223001-Printing Postage and Office expenditure,CZ999-South East Region,ROYAL MAIL GROUP PLC,2938430,"29,643.52 ",SE Regional Mail variable charges - Royal Mail 2014/15- Account number 166289000 - Replaces PO 20000173034
Ministry of Justice,HMCTS,05-Aug-14 ,223001-Printing Postage and Office expenditure,HZ999-North East Region,ROYAL MAIL GROUP PLC,2938430,"1,187.44 ",North East Consol Account - Variable service contract continuation - Royal Mail - 13/14
Ministry of Justice,HMCTS,05-Aug-14 ,223001-Printing Postage and Office expenditure,HZ999-North East Region,ROYAL MAIL GROUP PLC,2938430,"184,609.26 ",North East Consol Account - Variable service contract continuation - Royal Mail - 13/14
Ministry of Justice,HMCTS,22-Aug-14 ,610400-Debtors <1 year - Prepayments & Accrued Income,HZ999-North East Region,SHEFFIELD CITY COUNCIL,2955515,"43,621.00 ",Rates Payment
Ministry of Justice,HMCTS,22-Aug-14 ,610400-Debtors <1 year - Prepayments & Accrued Income,HZ999-North East Region,SHEFFIELD CITY COUNCIL,2955515,"88,206.00 ",Rates Payment
Ministry of Justice,HMCTS,26-Aug-14 ,224000-Staff travel and other,CZ999-South East Region,SIMON THORP#AQ40210285,2957879,"55,321.80 ",Staff Transfer Costs
Ministry of Justice,HMCTS,01-Aug-14 ,225000-Banking and Finance,FC999-Centrally Managed Costs by F&G,SOMERSET COUNTY COUNCIL,2935952,"45,953.20 ",Local Authority Loans Interest
Ministry of Justice,HMCTS,01-Aug-14 ,721200-Creditors > 1 year - Other,FC999-Centrally Managed Costs by F&G,SOMERSET COUNTY COUNCIL,2935952,"44,742.40 ",721214-LT Local Authority Loan Balances
Ministry of Justice,HMCTS,22-Aug-14 ,610400-Debtors <1 year - Prepayments & Accrued Income,DZ999-South West Region,SOUTHAMPTON CITY COUNCIL,2955530,"34,463.00 ",Rates Payment
Ministry of Justice,HMCTS,22-Aug-14 ,610400-Debtors <1 year - Prepayments & Accrued Income,DZ999-South West Region,SOUTHAMPTON CITY COUNCIL,2955530,"41,934.00 ",Rates Payment
Ministry of Justice,HMCTS,22-Aug-14 ,610400-Debtors <1 year - Prepayments & Accrued Income,CZ999-South East Region,ST ALBANS CITY & DISTRICT COUNCIL,2955533,"36,150.00 ",Rates Payment
Ministry of Justice,HMCTS,22-Aug-14 ,610400-Debtors <1 year - Prepayments & Accrued Income,FZ999-Midlands Region,STAFFORD BOROUGH COUNCIL,2955536,"27,474.00 ",Rates Payment
Ministry of Justice,HMCTS,01-Aug-14 ,225000-Banking and Finance,FC999-Centrally Managed Costs by F&G,STAFFORDSHIRE COUNTY COUNCIL,2935959,"22,358.53 ",Local Authority Loans Interest
